Transaction date,Beneficiary ID,Beneficiary Name,Purpose of Expenditure,Local Authority Department that incurred Expenditure,Amount
18/02/2019,1247854,Look Ahead Housing & Care Ltd,Payments to Voluntary bodies,ASC Procurement and Business Intelligenc,"127,599.00"
11/01/2019,1247656,London Cyrenians Housing Ltd,Payments to Voluntary bodies,ASC Procurement and Business Intelligenc,"107,750.00"
13/03/2019,1245636,St Mungos Broadway (Grants &,Payments to Voluntary bodies,ASC Procurement and Business Intelligenc,"90,756.25"
18/02/2019,1247854,Look Ahead Housing & Care Ltd,Payments to Voluntary bodies,ASC Procurement and Business Intelligenc,"75,118.00"
21/02/2019,1243778,Royal Borough of Kensington and Che,B*Payments to OLAs - Portsmouth City Coun,Adult Social Care Business,"37,658.00"
30/01/2019,1243887,Alan Berresford Limited,Hired and Contracted Services,Adult Social Care Finance and Resources,"10,000.00"
13/02/2019,1243887,Alan Berresford Limited,Agency Staff,Adult Social Care Finance and Resources,"5,625.00"
30/01/2019,1249676,Local Government Association,Subscriptions,Adult Social Care Finance and Resources,"1,748.00"
05/03/2019,1243762,London Borough Of Ealing (A/C,Hired and Contracted Services,Adult Social Care Finance and Resources,"35,500.00"
06/03/2019,1245693,London Borough Of Hammersmith &,B*Payments to OLAs - Southampton City Co,Adult Social Care Finance and Resources,"161,499.00"
27/03/2019,1245693,London Borough Of Hammersmith &,B*Payments to OLAs - Southampton City Co,Adult Social Care Finance and Resources,"44,047.00"
28/02/2019,1243778,Royal Borough of Kensington and Che,B*Payments to OLAs - Southampton City Co,Adult Social Care Finance and Resources,"160,288.00"
15/03/2019,1243778,Royal Borough of Kensington and Che,B*Payments to OLAs - Southampton City Co,Adult Social Care Finance and Resources,"654,487.00"
22/03/2019,1243778,Royal Borough of Kensington and Che,B*Payments to OLAs - Southampton City Co,Adult Social Care Finance and Resources,"51,101.00"
12/02/2019,1245325,Ricoh Uk Ltd,IT Software,Adult Social Care Finance and Resources,"3,036.48"
13/03/2019,1249167,TMP (UK) Ltd,Creditors GR/IR -,Adult Social Care Finance and Resources,"2,105.00"
07/03/2019,1253703,Agilesphere LLP,Training related expenditure,Adult Social Care Finance and Resources,"2,550.00"
08/01/2019,1245528,Sanctuary Housing Association,Hired and Contracted Services,Adult Social Care Finance and Resources,"243,741.20"
08/01/2019,1245528,Sanctuary Housing Association,Hired and Contracted Services,Adult Social Care Finance and Resources,"143,793.75"
08/01/2019,1245528,Sanctuary Housing Association,Hired and Contracted Services,Adult Social Care Finance and Resources,"243,072.20"
08/01/2019,1245528,Sanctuary Housing Association,Hired and Contracted Services,Adult Social Care Finance and Resources,"243,741.20"
08/01/2019,1245528,Sanctuary Housing Association,Hired and Contracted Services,Adult Social Care Finance and Resources,"243,072.20"
08/01/2019,1245528,Sanctuary Housing Association,Hired and Contracted Services,Adult Social Care Finance and Resources,"259,329.99"
09/01/2019,1245528,Sanctuary Housing Association,Hired and Contracted Services,Adult Social Care Finance and Resources,"17,553.12"
14/01/2019,1245528,Sanctuary Housing Association,Hired and Contracted Services,Adult Social Care Finance and Resources,"143,793.75"
17/01/2019,1245528,Sanctuary Housing Association,Hired and Contracted Services,Adult Social Care Finance and Resources,"273,128.41"
31/01/2019,1245528,Sanctuary Housing Association,Hired and Contracted Services,Adult Social Care Finance and Resources,"9,209.64"
31/01/2019,1245528,Sanctuary Housing Association,Hired and Contracted Services,Adult Social Care Finance and Resources,"143,646.65"
31/01/2019,1245528,Sanctuary Housing Association,Hired and Contracted Services,Adult Social Care Finance and Resources,"243,747.90"
31/01/2019,1245528,Sanctuary Housing Association,Hired and Contracted Services,Adult Social Care Finance and Resources,"265,630.41"
31/01/2019,1245528,Sanctuary Housing Association,Hired and Contracted Services,Adult Social Care Finance and Resources,"242,803.60"
31/01/2019,1245528,Sanctuary Housing Association,Hired and Contracted Services,Adult Social Care Finance and Resources,"27,095.41"
31/01/2019,1245528,Sanctuary Housing Association,Hired and Contracted Services,Adult Social Care Finance and Resources,"15,922.03"
31/01/2019,1245528,Sanctuary Housing Association,Hired and Contracted Services,Adult Social Care Finance and Resources,"8,063.57"
13/03/2019,1245528,Sanctuary Housing Association,Hired and Contracted Services,Adult Social Care Finance and Resources,"24,552.24"
15/03/2019,1245528,Sanctuary Housing Association,Hired and Contracted Services,Adult Social Care Finance and Resources,"143,720.20"
15/03/2019,1245528,Sanctuary Housing Association,Hired and Contracted Services,Adult Social Care Finance and Resources,"143,720.20"
15/03/2019,1245528,Sanctuary Housing Association,Hired and Contracted Services,Adult Social Care Finance and Resources,"242,937.60"
15/03/2019,1245528,Sanctuary Housing Association,Hired and Contracted Services,Adult Social Care Finance and Resources,"243,744.55"
15/03/2019,1245528,Sanctuary Housing Association,Hired and Contracted Services,Adult Social Care Finance and Resources,"262,368.98"
15/03/2019,1245528,Sanctuary Housing Association,Hired and Contracted Services,Adult Social Care Finance and Resources,"242,937.60"
15/03/2019,1245528,Sanctuary Housing Association,Hired and Contracted Services,Adult Social Care Finance and Resources,"243,744.55"
18/03/2019,1245528,Sanctuary Housing Association,Hired and Contracted Services,Adult Social Care Finance and Resources,"264,085.48"
14/03/2019,1244066,Buddi Ltd,Subscriptions,Adult Social Care Integrated Care,"2,150.00"
21/02/2019,1244309,Doro Care Ltd,###,Adult Social Care Integrated Care,700
14/01/2019,1246138,Tunstall Healthcare (UK) Ltd (Use,Subscriptions,Adult Social Care Integrated Care,"6,721.17"
18/01/2019,1246138,Tunstall Healthcare (UK) Ltd (Use,Subscriptions,Adult Social Care Integrated Care,"6,746.82"
22/01/2019,1246138,Tunstall Healthcare (UK) Ltd (Use,Equipment,Adult Social Care Integrated Care,"6,930.00"
28/01/2019,1246138,Tunstall Healthcare (UK) Ltd (Use,Subscriptions,Adult Social Care Integrated Care,"8,269.95"
07/02/2019,1246138,Tunstall Healthcare (UK) Ltd (Use,Equipment,Adult Social Care Integrated Care,"3,747.00"
26/02/2019,1246138,Tunstall Healthcare (UK) Ltd (Use,Subscriptions,Adult Social Care Integrated Care,"12,751.09"
26/02/2019,1246138,Tunstall Healthcare (UK) Ltd (Use,Subscriptions,Adult Social Care Integrated Care,"2,912.00"
20/03/2019,1246138,Tunstall Healthcare (UK) Ltd (Use,Subscriptions,Adult Social Care Integrated Care,"8,188.05"
27/03/2019,1246138,Tunstall Healthcare (UK) Ltd (Use,Subscriptions,Adult Social Care Integrated Care,"8,067.15"
18/02/2019,1245228,Pohwer,Hired and Contracted Services,Adult Social Care Integrated Care,"2,668.61"
25/01/2019,1244233,CoSector Limited,Day Activities,Adult Social Care Integrated Care,"1,395.57"
25/01/2019,1244233,CoSector Limited,Day Activities,Adult Social Care Integrated Care,"1,860.76"
08/02/2019,1244233,CoSector Limited,Day Activities,Adult Social Care Integrated Care,"2,325.96"
04/03/2019,1244233,CoSector Limited,Training related expenditure,Adult Social Care Integrated Care,930.38
28/01/2019,1243851,Accomplish Group Ltd,,Adult Social Care Integrated Care,"14,400.00"
28/01/2019,1243851,Accomplish Group Ltd,,Adult Social Care Integrated Care,"6,748.80"
21/02/2019,1243851,Accomplish Group Ltd,,Adult Social Care Integrated Care,"6,748.80"
21/02/2019,1243851,Accomplish Group Ltd,,Adult Social Care Integrated Care,"14,400.00"
13/03/2019,1243851,Accomplish Group Ltd,,Adult Social Care Integrated Care,"14,400.00"
13/03/2019,1243851,Accomplish Group Ltd,,Adult Social Care Integrated Care,"6,748.80"
21/02/2019,1245789,Acorn (Watford) Ltd,,Adult Social Care Integrated Care,"1,745.97"
28/01/2019,1243435,Acorn Village,,Adult Social Care Integrated Care,"5,221.08"
21/02/2019,1243435,Acorn Village,,Adult Social Care Integrated Care,"5,221.08"
13/03/2019,1243435,Acorn Village,,Adult Social Care Integrated Care,"5,221.08"
28/01/2019,1243942,Aspens Charities,,Adult Social Care Integrated Care,"5,445.92"
21/02/2019,1243942,Aspens Charities,,Adult Social Care Integrated Care,"5,445.92"
13/03/2019,1243942,Aspens Charities,,Adult Social Care Integrated Care,"5,445.92"
28/01/2019,1246022,Assisted Living Solutions Ltd,,Adult Social Care Integrated Care,"8,234.40"
21/02/2019,1246022,Assisted Living Solutions Ltd,,Adult Social Care Integrated Care,"8,234.40"
13/03/2019,1246022,Assisted Living Solutions Ltd,,Adult Social Care Integrated Care,"8,234.40"
28/01/2019,1243948,Ategi Ltd,,Adult Social Care Integrated Care,"3,116.00"
21/02/2019,1243948,Ategi Ltd,,Adult Social Care Integrated Care,"3,116.00"
13/03/2019,1243948,Ategi Ltd,,Adult Social Care Integrated Care,"3,116.00"
28/01/2019,1249693,Aurora Care & Education OPCO Ltd,,Adult Social Care Integrated Care,"9,074.28"
21/02/2019,1249693,Aurora Care & Education OPCO Ltd,,Adult Social Care Integrated Care,"9,074.28"
13/03/2019,1249693,Aurora Care & Education OPCO Ltd,,Adult Social Care Integrated Care,"9,074.28"
28/01/2019,1243961,Autism Anglia,,Adult Social Care Integrated Care,"11,644.00"
28/01/2019,1243961,Autism Anglia,,Adult Social Care Integrated Care,"5,110.24"
28/01/2019,1243961,Autism Anglia,,Adult Social Care Integrated Care,"1,032.00"
21/02/2019,1243961,Autism Anglia,,Adult Social Care Integrated Care,"11,644.00"
21/02/2019,1243961,Autism Anglia,,Adult Social Care Integrated Care,"5,110.24"
13/03/2019,1243961,Autism Anglia,,Adult Social Care Integrated Care,"11,644.00"
13/03/2019,1243961,Autism Anglia,,Adult Social Care Integrated Care,"5,110.24"
28/01/2019,1243962,Autism London,,Adult Social Care Integrated Care,"4,812.00"
28/01/2019,1243962,Autism London,,Adult Social Care Integrated Care,685.52
21/02/2019,1243962,Autism London,,Adult Social Care Integrated Care,685.52
21/02/2019,1243962,Autism London,,Adult Social Care Integrated Care,"4,812.00"
13/03/2019,1243962,Autism London,,Adult Social Care Integrated Care,"4,812.00"
13/03/2019,1243962,Autism London,,Adult Social Care Integrated Care,685.52
28/01/2019,1245084,Beau Sejour Residential Care Home,,Adult Social Care Integrated Care,"4,632.00"
28/01/2019,1245084,Beau Sejour Residential Care Home,,Adult Social Care Integrated Care,"1,768.36"
21/02/2019,1245084,Beau Sejour Residential Care Home,,Adult Social Care Integrated Care,"1,768.36"
21/02/2019,1245084,Beau Sejour Residential Care Home,,Adult Social Care Integrated Care,"4,632.00"
13/03/2019,1245084,Beau Sejour Residential Care Home,,Adult Social Care Integrated Care,"4,632.00"
13/03/2019,1245084,Beau Sejour Residential Care Home,,Adult Social Care Integrated Care,"1,768.36"
28/01/2019,1243444,Broadham Care Ltd,,Adult Social Care Integrated Care,"1,400.00"
28/01/2019,1243444,Broadham Care Ltd,,Adult Social Care Integrated Care,"6,200.00"
21/02/2019,1243444,Broadham Care Ltd,,Adult Social Care Integrated Care,"1,400.00"
21/02/2019,1243444,Broadham Care Ltd,,Adult Social Care Integrated Care,"6,200.00"
13/03/2019,1243444,Broadham Care Ltd,,Adult Social Care Integrated Care,"1,400.00"
13/03/2019,1243444,Broadham Care Ltd,,Adult Social Care Integrated Care,"6,200.00"
28/01/2019,1243445,Broadstreet House Limited,,Adult Social Care Integrated Care,"3,208.40"
21/02/2019,1243445,Broadstreet House Limited,,Adult Social Care Integrated Care,"3,208.40"
13/03/2019,1243445,Broadstreet House Limited,,Adult Social Care Integrated Care,"3,208.40"
28/01/2019,1246286,Brunswick Supported Living,,Adult Social Care Integrated Care,"2,629.28"
21/02/2019,1246286,Brunswick Supported Living,,Adult Social Care Integrated Care,"2,629.28"
13/03/2019,1246286,Brunswick Supported Living,,Adult Social Care Integrated Care,"2,629.28"
28/01/2019,1244092,Cambrian Learning Disabilities Ltd,,Adult Social Care Integrated Care,"5,690.00"
21/02/2019,1244092,Cambrian Learning Disabilities Ltd,,Adult Social Care Integrated Care,"5,690.00"
13/03/2019,1244092,Cambrian Learning Disabilities Ltd,,Adult Social Care Integrated Care,"5,690.00"
07/01/2019,1243795,Cambs & Peterborough Mental,B*Voluntary-Spot-V Dep-Enhanced - do not u,Adult Social Care Integrated Care,568.14
05/02/2019,1243795,Cambs & Peterborough Mental,B*Voluntary-Spot-V Dep-Enhanced - do not u,Adult Social Care Integrated Care,545.41
05/03/2019,1243795,Cambs & Peterborough Mental,B*Voluntary-Spot-V Dep-Enhanced - do not u,Adult Social Care Integrated Care,590.87
21/02/2019,1245089,Camden Society,B*Voluntary-Spot-V Dep-Enhanced - do not u,Adult Social Care Integrated Care,520
28/01/2019,1246321,Camphill Village Trust,,Adult Social Care Integrated Care,"3,981.08"
21/02/2019,1246321,Camphill Village Trust,,Adult Social Care Integrated Care,"3,981.08"
13/03/2019,1246321,Camphill Village Trust,,Adult Social Care Integrated Care,"3,981.08"
28/01/2019,1246324,Candour Care Services (Broadview),,Adult Social Care Integrated Care,"7,434.92"
21/02/2019,1246324,Candour Care Services (Broadview),,Adult Social Care Integrated Care,"7,434.92"
13/03/2019,1246324,Candour Care Services (Broadview),,Adult Social Care Integrated Care,"7,434.92"
28/01/2019,1246327,Canterbury Oast Trust Ltd,,Adult Social Care Integrated Care,"3,672.16"
21/02/2019,1246327,Canterbury Oast Trust Ltd,,Adult Social Care Integrated Care,"3,672.16"
13/03/2019,1246327,Canterbury Oast Trust Ltd,,Adult Social Care Integrated Care,"3,672.16"
28/01/2019,1246339,Caretech Community Services Ltd,,Adult Social Care Integrated Care,940.76
28/01/2019,1246339,Caretech Community Services Ltd,,Adult Social Care Integrated Care,"5,241.20"
28/01/2019,1246339,Caretech Community Services Ltd,,Adult Social Care Integrated Care,"5,126.08"
28/01/2019,1246339,Caretech Community Services Ltd,,Adult Social Care Integrated Care,"1,262.40"
28/01/2019,1246339,Caretech Community Services Ltd,,Adult Social Care Integrated Care,"5,158.49"
28/01/2019,1246339,Caretech Community Services Ltd,,Adult Social Care Integrated Care,"5,158.49"
28/01/2019,1246339,Caretech Community Services Ltd,,Adult Social Care Integrated Care,"16,592.00"
21/02/2019,1246339,Caretech Community Services Ltd,,Adult Social Care Integrated Care,"4,331.40"
21/02/2019,1246339,Caretech Community Services Ltd,,Adult Social Care Integrated Care,"4,331.40"
21/02/2019,1246339,Caretech Community Services Ltd,,Adult Social Care Integrated Care,"1,262.40"
21/02/2019,1246339,Caretech Community Services Ltd,,Adult Social Care Integrated Care,"5,126.08"
21/02/2019,1246339,Caretech Community Services Ltd,,Adult Social Care Integrated Care,"16,592.00"
21/02/2019,1246339,Caretech Community Services Ltd,,Adult Social Care Integrated Care,940.76
21/02/2019,1246339,Caretech Community Services Ltd,,Adult Social Care Integrated Care,"5,241.20"
13/03/2019,1246339,Caretech Community Services Ltd,,Adult Social Care Integrated Care,"4,331.40"
13/03/2019,1246339,Caretech Community Services Ltd,,Adult Social Care Integrated Care,"4,331.40"
13/03/2019,1246339,Caretech Community Services Ltd,,Adult Social Care Integrated Care,"16,592.00"
12/01/2019,1246341,Carewatch Care Services Ltd (use,,Adult Social Care Integrated Care,651
12/01/2019,1246341,Carewatch Care Services Ltd (use,,Adult Social Care Integrated Care,"1,736.00"
12/01/2019,1246341,Carewatch Care Services Ltd (use,,Adult Social Care Integrated Care,"2,232.00"
14/02/2019,1246341,Carewatch Care Services Ltd (use,,Adult Social Care Integrated Care,651
14/02/2019,1246341,Carewatch Care Services Ltd (use,,Adult Social Care Integrated Care,"1,612.00"
14/02/2019,1246341,Carewatch Care Services Ltd (use,,Adult Social Care Integrated Care,"1,860.00"
28/03/2019,1246341,Carewatch Care Services Ltd (use,,Adult Social Care Integrated Care,651
28/03/2019,1246341,Carewatch Care Services Ltd (use,,Adult Social Care Integrated Care,"1,736.00"
28/03/2019,1246341,Carewatch Care Services Ltd (use,,Adult Social Care Integrated Care,"2,232.00"
08/01/2019,1246349,Caxton Youth Organisation,B*Distric Council non fee related servi,Adult Social Care Integrated Care,"20,780.00"
08/01/2019,1246349,Caxton Youth Organisation,B*Distric Council non fee related servi,Adult Social Care Integrated Care,"3,321.43"
28/01/2019,1246349,Caxton Youth Organisation,B*Distric Council non fee related servi,Adult Social Care Integrated Care,720
28/01/2019,1246349,Caxton Youth Organisation,B*Distric Council non fee related servi,Adult Social Care Integrated Care,656.25
28/01/2019,1246349,Caxton Youth Organisation,B*Distric Council non fee related servi,Adult Social Care Integrated Care,656.25
28/01/2019,1246349,Caxton Youth Organisation,B*Distric Council non fee related servi,Adult Social Care Integrated Care,882.86
07/01/2019,1246364,Central Recruitment Services Ltd,B*Voluntary-Spot-V Dep-Enhanced - do not u,Adult Social Care Integrated Care,"1,989.09"
07/01/2019,1246364,Central Recruitment Services Ltd,B*Voluntary-Spot-V Dep-Enhanced - do not u,Adult Social Care Integrated Care,"1,260.00"
28/01/2019,1246364,Central Recruitment Services Ltd,B*Voluntary-Spot-V Dep-Enhanced - do not u,Adult Social Care Integrated Care,"1,287.03"
08/02/2019,1246364,Central Recruitment Services Ltd,B*Voluntary-Spot-V Dep-Enhanced - do not u,Adult Social Care Integrated Care,720
22/03/2019,1246364,Central Recruitment Services Ltd,B*Voluntary-Spot-V Dep-Enhanced - do not u,Adult Social Care Integrated Care,"1,008.00"
22/03/2019,1246364,Central Recruitment Services Ltd,B*Voluntary-Spot-V Dep-Enhanced - do not u,Adult Social Care Integrated Care,720
22/03/2019,1246364,Central Recruitment Services Ltd,B*Voluntary-Spot-V Dep-Enhanced - do not u,Adult Social Care Integrated Care,"1,872.08"
26/03/2019,1246364,Central Recruitment Services Ltd,B*Voluntary-Spot-V Dep-Enhanced - do not u,Adult Social Care Integrated Care,540
26/03/2019,1246364,Central Recruitment Services Ltd,B*Voluntary-Spot-V Dep-Enhanced - do not u,Adult Social Care Integrated Care,"1,989.03"
26/03/2019,1246364,Central Recruitment Services Ltd,B*Voluntary-Spot-V Dep-Enhanced - do not u,Adult Social Care Integrated Care,756
28/01/2019,1244166,Choice Care Group,,Adult Social Care Integrated Care,"7,836.00"
21/02/2019,1244166,Choice Care Group,,Adult Social Care Integrated Care,"7,836.00"
13/03/2019,1244166,Choice Care Group,,Adult Social Care Integrated Care,"7,836.00"
28/01/2019,1244167,Choice Support,,Adult Social Care Integrated Care,"8,936.00"
21/02/2019,1244167,Choice Support,,Adult Social Care Integrated Care,"8,936.00"
13/03/2019,1244167,Choice Support,,Adult Social Care Integrated Care,"8,936.00"
28/01/2019,1244197,Clwyd Community Care Ltd,,Adult Social Care Integrated Care,"5,708.28"
21/02/2019,1244197,Clwyd Community Care Ltd,,Adult Social Care Integrated Care,"5,708.28"
13/03/2019,1244197,Clwyd Community Care Ltd,,Adult Social Care Integrated Care,"5,708.28"
28/01/2019,1243457,Cmg Homes Ltd - The Care House,,Adult Social Care Integrated Care,"6,222.20"
28/01/2019,1243457,Cmg Homes Ltd - The Care House,,Adult Social Care Integrated Care,"9,292.60"
21/02/2019,1243457,Cmg Homes Ltd - The Care House,,Adult Social Care Integrated Care,"9,292.60"
21/02/2019,1243457,Cmg Homes Ltd - The Care House,,Adult Social Care Integrated Care,"6,222.20"
13/03/2019,1243457,Cmg Homes Ltd - The Care House,,Adult Social Care Integrated Care,"6,222.20"
13/03/2019,1243457,Cmg Homes Ltd - The Care House,,Adult Social Care Integrated Care,"9,292.60"
28/01/2019,1243458,Cocklebury Farmhouse Homes Ltd,,Adult Social Care Integrated Care,"5,568.00"
28/01/2019,1243458,Cocklebury Farmhouse Homes Ltd,,Adult Social Care Integrated Care,"5,536.00"
28/01/2019,1243458,Cocklebury Farmhouse Homes Ltd,,Adult Social Care Integrated Care,"4,952.00"
28/01/2019,1243458,Cocklebury Farmhouse Homes Ltd,,Adult Social Care Integrated Care,"6,408.00"
28/01/2019,1243458,Cocklebury Farmhouse Homes Ltd,,Adult Social Care Integrated Care,"7,028.00"
21/02/2019,1243458,Cocklebury Farmhouse Homes Ltd,,Adult Social Care Integrated Care,"6,408.00"
21/02/2019,1243458,Cocklebury Farmhouse Homes Ltd,,Adult Social Care Integrated Care,"7,028.00"
21/02/2019,1243458,Cocklebury Farmhouse Homes Ltd,,Adult Social Care Integrated Care,"4,952.00"
21/02/2019,1243458,Cocklebury Farmhouse Homes Ltd,,Adult Social Care Integrated Care,"5,536.00"
21/02/2019,1243458,Cocklebury Farmhouse Homes Ltd,,Adult Social Care Integrated Care,"5,568.00"
13/03/2019,1243458,Cocklebury Farmhouse Homes Ltd,,Adult Social Care Integrated Care,"6,408.00"
13/03/2019,1243458,Cocklebury Farmhouse Homes Ltd,,Adult Social Care Integrated Care,"7,028.00"
13/03/2019,1243458,Cocklebury Farmhouse Homes Ltd,,Adult Social Care Integrated Care,"5,568.00"
13/03/2019,1243458,Cocklebury Farmhouse Homes Ltd,,Adult Social Care Integrated Care,"5,536.00"
13/03/2019,1243458,Cocklebury Farmhouse Homes Ltd,,Adult Social Care Integrated Care,"4,952.00"
28/03/2019,1246600,Community Focus Inclusive Arts,B*Voluntary-Spot-V Dep-Enhanced - do not u,Adult Social Care Integrated Care,"1,620.00"
28/01/2019,1244212,Complete Care London,,Adult Social Care Integrated Care,"6,120.00"
28/01/2019,1244212,Complete Care London,,Adult Social Care Integrated Care,"3,600.00"
21/02/2019,1244212,Complete Care London,,Adult Social Care Integrated Care,"6,120.00"
21/02/2019,1244212,Complete Care London,,Adult Social Care Integrated Care,"3,600.00"
13/03/2019,1244212,Complete Care London,,Adult Social Care Integrated Care,"6,120.00"
13/03/2019,1244212,Complete Care London,,Adult Social Care Integrated Care,"3,600.00"
29/03/2019,1246643,Cygnet Health Care Ltd,,Adult Social Care Integrated Care,"143,934.00"
29/03/2019,1246643,Cygnet Health Care Ltd,,Adult Social Care Integrated Care,"143,934.00"
28/01/2019,1249982,PERSONAL PAYMENTS,,Adult Social Care Integrated Care,"1,400.00"
21/02/2019,1249982,PERSONAL PAYMENTS,,Adult Social Care Integrated Care,"1,400.00"
13/03/2019,1249982,PERSONAL PAYMENTS,,Adult Social Care Integrated Care,"1,400.00"
28/01/2019,1243470,Downing (Chertsey Road) Ltd,,Adult Social Care Integrated Care,"5,971.20"
28/01/2019,1243470,Downing (Chertsey Road) Ltd,,Adult Social Care Integrated Care,"5,971.20"
21/02/2019,1243470,Downing (Chertsey Road) Ltd,,Adult Social Care Integrated Care,"5,971.20"
21/02/2019,1243470,Downing (Chertsey Road) Ltd,,Adult Social Care Integrated Care,"5,971.20"
13/03/2019,1243470,Downing (Chertsey Road) Ltd,,Adult Social Care Integrated Care,"5,971.20"
13/03/2019,1243470,Downing (Chertsey Road) Ltd,,Adult Social Care Integrated Care,"5,971.20"
28/01/2019,1243473,Drs Care Homes Ltd,,Adult Social Care Integrated Care,"3,183.44"
21/02/2019,1243473,Drs Care Homes Ltd,,Adult Social Care Integrated Care,"3,183.44"
13/03/2019,1243473,Drs Care Homes Ltd,,Adult Social Care Integrated Care,"3,183.44"
28/01/2019,1243474,Duckyls Farm Centre,,Adult Social Care Integrated Care,"2,959.12"
21/02/2019,1243474,Duckyls Farm Centre,,Adult Social Care Integrated Care,"2,959.12"
13/03/2019,1243474,Duckyls Farm Centre,,Adult Social Care Integrated Care,"2,959.12"
28/01/2019,1245108,Elysium Healthcare No 2 Ltd T/A,,Adult Social Care Integrated Care,"8,722.20"
21/02/2019,1245108,Elysium Healthcare No 2 Ltd T/A,,Adult Social Care Integrated Care,"8,722.20"
13/03/2019,1245108,Elysium Healthcare No 2 Ltd T/A,,Adult Social Care Integrated Care,"8,722.20"
26/03/2019,1246934,Equal People Mencap (Kensington &,B*Voluntary-Spot-V Dep-Enhanced - do not u,Adult Social Care Integrated Care,630
26/03/2019,1246934,Equal People Mencap (Kensington &,B*Voluntary-Spot-V Dep-Enhanced - do not u,Adult Social Care Integrated Care,504
26/03/2019,1246934,Equal People Mencap (Kensington &,B*Voluntary-Spot-V Dep-Enhanced - do not u,Adult Social Care Integrated Care,630
26/03/2019,1246934,Equal People Mencap (Kensington &,B*Voluntary-Spot-V Dep-Enhanced - do not u,Adult Social Care Integrated Care,603
26/03/2019,1246934,Equal People Mencap (Kensington &,B*Voluntary-Spot-V Dep-Enhanced - do not u,Adult Social Care Integrated Care,504
26/03/2019,1246934,Equal People Mencap (Kensington &,B*Voluntary-Spot-V Dep-Enhanced - do not u,Adult Social Care Integrated Care,504
28/01/2019,1244440,Foster Care Agency Ltd,,Adult Social Care Integrated Care,"4,116.00"
21/02/2019,1244440,Foster Care Agency Ltd,,Adult Social Care Integrated Care,"4,116.00"
13/03/2019,1244440,Foster Care Agency Ltd,,Adult Social Care Integrated Care,"4,116.00"
28/03/2019,D000000016,GENERAL,Payment to Government Departments,Adult Social Care Integrated Care,871.88
28/03/2019,D000000016,GENERAL,Payment to Government Departments,Adult Social Care Integrated Care,"1,443.75"
29/03/2019,D000000016,GENERAL,B*Distric Council non fee related servi,Adult Social Care Integrated Care,"2,250.00"
29/03/2019,D000000016,GENERAL,B*Distric Council non fee related servi,Adult Social Care Integrated Care,"3,535.72"
28/01/2019,1243485,Grove Care Partnership Ltd,,Adult Social Care Integrated Care,"8,051.84"
21/02/2019,1243485,Grove Care Partnership Ltd,,Adult Social Care Integrated Care,"8,051.84"
13/03/2019,1243485,Grove Care Partnership Ltd,,Adult Social Care Integrated Care,"8,051.84"
28/01/2019,1244549,HF Trust Ltd,,Adult Social Care Integrated Care,"4,672.16"
21/02/2019,1244549,HF Trust Ltd,,Adult Social Care Integrated Care,"4,672.16"
13/03/2019,1244549,HF Trust Ltd,,Adult Social Care Integrated Care,"4,672.16"
28/01/2019,1244515,Hampshire Autistic Society,,Adult Social Care Integrated Care,"5,307.08"
21/02/2019,1244515,Hampshire Autistic Society,,Adult Social Care Integrated Care,"5,307.08"
13/03/2019,1244515,Hampshire Autistic Society,,Adult Social Care Integrated Care,"5,307.08"
28/01/2019,1243490,Haydon Park Lodge Ltd,,Adult Social Care Integrated Care,"4,000.00"
21/02/2019,1243490,Haydon Park Lodge Ltd,,Adult Social Care Integrated Care,"4,000.00"
13/03/2019,1243490,Haydon Park Lodge Ltd,,Adult Social Care Integrated Care,"4,000.00"
10/01/2019,1247257,Health Vision Uk,,Adult Social Care Integrated Care,"2,762.77"
12/01/2019,1247257,Health Vision Uk,,Adult Social Care Integrated Care,992
08/02/2019,1247257,Health Vision Uk,,Adult Social Care Integrated Care,"2,762.20"
13/02/2019,1247257,Health Vision Uk,,Adult Social Care Integrated Care,992
06/03/2019,1247257,Health Vision Uk,,Adult Social Care Integrated Care,"2,754.46"
08/03/2019,1247257,Health Vision Uk,,Adult Social Care Integrated Care,992
28/01/2019,1245125,Heathcotes (Southern) Ltd,,Adult Social Care Integrated Care,"7,935.20"
21/02/2019,1245125,Heathcotes (Southern) Ltd,,Adult Social Care Integrated Care,"7,935.20"
13/03/2019,1245125,Heathcotes (Southern) Ltd,,Adult Social Care Integrated Care,"7,935.20"
21/01/2019,1250107,PERSONAL PAYMENTS,Childrens' Social Care - Personal Budget,Adult Social Care Integrated Care,"1,000.00"
15/02/2019,1250107,PERSONAL PAYMENTS,Childrens' Social Care - Personal Budget,Adult Social Care Integrated Care,"1,000.00"
15/03/2019,1250107,PERSONAL PAYMENTS,Childrens' Social Care - Personal Budget,Adult Social Care Integrated Care,"1,000.00"
07/02/2019,1247526,Integrity Care and Support Ltd,B*Voluntary-Spot-V Dep-Enhanced - do not u,Adult Social Care Integrated Care,668.52
07/02/2019,1247526,Integrity Care and Support Ltd,B*Voluntary-Spot-V Dep-Enhanced - do not u,Adult Social Care Integrated Care,668.52
07/02/2019,1247526,Integrity Care and Support Ltd,B*Voluntary-Spot-V Dep-Enhanced - do not u,Adult Social Care Integrated Care,594.24
07/02/2019,1247526,Integrity Care and Support Ltd,B*Voluntary-Spot-V Dep-Enhanced - do not u,Adult Social Care Integrated Care,947.07
07/02/2019,1247526,Integrity Care and Support Ltd,B*Voluntary-Spot-V Dep-Enhanced - do not u,Adult Social Care Integrated Care,742.8
07/02/2019,1247526,Integrity Care and Support Ltd,B*Voluntary-Spot-V Dep-Enhanced - do not u,Adult Social Care Integrated Care,872.79
07/02/2019,1247526,Integrity Care and Support Ltd,B*Voluntary-Spot-V Dep-Enhanced - do not u,Adult Social Care Integrated Care,"1,114.20"
05/03/2019,1247526,Integrity Care and Support Ltd,B*Voluntary-Spot-V Dep-Enhanced - do not u,Adult Social Care Integrated Care,594.24
05/03/2019,1247526,Integrity Care and Support Ltd,B*Voluntary-Spot-V Dep-Enhanced - do not u,Adult Social Care Integrated Care,891.36
22/03/2019,1247526,Integrity Care and Support Ltd,B*Voluntary-Spot-V Dep-Enhanced - do not u,Adult Social Care Integrated Care,"1,039.92"
22/03/2019,1247526,Integrity Care and Support Ltd,B*Voluntary-Spot-V Dep-Enhanced - do not u,Adult Social Care Integrated Care,835.65
28/01/2019,1247598,Kisimul Group Ltd,,Adult Social Care Integrated Care,"13,955.32"
21/02/2019,1247598,Kisimul Group Ltd,,Adult Social Care Integrated Care,"13,955.32"
13/03/2019,1247598,Kisimul Group Ltd,,Adult Social Care Integrated Care,"13,955.32"
28/01/2019,1244719,Larche London,,Adult Social Care Integrated Care,544
28/01/2019,1247630,Leonard Cheshire Foundation,,Adult Social Care Integrated Care,"6,533.99"
28/01/2019,1243503,Life Opportunities Trust,,Adult Social Care Integrated Care,"3,399.80"
28/01/2019,1243503,Life Opportunities Trust,,Adult Social Care Integrated Care,"3,399.00"
28/01/2019,1243503,Life Opportunities Trust,,Adult Social Care Integrated Care,"5,176.00"
28/01/2019,1243503,Life Opportunities Trust,,Adult Social Care Integrated Care,"3,399.00"
28/01/2019,1243503,Life Opportunities Trust,,Adult Social Care Integrated Care,"6,095.60"
28/01/2019,1243503,Life Opportunities Trust,,Adult Social Care Integrated Care,"4,663.00"
28/01/2019,1243503,Life Opportunities Trust,,Adult Social Care Integrated Care,"6,199.20"
21/02/2019,1243503,Life Opportunities Trust,,Adult Social Care Integrated Care,"5,176.00"
21/02/2019,1243503,Life Opportunities Trust,,Adult Social Care Integrated Care,"6,095.60"
21/02/2019,1243503,Life Opportunities Trust,,Adult Social Care Integrated Care,"4,663.00"
21/02/2019,1243503,Life Opportunities Trust,,Adult Social Care Integrated Care,"6,199.20"
21/02/2019,1243503,Life Opportunities Trust,,Adult Social Care Integrated Care,"3,399.80"
21/02/2019,1243503,Life Opportunities Trust,,Adult Social Care Integrated Care,"3,399.00"
21/02/2019,1243503,Life Opportunities Trust,,Adult Social Care Integrated Care,"3,399.00"
13/03/2019,1243503,Life Opportunities Trust,,Adult Social Care Integrated Care,"5,176.00"
13/03/2019,1243503,Life Opportunities Trust,,Adult Social Care Integrated Care,"3,399.00"
13/03/2019,1243503,Life Opportunities Trust,,Adult Social Care Integrated Care,"6,095.60"
13/03/2019,1243503,Life Opportunities Trust,,Adult Social Care Integrated Care,"4,663.00"
13/03/2019,1243503,Life Opportunities Trust,,Adult Social Care Integrated Care,"6,199.20"
13/03/2019,1243503,Life Opportunities Trust,,Adult Social Care Integrated Care,"3,399.00"
13/03/2019,1243503,Life Opportunities Trust,,Adult Social Care Integrated Care,"3,399.80"
28/01/2019,1243506,Lifeways Community Care Ltd,,Adult Social Care Integrated Care,"11,633.00"
28/01/2019,1243506,Lifeways Community Care Ltd,,Adult Social Care Integrated Care,"6,760.88"
21/02/2019,1243506,Lifeways Community Care Ltd,,Adult Social Care Integrated Care,"11,633.00"
21/02/2019,1243506,Lifeways Community Care Ltd,,Adult Social Care Integrated Care,"6,760.88"
13/03/2019,1243506,Lifeways Community Care Ltd,,Adult Social Care Integrated Care,"11,633.00"
13/03/2019,1243506,Lifeways Community Care Ltd,,Adult Social Care Integrated Care,"6,760.88"
28/01/2019,1244762,Livability,,Adult Social Care Integrated Care,"6,180.00"
21/02/2019,1244762,Livability,,Adult Social Care Integrated Care,"6,180.00"
13/03/2019,1244762,Livability,,Adult Social Care Integrated Care,"6,180.00"
10/01/2019,1247650,London Care Ltd,,Adult Social Care Integrated Care,525.69
10/01/2019,1247650,London Care Ltd,,Adult Social Care Integrated Care,"1,025.42"
10/01/2019,1247650,London Care Ltd,,Adult Social Care Integrated Care,"1,252.30"
08/02/2019,1247650,London Care Ltd,,Adult Social Care Integrated Care,"1,897.22"
08/02/2019,1247650,London Care Ltd,,Adult Social Care Integrated Care,"1,742.04"
08/02/2019,1247650,London Care Ltd,,Adult Social Care Integrated Care,"2,285.69"
16/02/2019,1247650,London Care Ltd,,Adult Social Care Integrated Care,930
16/02/2019,1247650,London Care Ltd,,Adult Social Care Integrated Care,930
19/02/2019,1247650,London Care Ltd,,Adult Social Care Integrated Care,930
19/02/2019,1247650,London Care Ltd,,Adult Social Care Integrated Care,945.5
15/03/2019,1247650,London Care Ltd,,Adult Social Care Integrated Care,"1,503.44"
15/03/2019,1247650,London Care Ltd,,Adult Social Care Integrated Care,"1,703.35"
15/03/2019,1247650,London Care Ltd,,Adult Social Care Integrated Care,"2,210.08"
28/01/2019,1247651,London Care Partnership Ltd,,Adult Social Care Integrated Care,"8,983.64"
28/01/2019,1247651,London Care Partnership Ltd,,Adult Social Care Integrated Care,"8,348.56"
21/02/2019,1247651,London Care Partnership Ltd,,Adult Social Care Integrated Care,"8,983.64"
21/02/2019,1247651,London Care Partnership Ltd,,Adult Social Care Integrated Care,"8,348.56"
13/03/2019,1247651,London Care Partnership Ltd,,Adult Social Care Integrated Care,"8,983.64"
13/03/2019,1247651,London Care Partnership Ltd,,Adult Social Care Integrated Care,"8,348.56"
28/01/2019,1247656,London Cyrenians Housing Ltd,,Adult Social Care Integrated Care,"14,400.00"
28/01/2019,1247656,London Cyrenians Housing Ltd,,Adult Social Care Integrated Care,"14,280.00"
21/02/2019,1247656,London Cyrenians Housing Ltd,,Adult Social Care Integrated Care,"14,280.00"
21/02/2019,1247656,London Cyrenians Housing Ltd,,Adult Social Care Integrated Care,"14,400.00"
13/03/2019,1247656,London Cyrenians Housing Ltd,,Adult Social Care Integrated Care,"14,400.00"
13/03/2019,1247656,London Cyrenians Housing Ltd,,Adult Social Care Integrated Care,"14,280.00"
09/01/2019,1247846,London Vip Cars,Payments to Transport Operators,Adult Social Care Integrated Care,"5,837.00"
05/02/2019,1247846,London Vip Cars,Payments to Transport Operators,Adult Social Care Integrated Care,"3,953.00"
28/01/2019,1245144,Methodist Homes For The Aged,,Adult Social Care Integrated Care,"3,017.00"
21/02/2019,1245144,Methodist Homes For The Aged,,Adult Social Care Integrated Care,"3,017.00"
13/03/2019,1245144,Methodist Homes For The Aged,,Adult Social Care Integrated Care,"3,017.00"
28/01/2019,1247933,Minster Pathways Ltd,,Adult Social Care Integrated Care,"3,504.00"
28/01/2019,1247933,Minster Pathways Ltd,,Adult Social Care Integrated Care,"1,248.00"
21/02/2019,1247933,Minster Pathways Ltd,,Adult Social Care Integrated Care,"3,504.00"
21/02/2019,1247933,Minster Pathways Ltd,,Adult Social Care Integrated Care,"1,248.00"
13/03/2019,1247933,Minster Pathways Ltd,,Adult Social Care Integrated Care,"1,248.00"
13/03/2019,1247933,Minster Pathways Ltd,,Adult Social Care Integrated Care,"3,504.00"
28/01/2019,1250358,PERSONAL PAYMENTS,,Adult Social Care Integrated Care,"1,056.36"
21/02/2019,1250358,PERSONAL PAYMENTS,,Adult Social Care Integrated Care,"1,056.36"
13/03/2019,1250358,PERSONAL PAYMENTS,,Adult Social Care Integrated Care,"1,056.36"
02/01/2019,1244905,Nas Services Ltd (Residential),B*Voluntary-Spot-V Dep-Enhanced - do not u,Adult Social Care Integrated Care,"1,418.44"
02/01/2019,1244905,Nas Services Ltd (Residential),B*Voluntary-Spot-V Dep-Enhanced - do not u,Adult Social Care Integrated Care,"1,247.28"
28/01/2019,1244905,Nas Services Ltd (Residential),,Adult Social Care Integrated Care,"4,657.72"
28/01/2019,1244905,Nas Services Ltd (Residential),,Adult Social Care Integrated Care,"5,698.56"
28/01/2019,1244905,Nas Services Ltd (Residential),,Adult Social Care Integrated Care,"4,058.88"
28/01/2019,1244905,Nas Services Ltd (Residential),,Adult Social Care Integrated Care,"9,629.48"
28/01/2019,1244905,Nas Services Ltd (Residential),,Adult Social Care Integrated Care,"3,211.00"
28/01/2019,1244905,Nas Services Ltd (Residential),,Adult Social Care Integrated Care,"3,956.40"
28/01/2019,1244905,Nas Services Ltd (Residential),,Adult Social Care Integrated Care,"176,280.48"
28/01/2019,1244905,Nas Services Ltd (Residential),,Adult Social Care Integrated Care,"3,379.32"
28/01/2019,1244905,Nas Services Ltd (Residential),,Adult Social Care Integrated Care,"7,199.28"
28/01/2019,1244905,Nas Services Ltd (Residential),,Adult Social Care Integrated Care,"6,944.20"
28/01/2019,1244905,Nas Services Ltd (Residential),,Adult Social Care Integrated Care,"10,326.40"
28/01/2019,1244905,Nas Services Ltd (Residential),,Adult Social Care Integrated Care,"9,360.68"
28/01/2019,1244905,Nas Services Ltd (Residential),,Adult Social Care Integrated Care,"24,764.56"
28/01/2019,1244905,Nas Services Ltd (Residential),,Adult Social Care Integrated Care,"12,209.96"
28/01/2019,1244905,Nas Services Ltd (Residential),,Adult Social Care Integrated Care,"3,816.60"
28/01/2019,1244905,Nas Services Ltd (Residential),,Adult Social Care Integrated Care,"4,341.42"
28/01/2019,1244905,Nas Services Ltd (Residential),Client Contributions - Residential OLA,Adult Social Care Integrated Care,"2,445.00"
28/01/2019,1244905,Nas Services Ltd (Residential),,Adult Social Care Integrated Care,"2,745.50"
21/02/2019,1244905,Nas Services Ltd (Residential),,Adult Social Care Integrated Care,"7,199.28"
21/02/2019,1244905,Nas Services Ltd (Residential),,Adult Social Care Integrated Care,"6,944.20"
21/02/2019,1244905,Nas Services Ltd (Residential),,Adult Social Care Integrated Care,"10,326.40"
21/02/2019,1244905,Nas Services Ltd (Residential),,Adult Social Care Integrated Care,"3,816.60"
21/02/2019,1244905,Nas Services Ltd (Residential),,Adult Social Care Integrated Care,"9,360.68"
21/02/2019,1244905,Nas Services Ltd (Residential),,Adult Social Care Integrated Care,"24,764.56"
21/02/2019,1244905,Nas Services Ltd (Residential),,Adult Social Care Integrated Care,"12,209.96"
21/02/2019,1244905,Nas Services Ltd (Residential),,Adult Social Care Integrated Care,"4,657.72"
21/02/2019,1244905,Nas Services Ltd (Residential),,Adult Social Care Integrated Care,"3,956.40"
21/02/2019,1244905,Nas Services Ltd (Residential),,Adult Social Care Integrated Care,"3,211.00"
21/02/2019,1244905,Nas Services Ltd (Residential),,Adult Social Care Integrated Care,"9,629.48"
21/02/2019,1244905,Nas Services Ltd (Residential),,Adult Social Care Integrated Care,"4,058.88"
21/02/2019,1244905,Nas Services Ltd (Residential),,Adult Social Care Integrated Care,"5,698.56"
21/02/2019,1244905,Nas Services Ltd (Residential),,Adult Social Care Integrated Care,"7,400.08"
21/02/2019,1244905,Nas Services Ltd (Residential),,Adult Social Care Integrated Care,"3,379.32"
28/02/2019,1244905,Nas Services Ltd (Residential),B*Voluntary-Spot-V Dep-Enhanced - do not u,Adult Social Care Integrated Care,"1,418.44"
11/03/2019,1244905,Nas Services Ltd (Residential),B*Voluntary-Spot-V Dep-Enhanced - do not u,Adult Social Care Integrated Care,"1,418.44"
13/03/2019,1244905,Nas Services Ltd (Residential),,Adult Social Care Integrated Care,"3,211.00"
13/03/2019,1244905,Nas Services Ltd (Residential),,Adult Social Care Integrated Care,"7,400.08"
13/03/2019,1244905,Nas Services Ltd (Residential),,Adult Social Care Integrated Care,"3,379.32"
13/03/2019,1244905,Nas Services Ltd (Residential),,Adult Social Care Integrated Care,"7,199.28"
13/03/2019,1244905,Nas Services Ltd (Residential),,Adult Social Care Integrated Care,"6,944.20"
13/03/2019,1244905,Nas Services Ltd (Residential),,Adult Social Care Integrated Care,"10,326.40"
13/03/2019,1244905,Nas Services Ltd (Residential),,Adult Social Care Integrated Care,"9,360.68"
13/03/2019,1244905,Nas Services Ltd (Residential),,Adult Social Care Integrated Care,"24,764.56"
13/03/2019,1244905,Nas Services Ltd (Residential),,Adult Social Care Integrated Care,"12,209.96"
13/03/2019,1244905,Nas Services Ltd (Residential),,Adult Social Care Integrated Care,"3,816.60"
13/03/2019,1244905,Nas Services Ltd (Residential),,Adult Social Care Integrated Care,"4,657.72"
13/03/2019,1244905,Nas Services Ltd (Residential),,Adult Social Care Integrated Care,"4,058.88"
13/03/2019,1244905,Nas Services Ltd (Residential),,Adult Social Care Integrated Care,"9,629.48"
13/03/2019,1244905,Nas Services Ltd (Residential),,Adult Social Care Integrated Care,"3,956.40"
13/03/2019,1244905,Nas Services Ltd (Residential),,Adult Social Care Integrated Care,"5,698.56"
02/01/2019,1244906,Nas Services Ltd (Use 3009018),B*Voluntary-Spot-V Dep-Enhanced - do not u,Adult Social Care Integrated Care,"2,400.75"
02/01/2019,1244906,Nas Services Ltd (Use 3009018),B*Voluntary-Spot-V Dep-Enhanced - do not u,Adult Social Care Integrated Care,"4,879.20"
02/01/2019,1244906,Nas Services Ltd (Use 3009018),B*Voluntary-Spot-V Dep-Enhanced - do not u,Adult Social Care Integrated Care,888.56
02/01/2019,1244906,Nas Services Ltd (Use 3009018),B*Voluntary-Spot-V Dep-Enhanced - do not u,Adult Social Care Integrated Care,"2,116.60"
02/01/2019,1244906,Nas Services Ltd (Use 3009018),B*Voluntary-Spot-V Dep-Enhanced - do not u,Adult Social Care Integrated Care,"5,243.80"
02/01/2019,1244906,Nas Services Ltd (Use 3009018),B*Voluntary-Spot-V Dep-Enhanced - do not u,Adult Social Care Integrated Care,"5,243.80"
02/01/2019,1244906,Nas Services Ltd (Use 3009018),B*Voluntary-Spot-V Dep-Enhanced - do not u,Adult Social Care Integrated Care,"1,772.04"
02/01/2019,1244906,Nas Services Ltd (Use 3009018),B*Voluntary-Spot-V Dep-Enhanced - do not u,Adult Social Care Integrated Care,"1,744.52"
02/01/2019,1244906,Nas Services Ltd (Use 3009018),B*Voluntary-Spot-V Dep-Enhanced - do not u,Adult Social Care Integrated Care,"2,927.52"
02/01/2019,1244906,Nas Services Ltd (Use 3009018),B*Voluntary-Spot-V Dep-Enhanced - do not u,Adult Social Care Integrated Care,"1,124.96"
16/01/2019,1244906,Nas Services Ltd (Use 3009018),B*Voluntary-Spot-V Dep-Enhanced - do not u,Adult Social Care Integrated Care,"1,772.04"
16/01/2019,1244906,Nas Services Ltd (Use 3009018),B*Voluntary-Spot-V Dep-Enhanced - do not u,Adult Social Care Integrated Care,"1,772.04"
16/01/2019,1244906,Nas Services Ltd (Use 3009018),B*Voluntary-Spot-V Dep-Enhanced - do not u,Adult Social Care Integrated Care,"1,772.04"
16/01/2019,1244906,Nas Services Ltd (Use 3009018),B*Voluntary-Spot-V Dep-Enhanced - do not u,Adult Social Care Integrated Care,"3,201.00"
16/01/2019,1244906,Nas Services Ltd (Use 3009018),B*Voluntary-Spot-V Dep-Enhanced - do not u,Adult Social Care Integrated Care,"2,027.52"
16/01/2019,1244906,Nas Services Ltd (Use 3009018),B*Voluntary-Spot-V Dep-Enhanced - do not u,Adult Social Care Integrated Care,"1,772.04"
22/01/2019,1244906,Nas Services Ltd (Use 3009018),B*Voluntary-Spot-V Dep-Enhanced - do not u,Adult Social Care Integrated Care,"1,090.20"
22/01/2019,1244906,Nas Services Ltd (Use 3009018),B*Voluntary-Spot-V Dep-Enhanced - do not u,Adult Social Care Integrated Care,"1,124.96"
22/01/2019,1244906,Nas Services Ltd (Use 3009018),B*Voluntary-Spot-V Dep-Enhanced - do not u,Adult Social Care Integrated Care,"4,879.20"
22/01/2019,1244906,Nas Services Ltd (Use 3009018),B*Voluntary-Spot-V Dep-Enhanced - do not u,Adult Social Care Integrated Care,888.56
22/01/2019,1244906,Nas Services Ltd (Use 3009018),B*Voluntary-Spot-V Dep-Enhanced - do not u,Adult Social Care Integrated Care,"5,243.80"
22/01/2019,1244906,Nas Services Ltd (Use 3009018),B*Voluntary-Spot-V Dep-Enhanced - do not u,Adult Social Care Integrated Care,"1,646.92"
22/01/2019,1244906,Nas Services Ltd (Use 3009018),B*Voluntary-Spot-V Dep-Enhanced - do not u,Adult Social Care Integrated Care,"5,243.80"
22/01/2019,1244906,Nas Services Ltd (Use 3009018),B*Voluntary-Spot-V Dep-Enhanced - do not u,Adult Social Care Integrated Care,"1,646.92"
08/02/2019,1244906,Nas Services Ltd (Use 3009018),B*Voluntary-Spot-V Dep-Enhanced - do not u,Adult Social Care Integrated Care,"1,124.96"
08/02/2019,1244906,Nas Services Ltd (Use 3009018),B*Voluntary-Spot-V Dep-Enhanced - do not u,Adult Social Care Integrated Care,"3,201.00"
08/02/2019,1244906,Nas Services Ltd (Use 3009018),B*Voluntary-Spot-V Dep-Enhanced - do not u,Adult Social Care Integrated Care,"4,879.20"
08/02/2019,1244906,Nas Services Ltd (Use 3009018),B*Voluntary-Spot-V Dep-Enhanced - do not u,Adult Social Care Integrated Care,"5,243.80"
08/02/2019,1244906,Nas Services Ltd (Use 3009018),B*Voluntary-Spot-V Dep-Enhanced - do not u,Adult Social Care Integrated Care,"5,243.80"
08/02/2019,1244906,Nas Services Ltd (Use 3009018),B*Voluntary-Spot-V Dep-Enhanced - do not u,Adult Social Care Integrated Care,"1,744.52"
08/02/2019,1244906,Nas Services Ltd (Use 3009018),B*Voluntary-Spot-V Dep-Enhanced - do not u,Adult Social Care Integrated Care,"5,243.80"
08/02/2019,1244906,Nas Services Ltd (Use 3009018),B*Voluntary-Spot-V Dep-Enhanced - do not u,Adult Social Care Integrated Care,"3,201.00"
08/02/2019,1244906,Nas Services Ltd (Use 3009018),B*Voluntary-Spot-V Dep-Enhanced - do not u,Adult Social Care Integrated Care,"1,772.04"
08/02/2019,1244906,Nas Services Ltd (Use 3009018),B*Voluntary-Spot-V Dep-Enhanced - do not u,Adult Social Care Integrated Care,"1,772.04"
08/02/2019,1244906,Nas Services Ltd (Use 3009018),B*Voluntary-Spot-V Dep-Enhanced - do not u,Adult Social Care Integrated Care,"2,927.52"
08/02/2019,1244906,Nas Services Ltd (Use 3009018),B*Voluntary-Spot-V Dep-Enhanced - do not u,Adult Social Care Integrated Care,"1,124.96"
08/02/2019,1244906,Nas Services Ltd (Use 3009018),B*Voluntary-Spot-V Dep-Enhanced - do not u,Adult Social Care Integrated Care,"4,879.20"
08/02/2019,1244906,Nas Services Ltd (Use 3009018),B*Voluntary-Spot-V Dep-Enhanced - do not u,Adult Social Care Integrated Care,"5,243.80"
08/02/2019,1244906,Nas Services Ltd (Use 3009018),B*Voluntary-Spot-V Dep-Enhanced - do not u,Adult Social Care Integrated Care,"2,927.52"
08/02/2019,1244906,Nas Services Ltd (Use 3009018),B*Voluntary-Spot-V Dep-Enhanced - do not u,Adult Social Care Integrated Care,"2,927.52"
28/02/2019,1244906,Nas Services Ltd (Use 3009018),B*Voluntary-Spot-V Dep-Enhanced - do not u,Adult Social Care Integrated Care,"2,027.52"
05/03/2019,1244906,Nas Services Ltd (Use 3009018),B*Voluntary-Spot-V Dep-Enhanced - do not u,Adult Social Care Integrated Care,"1,744.52"
05/03/2019,1244906,Nas Services Ltd (Use 3009018),B*Voluntary-Spot-V Dep-Enhanced - do not u,Adult Social Care Integrated Care,"2,027.52"
05/03/2019,1244906,Nas Services Ltd (Use 3009018),B*Voluntary-Spot-V Dep-Enhanced - do not u,Adult Social Care Integrated Care,"1,772.04"
05/03/2019,1244906,Nas Services Ltd (Use 3009018),B*Voluntary-Spot-V Dep-Enhanced - do not u,Adult Social Care Integrated Care,"4,879.20"
05/03/2019,1244906,Nas Services Ltd (Use 3009018),B*Voluntary-Spot-V Dep-Enhanced - do not u,Adult Social Care Integrated Care,"3,201.00"
05/03/2019,1244906,Nas Services Ltd (Use 3009018),B*Voluntary-Spot-V Dep-Enhanced - do not u,Adult Social Care Integrated Care,"5,243.80"
05/03/2019,1244906,Nas Services Ltd (Use 3009018),B*Voluntary-Spot-V Dep-Enhanced - do not u,Adult Social Care Integrated Care,"2,927.52"
05/03/2019,1244906,Nas Services Ltd (Use 3009018),B*Voluntary-Spot-V Dep-Enhanced - do not u,Adult Social Care Integrated Care,"5,243.80"
05/03/2019,1244906,Nas Services Ltd (Use 3009018),B*Voluntary-Spot-V Dep-Enhanced - do not u,Adult Social Care Integrated Care,"1,124.96"
22/03/2019,1244906,Nas Services Ltd (Use 3009018),B*Voluntary-Spot-V Dep-Enhanced - do not u,Adult Social Care Integrated Care,"1,067.00"
22/03/2019,1244906,Nas Services Ltd (Use 3009018),B*Voluntary-Spot-V Dep-Enhanced - do not u,Adult Social Care Integrated Care,"2,027.52"
28/01/2019,1247990,National Society For Epilepsy,,Adult Social Care Integrated Care,"9,904.84"
21/02/2019,1247990,National Society For Epilepsy,,Adult Social Care Integrated Care,"9,904.84"
13/03/2019,1247990,National Society For Epilepsy,,Adult Social Care Integrated Care,"9,904.84"
28/01/2019,1245157,Nevisbridge Ltd T/A Manor Care,,Adult Social Care Integrated Care,"4,033.16"
21/02/2019,1245157,Nevisbridge Ltd T/A Manor Care,,Adult Social Care Integrated Care,"4,033.16"
13/03/2019,1245157,Nevisbridge Ltd T/A Manor Care,,Adult Social Care Integrated Care,"4,033.16"
28/01/2019,1247147,Norwood Schools Ltd,,Adult Social Care Integrated Care,"4,011.43"
28/01/2019,1247147,Norwood Schools Ltd,,Adult Social Care Integrated Care,"5,998.48"
28/01/2019,1247147,Norwood Schools Ltd,,Adult Social Care Integrated Care,"8,297.36"
28/01/2019,1247147,Norwood Schools Ltd,,Adult Social Care Integrated Care,"5,253.52"
28/01/2019,1247147,Norwood Schools Ltd,,Adult Social Care Integrated Care,"8,758.72"
28/01/2019,1247147,Norwood Schools Ltd,,Adult Social Care Integrated Care,"6,755.08"
21/02/2019,1247147,Norwood Schools Ltd,,Adult Social Care Integrated Care,"8,297.36"
21/02/2019,1247147,Norwood Schools Ltd,,Adult Social Care Integrated Care,"5,998.48"
21/02/2019,1247147,Norwood Schools Ltd,,Adult Social Care Integrated Care,"5,253.52"
21/02/2019,1247147,Norwood Schools Ltd,,Adult Social Care Integrated Care,"8,758.72"
21/02/2019,1247147,Norwood Schools Ltd,,Adult Social Care Integrated Care,"6,755.08"
13/03/2019,1247147,Norwood Schools Ltd,,Adult Social Care Integrated Care,"5,998.48"
13/03/2019,1247147,Norwood Schools Ltd,,Adult Social Care Integrated Care,"8,297.36"
13/03/2019,1247147,Norwood Schools Ltd,,Adult Social Care Integrated Care,"5,253.52"
13/03/2019,1247147,Norwood Schools Ltd,,Adult Social Care Integrated Care,"8,758.72"
13/03/2019,1247147,Norwood Schools Ltd,,Adult Social Care Integrated Care,"6,755.08"
28/01/2019,1243520,Oakview Care (Berkshire) Ltd,,Adult Social Care Integrated Care,"6,383.36"
21/02/2019,1243520,Oakview Care (Berkshire) Ltd,,Adult Social Care Integrated Care,"6,383.36"
13/03/2019,1243520,Oakview Care (Berkshire) Ltd,,Adult Social Care Integrated Care,"6,383.36"
08/01/2019,1248241,One Transport Ltd,B* MMA08 university diploma/certificate fees,Adult Social Care Integrated Care,"3,145.00"
21/01/2019,1248241,One Transport Ltd,Payments to Transport Operators,Adult Social Care Integrated Care,"2,943.00"
28/01/2019,1248241,One Transport Ltd,Payments to Transport Operators,Adult Social Care Integrated Care,"3,238.00"
18/02/2019,1248241,One Transport Ltd,Payments to Transport Operators,Adult Social Care Integrated Care,"2,519.00"
18/03/2019,1248241,One Transport Ltd,Payments to Transport Operators,Adult Social Care Integrated Care,"3,595.00"
17/01/2019,1248252,Origin Housing Ltd,B*Voluntary-Spot-V Dep-Enhanced - do not u,Adult Social Care Integrated Care,640
17/01/2019,1248252,Origin Housing Ltd,B*Voluntary-Spot-V Dep-Enhanced - do not u,Adult Social Care Integrated Care,656
17/01/2019,1248252,Origin Housing Ltd,B*Voluntary-Spot-V Dep-Enhanced - do not u,Adult Social Care Integrated Care,800
17/01/2019,1248252,Origin Housing Ltd,B*Voluntary-Spot-V Dep-Enhanced - do not u,Adult Social Care Integrated Care,640
17/01/2019,1248252,Origin Housing Ltd,B*Voluntary-Spot-V Dep-Enhanced - do not u,Adult Social Care Integrated Care,560
17/01/2019,1248252,Origin Housing Ltd,B*Voluntary-Spot-V Dep-Enhanced - do not u,Adult Social Care Integrated Care,640
17/01/2019,1248252,Origin Housing Ltd,B*Voluntary-Spot-V Dep-Enhanced - do not u,Adult Social Care Integrated Care,560
17/01/2019,1248252,Origin Housing Ltd,B*Voluntary-Spot-V Dep-Enhanced - do not u,Adult Social Care Integrated Care,640
17/01/2019,1248252,Origin Housing Ltd,B*Voluntary-Spot-V Dep-Enhanced - do not u,Adult Social Care Integrated Care,560
17/01/2019,1248252,Origin Housing Ltd,B*Voluntary-Spot-V Dep-Enhanced - do not u,Adult Social Care Integrated Care,640
17/01/2019,1248252,Origin Housing Ltd,B*Voluntary-Spot-V Dep-Enhanced - do not u,Adult Social Care Integrated Care,560
17/01/2019,1248252,Origin Housing Ltd,B*Voluntary-Spot-V Dep-Enhanced - do not u,Adult Social Care Integrated Care,640
17/01/2019,1248252,Origin Housing Ltd,B*Voluntary-Spot-V Dep-Enhanced - do not u,Adult Social Care Integrated Care,640
19/02/2019,1248252,Origin Housing Ltd,B*Voluntary-Spot-V Dep-Enhanced - do not u,Adult Social Care Integrated Care,640
28/01/2019,1243524,Ormsby Lodge,,Adult Social Care Integrated Care,"3,379.76"
28/01/2019,1243524,Ormsby Lodge,,Adult Social Care Integrated Care,936
21/02/2019,1243524,Ormsby Lodge,,Adult Social Care Integrated Care,936
21/02/2019,1243524,Ormsby Lodge,,Adult Social Care Integrated Care,"3,379.76"
13/03/2019,1243524,Ormsby Lodge,,Adult Social Care Integrated Care,"3,379.76"
13/03/2019,1243524,Ormsby Lodge,,Adult Social Care Integrated Care,936
28/01/2019,1245005,Outlook Care,,Adult Social Care Integrated Care,"1,744.80"
28/01/2019,1245005,Outlook Care,,Adult Social Care Integrated Care,"2,146.88"
28/01/2019,1245005,Outlook Care,,Adult Social Care Integrated Care,840
28/01/2019,1245005,Outlook Care,,Adult Social Care Integrated Care,"1,337.68"
28/01/2019,1245005,Outlook Care,,Adult Social Care Integrated Care,"2,146.88"
28/01/2019,1245005,Outlook Care,,Adult Social Care Integrated Care,"2,146.88"
28/01/2019,1245005,Outlook Care,,Adult Social Care Integrated Care,"1,337.68"
21/02/2019,1245005,Outlook Care,,Adult Social Care Integrated Care,"1,337.68"
21/02/2019,1245005,Outlook Care,,Adult Social Care Integrated Care,"2,146.88"
21/02/2019,1245005,Outlook Care,,Adult Social Care Integrated Care,"2,146.88"
21/02/2019,1245005,Outlook Care,,Adult Social Care Integrated Care,"1,337.68"
21/02/2019,1245005,Outlook Care,,Adult Social Care Integrated Care,840
21/02/2019,1245005,Outlook Care,,Adult Social Care Integrated Care,"1,744.80"
21/02/2019,1245005,Outlook Care,,Adult Social Care Integrated Care,"2,146.88"
13/03/2019,1245005,Outlook Care,,Adult Social Care Integrated Care,"2,146.88"
13/03/2019,1245005,Outlook Care,,Adult Social Care Integrated Care,"1,337.68"
13/03/2019,1245005,Outlook Care,,Adult Social Care Integrated Care,"2,146.88"
13/03/2019,1245005,Outlook Care,,Adult Social Care Integrated Care,"1,337.68"
13/03/2019,1245005,Outlook Care,,Adult Social Care Integrated Care,"1,744.80"
13/03/2019,1245005,Outlook Care,,Adult Social Care Integrated Care,"2,146.88"
13/03/2019,1245005,Outlook Care,,Adult Social Care Integrated Care,840
04/01/2019,1248940,PERSONAL PAYMENTS,Adult Social Care - Other Transfer Pay,Adult Social Care Integrated Care,"1,159.28"
04/01/2019,1243520,PERSONAL PAYMENTS,Adult Social Care - Other Transfer Pay,Adult Social Care Integrated Care,"1,749.68"
04/01/2019,1243520,PERSONAL PAYMENTS,Adult Social Care - Other Transfer Pay,Adult Social Care Integrated Care,905.88
04/01/2019,1243520,PERSONAL PAYMENTS,Adult Social Care - Other Transfer Pay,Adult Social Care Integrated Care,627
04/01/2019,1249291,PERSONAL PAYMENTS,Adult Social Care - Other Transfer Pay,Adult Social Care Integrated Care,"1,445.13"
04/01/2019,1249291,PERSONAL PAYMENTS,Adult Social Care - Other Transfer Pay,Adult Social Care Integrated Care,"1,640.41"
04/01/2019,1249291,PERSONAL PAYMENTS,Adult Social Care - Other Transfer Pay,Adult Social Care Integrated Care,596.9
04/01/2019,1249291,PERSONAL PAYMENTS,Adult Social Care - Other Transfer Pay,Adult Social Care Integrated Care,"4,231.73"
04/01/2019,1243457,PERSONAL PAYMENTS,Adult Social Care - Other Transfer Pay,Adult Social Care Integrated Care,"1,643.00"
04/01/2019,1243457,PERSONAL PAYMENTS,Adult Social Care - Other Transfer Pay,Adult Social Care Integrated Care,654.38
04/01/2019,1249291,PERSONAL PAYMENTS,Adult Social Care - Other Transfer Pay,Adult Social Care Integrated Care,"1,426.89"
04/01/2019,1249291,PERSONAL PAYMENTS,Adult Social Care - Other Transfer Pay,Adult Social Care Integrated Care,"1,303.28"
04/01/2019,1249291,PERSONAL PAYMENTS,Adult Social Care - Other Transfer Pay,Adult Social Care Integrated Care,"3,218.91"
10/01/2019,1249291,PERSONAL PAYMENTS,Adult Social Care - Other Transfer Pay,Adult Social Care Integrated Care,"3,565.75"
10/01/2019,1249291,PERSONAL PAYMENTS,Adult Social Care - Other Transfer Pay,Adult Social Care Integrated Care,"10,731.87"
14/01/2019,1249291,PERSONAL PAYMENTS,Adult Social Care - Other Transfer Pay,Adult Social Care Integrated Care,"1,619.64"
18/01/2019,1245108,PERSONAL PAYMENTS,Adult Social Care - Other Transfer Pay,Adult Social Care Integrated Care,620
18/01/2019,1249156,PERSONAL PAYMENTS,Adult Social Care - Other Transfer Pay,Adult Social Care Integrated Care,542.5
18/01/2019,1249156,PERSONAL PAYMENTS,Adult Social Care - Other Transfer Pay,Adult Social Care Integrated Care,"3,069.37"
18/01/2019,1247650,PERSONAL PAYMENTS,Adult Social Care - Other Transfer Pay,Adult Social Care Integrated Care,"1,306.50"
18/01/2019,1244905,PERSONAL PAYMENTS,Adult Social Care - Other Transfer Pay,Adult Social Care Integrated Care,"1,568.57"
18/01/2019,1244906,PERSONAL PAYMENTS,Adult Social Care - Other Transfer Pay,Adult Social Care Integrated Care,652.5
18/01/2019,1243524,PERSONAL PAYMENTS,Adult Social Care - Other Transfer Pay,Adult Social Care Integrated Care,"1,866.76"
21/01/2019,1247650,PERSONAL PAYMENTS,Adult Social Care - Other Transfer Pay,Adult Social Care Integrated Care,"5,975.56"
21/01/2019,1243445,PERSONAL PAYMENTS,Adult Social Care - Other Transfer Pay,Adult Social Care Integrated Care,763.08
21/01/2019,1243445,PERSONAL PAYMENTS,Adult Social Care - Other Transfer Pay,Adult Social Care Integrated Care,"1,920.00"
21/01/2019,1243445,PERSONAL PAYMENTS,Adult Social Care - Other Transfer Pay,Adult Social Care Integrated Care,"2,015.00"
21/01/2019,1243445,PERSONAL PAYMENTS,Adult Social Care - Other Transfer Pay,Adult Social Care Integrated Care,864
21/01/2019,1243566,PERSONAL PAYMENTS,Adult Social Care - Other Transfer Pay,Adult Social Care Integrated Care,"1,558.00"
21/01/2019,1248940,PERSONAL PAYMENTS,Adult Social Care - Other Transfer Pay,Adult Social Care Integrated Care,648
21/01/2019,1248252,PERSONAL PAYMENTS,Social Care - Direct Payments,Adult Social Care Integrated Care,"9,196.00"
21/01/2019,1248252,PERSONAL PAYMENTS,Social Care - Direct Payments,Adult Social Care Integrated Care,"1,353.60"
21/01/2019,1244906,PERSONAL PAYMENTS,Social Care - Direct Payments,Adult Social Care Integrated Care,"2,253.00"
21/01/2019,1243503,PERSONAL PAYMENTS,Social Care - Direct Payments,Adult Social Care Integrated Care,"1,118.36"
21/01/2019,1243534,PERSONAL PAYMENTS,Adult Social Care - Other Transfer Pay,Adult Social Care Integrated Care,"1,624.32"
21/01/2019,1243534,PERSONAL PAYMENTS,Adult Social Care - Other Transfer Pay,Adult Social Care Integrated Care,"2,044.00"
21/01/2019,1245125,PERSONAL PAYMENTS,Adult Social Care - Other Transfer Pay,Adult Social Care Integrated Care,576
21/01/2019,1243948,PERSONAL PAYMENTS,Social Care - Direct Payments,Adult Social Care Integrated Care,902.4
21/01/2019,1249291,PERSONAL PAYMENTS,Social Care - Direct Payments,Adult Social Care Integrated Care,740
21/01/2019,1249291,PERSONAL PAYMENTS,Social Care - Direct Payments,Adult Social Care Integrated Care,"9,128.00"
21/01/2019,1250107,PERSONAL PAYMENTS,Adult Social Care - Other Transfer Pay,Adult Social Care Integrated Care,"6,000.00"
21/01/2019,1250107,PERSONAL PAYMENTS,Adult Social Care - Other Transfer Pay,Adult Social Care Integrated Care,"2,834.56"
21/01/2019,1250107,PERSONAL PAYMENTS,Adult Social Care - Other Transfer Pay,Adult Social Care Integrated Care,"1,368.00"
21/01/2019,1250107,PERSONAL PAYMENTS,Adult Social Care - Other Transfer Pay,Adult Social Care Integrated Care,721.92
21/01/2019,1246349,PERSONAL PAYMENTS,Adult Social Care - Other Transfer Pay,Adult Social Care Integrated Care,"1,638.96"
21/01/2019,1244905,PERSONAL PAYMENTS,Social Care - Direct Payments,Adult Social Care Integrated Care,857.28
21/01/2019,1244905,PERSONAL PAYMENTS,Social Care - Direct Payments,Adult Social Care Integrated Care,"1,985.28"
21/01/2019,1244905,PERSONAL PAYMENTS,Social Care - Direct Payments,Adult Social Care Integrated Care,"2,301.12"
21/01/2019,1248843,PERSONAL PAYMENTS,Adult Social Care - Other Transfer Pay,Adult Social Care Integrated Care,"1,177.60"
21/01/2019,1248843,PERSONAL PAYMENTS,Adult Social Care - Other Transfer Pay,Adult Social Care Integrated Care,"1,540.00"
21/01/2019,1248843,PERSONAL PAYMENTS,Social Care - Direct Payments,Adult Social Care Integrated Care,540
21/01/2019,1243948,PERSONAL PAYMENTS,Social Care - Direct Payments,Adult Social Care Integrated Care,"1,156.00"
21/01/2019,1244905,PERSONAL PAYMENTS,Social Care - Direct Payments,Adult Social Care Integrated Care,902.4
21/01/2019,1249291,PERSONAL PAYMENTS,Social Care - Direct Payments,Adult Social Care Integrated Care,"2,220.92"
21/01/2019,1246022,PERSONAL PAYMENTS,Social Care - Direct Payments,Adult Social Care Integrated Care,"4,072.32"
21/01/2019,1249291,PERSONAL PAYMENTS,Social Care - Direct Payments,Adult Social Care Integrated Care,902.4
21/01/2019,1244905,PERSONAL PAYMENTS,Social Care - Direct Payments,Adult Social Care Integrated Care,"15,706.48"
21/01/2019,1247526,PERSONAL PAYMENTS,Adult Social Care - Other Transfer Pay,Adult Social Care Integrated Care,"1,096.00"
21/01/2019,1247526,PERSONAL PAYMENTS,Adult Social Care - Other Transfer Pay,Adult Social Care Integrated Care,"1,794.08"
21/01/2019,1248935,PERSONAL PAYMENTS,Adult Social Care - Other Transfer Pay,Adult Social Care Integrated Care,"3,435.04"
21/01/2019,1249291,PERSONAL PAYMENTS,Social Care - Direct Payments,Adult Social Care Integrated Care,"4,482.00"
21/01/2019,1243503,PERSONAL PAYMENTS,Social Care - Direct Payments,Adult Social Care Integrated Care,992.64
21/01/2019,1243503,PERSONAL PAYMENTS,Social Care - Direct Payments,Adult Social Care Integrated Care,"6,077.00"
21/01/2019,1243503,PERSONAL PAYMENTS,Social Care - Direct Payments,Adult Social Care Integrated Care,"7,791.24"
21/01/2019,1243503,PERSONAL PAYMENTS,Social Care - Direct Payments,Adult Social Care Integrated Care,541.44
21/01/2019,1243534,PERSONAL PAYMENTS,Social Care - Direct Payments,Adult Social Care Integrated Care,"1,200.00"
21/01/2019,1243458,PERSONAL PAYMENTS,Social Care - Direct Payments,Adult Social Care Integrated Care,"1,950.00"
21/01/2019,1246097,PERSONAL PAYMENTS,Adult Social Care - Other Transfer Pay,Adult Social Care Integrated Care,"2,540.00"
21/01/2019,1246324,PERSONAL PAYMENTS,Adult Social Care - Other Transfer Pay,Adult Social Care Integrated Care,869.84
25/01/2019,1244905,PERSONAL PAYMENTS,Adult Social Care - Other Transfer Pay,Adult Social Care Integrated Care,"1,454.92"
25/01/2019,1244905,PERSONAL PAYMENTS,Adult Social Care - Other Transfer Pay,Adult Social Care Integrated Care,507.41
25/01/2019,1244905,PERSONAL PAYMENTS,Adult Social Care - Other Transfer Pay,Adult Social Care Integrated Care,719.78
25/01/2019,1244905,PERSONAL PAYMENTS,Adult Social Care - Other Transfer Pay,Adult Social Care Integrated Care,955.96
25/01/2019,1244905,PERSONAL PAYMENTS,Adult Social Care - Other Transfer Pay,Adult Social Care Integrated Care,"2,652.88"
31/01/2019,1249291,PERSONAL PAYMENTS,Adult Social Care - Other Transfer Pay,Adult Social Care Integrated Care,"3,386.25"
04/02/2019,1249291,PERSONAL PAYMENTS,Social Care - Direct Payments,Adult Social Care Integrated Care,"6,680.60"
06/02/2019,1243503,PERSONAL PAYMENTS,Social Care - Direct Payments,Adult Social Care Integrated Care,"6,680.60"
06/02/2019,1243473,PERSONAL PAYMENTS,Social Care - Direct Payments,Adult Social Care Integrated Care,"6,680.60"
06/02/2019,1243534,PERSONAL PAYMENTS,Social Care - Direct Payments,Adult Social Care Integrated Care,"6,680.60"
07/02/2019,1244905,PERSONAL PAYMENTS,Adult Social Care - Other Transfer Pay,Adult Social Care Integrated Care,"1,159.48"
07/02/2019,1244905,PERSONAL PAYMENTS,Adult Social Care - Other Transfer Pay,Adult Social Care Integrated Care,"1,749.68"
07/02/2019,1249317,PERSONAL PAYMENTS,Adult Social Care - Other Transfer Pay,Adult Social Care Integrated Care,662.96
07/02/2019,1246341,PERSONAL PAYMENTS,Adult Social Care - Other Transfer Pay,Adult Social Care Integrated Care,"1,445.33"
07/02/2019,1246341,PERSONAL PAYMENTS,Adult Social Care - Other Transfer Pay,Adult Social Care Integrated Care,"2,030.76"
07/02/2019,1244905,PERSONAL PAYMENTS,Adult Social Care - Other Transfer Pay,Adult Social Care Integrated Care,"1,861.11"
07/02/2019,1248563,PERSONAL PAYMENTS,Adult Social Care - Other Transfer Pay,Adult Social Care Integrated Care,669.14
07/02/2019,1248563,PERSONAL PAYMENTS,Adult Social Care - Other Transfer Pay,Adult Social Care Integrated Care,"6,484.30"
07/02/2019,1247147,PERSONAL PAYMENTS,Adult Social Care - Other Transfer Pay,Adult Social Care Integrated Care,"1,743.00"
07/02/2019,1244212,PERSONAL PAYMENTS,Adult Social Care - Other Transfer Pay,Adult Social Care Integrated Care,654.38
07/02/2019,1244212,PERSONAL PAYMENTS,Adult Social Care - Other Transfer Pay,Adult Social Care Integrated Care,"1,427.08"
07/02/2019,1244212,PERSONAL PAYMENTS,Adult Social Care - Other Transfer Pay,Adult Social Care Integrated Care,"2,606.56"
07/02/2019,1243485,PERSONAL PAYMENTS,Adult Social Care - Other Transfer Pay,Adult Social Care Integrated Care,"1,850.56"
07/02/2019,1245169,PERSONAL PAYMENTS,Adult Social Care - Other Transfer Pay,Adult Social Care Integrated Care,"5,360.29"
07/02/2019,1245005,PERSONAL PAYMENTS,Adult Social Care - Other Transfer Pay,Adult Social Care Integrated Care,"1,872.00"
07/02/2019,1245005,PERSONAL PAYMENTS,Adult Social Care - Other Transfer Pay,Adult Social Care Integrated Care,"3,739.95"
11/02/2019,1249232,PERSONAL PAYMENTS,Adult Social Care - Other Transfer Pay,Adult Social Care Integrated Care,"2,076.63"
11/02/2019,1249291,PERSONAL PAYMENTS,Adult Social Care - Other Transfer Pay,Adult Social Care Integrated Care,"10,524.59"
11/02/2019,1244515,PERSONAL PAYMENTS,Adult Social Care - Other Transfer Pay,Adult Social Care Integrated Care,"1,619.64"
11/02/2019,1247650,PERSONAL PAYMENTS,Adult Social Care - Other Transfer Pay,Adult Social Care Integrated Care,"4,793.91"
15/02/2019,1246324,PERSONAL PAYMENTS,Social Care - Direct Payments,Adult Social Care Integrated Care,902.4
15/02/2019,1243534,PERSONAL PAYMENTS,Social Care - Direct Payments,Adult Social Care Integrated Care,902.4
15/02/2019,1246286,PERSONAL PAYMENTS,Social Care - Direct Payments,Adult Social Care Integrated Care,"6,077.00"
15/02/2019,1249291,PERSONAL PAYMENTS,Social Care - Direct Payments,Adult Social Care Integrated Care,"7,791.24"
15/02/2019,1244905,PERSONAL PAYMENTS,Social Care - Direct Payments,Adult Social Care Integrated Care,541.44
15/02/2019,1250448,PERSONAL PAYMENTS,Social Care - Direct Payments,Adult Social Care Integrated Care,"1,200.00"
15/02/2019,1248935,PERSONAL PAYMENTS,Adult Social Care - Other Transfer Pay,Adult Social Care Integrated Care,"2,540.00"
15/02/2019,1248563,PERSONAL PAYMENTS,Adult Social Care - Other Transfer Pay,Adult Social Care Integrated Care,869.84
15/02/2019,1248563,PERSONAL PAYMENTS,Social Care - Direct Payments,Adult Social Care Integrated Care,"2,253.00"
15/02/2019,1248563,PERSONAL PAYMENTS,Social Care - Direct Payments,Adult Social Care Integrated Care,"1,118.36"
15/02/2019,1246339,PERSONAL PAYMENTS,Adult Social Care - Other Transfer Pay,Adult Social Care Integrated Care,"1,624.32"
15/02/2019,1246339,PERSONAL PAYMENTS,Adult Social Care - Other Transfer Pay,Adult Social Care Integrated Care,"2,044.00"
15/02/2019,1246339,PERSONAL PAYMENTS,Adult Social Care - Other Transfer Pay,Adult Social Care Integrated Care,576
15/02/2019,1249291,PERSONAL PAYMENTS,Social Care - Direct Payments,Adult Social Care Integrated Care,902.4
15/02/2019,1249291,PERSONAL PAYMENTS,Social Care - Direct Payments,Adult Social Care Integrated Care,740
15/02/2019,1249291,PERSONAL PAYMENTS,Social Care - Direct Payments,Adult Social Care Integrated Care,"9,128.00"
15/02/2019,1247650,PERSONAL PAYMENTS,Social Care - Direct Payments,Adult Social Care Integrated Care,"2,220.92"
15/02/2019,1250107,PERSONAL PAYMENTS,Social Care - Direct Payments,Adult Social Care Integrated Care,"15,706.48"
15/02/2019,1249291,PERSONAL PAYMENTS,Adult Social Care - Other Transfer Pay,Adult Social Care Integrated Care,708.64
15/02/2019,1249291,PERSONAL PAYMENTS,Adult Social Care - Other Transfer Pay,Adult Social Care Integrated Care,"1,368.00"
15/02/2019,1249291,PERSONAL PAYMENTS,Adult Social Care - Other Transfer Pay,Adult Social Care Integrated Care,"1,638.96"
15/02/2019,1245825,PERSONAL PAYMENTS,Social Care - Direct Payments,Adult Social Care Integrated Care,857.28
15/02/2019,1245825,PERSONAL PAYMENTS,Adult Social Care - Other Transfer Pay,Adult Social Care Integrated Care,"1,096.00"
15/02/2019,1245825,PERSONAL PAYMENTS,Adult Social Care - Other Transfer Pay,Adult Social Care Integrated Care,"1,794.08"
15/02/2019,1245825,PERSONAL PAYMENTS,Adult Social Care - Other Transfer Pay,Adult Social Care Integrated Care,"3,790.08"
15/02/2019,1245825,PERSONAL PAYMENTS,Adult Social Care - Other Transfer Pay,Adult Social Care Integrated Care,"3,435.04"
15/02/2019,1249291,PERSONAL PAYMENTS,Social Care - Direct Payments,Adult Social Care Integrated Care,"4,482.00"
15/02/2019,1247650,PERSONAL PAYMENTS,Adult Social Care - Other Transfer Pay,Adult Social Care Integrated Care,"1,177.60"
15/02/2019,1247650,PERSONAL PAYMENTS,Adult Social Care - Other Transfer Pay,Adult Social Care Integrated Care,"1,540.00"
15/02/2019,1247147,PERSONAL PAYMENTS,Social Care - Direct Payments,Adult Social Care Integrated Care,992.64
15/02/2019,1247147,PERSONAL PAYMENTS,Social Care - Direct Payments,Adult Social Care Integrated Care,"1,950.00"
15/02/2019,1249291,PERSONAL PAYMENTS,Adult Social Care - Other Transfer Pay,Adult Social Care Integrated Care,"5,975.56"
15/02/2019,1249291,PERSONAL PAYMENTS,Adult Social Care - Other Transfer Pay,Adult Social Care Integrated Care,"1,920.00"
15/02/2019,1249291,PERSONAL PAYMENTS,Adult Social Care - Other Transfer Pay,Adult Social Care Integrated Care,"2,015.00"
15/02/2019,1249291,PERSONAL PAYMENTS,Adult Social Care - Other Transfer Pay,Adult Social Care Integrated Care,864
15/02/2019,1249291,PERSONAL PAYMENTS,Adult Social Care - Other Transfer Pay,Adult Social Care Integrated Care,"1,558.00"
15/02/2019,1249291,PERSONAL PAYMENTS,Adult Social Care - Other Transfer Pay,Adult Social Care Integrated Care,648
15/02/2019,1243445,PERSONAL PAYMENTS,Social Care - Direct Payments,Adult Social Care Integrated Care,"9,196.00"
15/02/2019,1243445,PERSONAL PAYMENTS,Social Care - Direct Payments,Adult Social Care Integrated Care,"1,353.60"
15/02/2019,1243851,PERSONAL PAYMENTS,Social Care - Direct Payments,Adult Social Care Integrated Care,"1,985.28"
15/02/2019,1243851,PERSONAL PAYMENTS,Social Care - Direct Payments,Adult Social Care Integrated Care,"2,301.12"
15/02/2019,1243851,PERSONAL PAYMENTS,Social Care - Direct Payments,Adult Social Care Integrated Care,540
15/02/2019,1243851,PERSONAL PAYMENTS,Social Care - Direct Payments,Adult Social Care Integrated Care,"1,156.00"
27/02/2019,1245825,PERSONAL PAYMENTS,Adult Social Care - Other Transfer Pay,Adult Social Care Integrated Care,"11,783.91"
05/03/2019,1249291,PERSONAL PAYMENTS,Social Care - Direct Payments,Adult Social Care Integrated Care,771.36
06/03/2019,1248563,PERSONAL PAYMENTS,Adult Social Care - Other Transfer Pay,Adult Social Care Integrated Care,"3,455.76"
06/03/2019,1243566,PERSONAL PAYMENTS,Adult Social Care - Other Transfer Pay,Adult Social Care Integrated Care,"3,423.57"
06/03/2019,1243566,PERSONAL PAYMENTS,Adult Social Care - Other Transfer Pay,Adult Social Care Integrated Care,"1,948.82"
06/03/2019,1243503,PERSONAL PAYMENTS,Adult Social Care - Other Transfer Pay,Adult Social Care Integrated Care,"1,462.50"
06/03/2019,1249156,PERSONAL PAYMENTS,Adult Social Care - Other Transfer Pay,Adult Social Care Integrated Care,721.92
08/03/2019,1249291,PERSONAL PAYMENTS,Adult Social Care - Other Transfer Pay,Adult Social Care Integrated Care,"1,619.64"
11/03/2019,1249291,PERSONAL PAYMENTS,Social Care - Direct Payments,Adult Social Care Integrated Care,"6,680.60"
11/03/2019,1244197,PERSONAL PAYMENTS,Adult Social Care - Other Transfer Pay,Adult Social Care Integrated Care,"1,507.63"
12/03/2019,1249291,PERSONAL PAYMENTS,Adult Social Care - Other Transfer Pay,Adult Social Care Integrated Care,"1,159.48"
12/03/2019,1243503,PERSONAL PAYMENTS,Adult Social Care - Other Transfer Pay,Adult Social Care Integrated Care,"3,838.24"
12/03/2019,1243503,PERSONAL PAYMENTS,Adult Social Care - Other Transfer Pay,Adult Social Care Integrated Care,"1,071.28"
12/03/2019,1243503,PERSONAL PAYMENTS,Adult Social Care - Other Transfer Pay,Adult Social Care Integrated Care,627
12/03/2019,1243503,PERSONAL PAYMENTS,Adult Social Care - Other Transfer Pay,Adult Social Care Integrated Care,"1,356.60"
12/03/2019,1249291,PERSONAL PAYMENTS,Adult Social Care - Other Transfer Pay,Adult Social Care Integrated Care,"1,015.28"
12/03/2019,1249291,PERSONAL PAYMENTS,Adult Social Care - Other Transfer Pay,Adult Social Care Integrated Care,"2,456.31"
12/03/2019,1249291,PERSONAL PAYMENTS,Adult Social Care - Other Transfer Pay,Adult Social Care Integrated Care,669.14
12/03/2019,1249291,PERSONAL PAYMENTS,Adult Social Care - Other Transfer Pay,Adult Social Care Integrated Care,"4,343.50"
12/03/2019,1248935,PERSONAL PAYMENTS,Adult Social Care - Other Transfer Pay,Adult Social Care Integrated Care,654.38
12/03/2019,1245163,PERSONAL PAYMENTS,Adult Social Care - Other Transfer Pay,Adult Social Care Integrated Care,"1,426.88"
12/03/2019,1245165,PERSONAL PAYMENTS,Adult Social Care - Other Transfer Pay,Adult Social Care Integrated Care,"1,211.48"
12/03/2019,1245165,PERSONAL PAYMENTS,Adult Social Care - Other Transfer Pay,Adult Social Care Integrated Care,"2,850.32"
12/03/2019,1245566,PERSONAL PAYMENTS,Adult Social Care - Other Transfer Pay,Adult Social Care Integrated Care,"7,972.71"
15/03/2019,1247650,PERSONAL PAYMENTS,Adult Social Care - Other Transfer Pay,Adult Social Care Integrated Care,"9,736.95"
15/03/2019,1243458,PERSONAL PAYMENTS,Social Care - Direct Payments,Adult Social Care Integrated Care,"1,985.28"
15/03/2019,1244905,PERSONAL PAYMENTS,Social Care - Direct Payments,Adult Social Care Integrated Care,"1,353.60"
15/03/2019,1249317,PERSONAL PAYMENTS,Social Care - Direct Payments,Adult Social Care Integrated Care,"2,253.00"
15/03/2019,1248563,PERSONAL PAYMENTS,Social Care - Direct Payments,Adult Social Care Integrated Care,540
15/03/2019,1248563,PERSONAL PAYMENTS,Social Care - Direct Payments,Adult Social Care Integrated Care,"9,196.00"
15/03/2019,1248563,PERSONAL PAYMENTS,Social Care - Direct Payments,Adult Social Care Integrated Care,"2,301.12"
15/03/2019,1248563,PERSONAL PAYMENTS,Social Care - Direct Payments,Adult Social Care Integrated Care,"1,156.00"
15/03/2019,1249317,PERSONAL PAYMENTS,Adult Social Care - Other Transfer Pay,Adult Social Care Integrated Care,"2,044.00"
15/03/2019,1248563,PERSONAL PAYMENTS,Adult Social Care - Other Transfer Pay,Adult Social Care Integrated Care,576
15/03/2019,1249317,PERSONAL PAYMENTS,Social Care - Direct Payments,Adult Social Care Integrated Care,"1,118.36"
15/03/2019,1247147,PERSONAL PAYMENTS,Adult Social Care - Other Transfer Pay,Adult Social Care Integrated Care,"1,624.32"
15/03/2019,1246349,PERSONAL PAYMENTS,Social Care - Direct Payments,Adult Social Care Integrated Care,740
15/03/2019,1246349,PERSONAL PAYMENTS,Social Care - Direct Payments,Adult Social Care Integrated Care,"9,128.00"
15/03/2019,1245165,PERSONAL PAYMENTS,Adult Social Care - Other Transfer Pay,Adult Social Care Integrated Care,"1,368.00"
15/03/2019,1245165,PERSONAL PAYMENTS,Social Care - Direct Payments,Adult Social Care Integrated Care,902.4
15/03/2019,1243534,PERSONAL PAYMENTS,Adult Social Care - Other Transfer Pay,Adult Social Care Integrated Care,708.64
15/03/2019,1249693,PERSONAL PAYMENTS,Adult Social Care - Other Transfer Pay,Adult Social Care Integrated Care,"1,177.60"
15/03/2019,1243553,PERSONAL PAYMENTS,Adult Social Care - Other Transfer Pay,Adult Social Care Integrated Care,"1,540.00"
15/03/2019,1249693,PERSONAL PAYMENTS,Social Care - Direct Payments,Adult Social Care Integrated Care,857.28
15/03/2019,1243457,PERSONAL PAYMENTS,Social Care - Direct Payments,Adult Social Care Integrated Care,"2,220.92"
15/03/2019,1243457,PERSONAL PAYMENTS,Adult Social Care - Other Transfer Pay,Adult Social Care Integrated Care,"1,794.08"
15/03/2019,1243503,PERSONAL PAYMENTS,Adult Social Care - Other Transfer Pay,Adult Social Care Integrated Care,"1,096.00"
15/03/2019,1248563,PERSONAL PAYMENTS,Adult Social Care - Other Transfer Pay,Adult Social Care Integrated Care,"3,435.04"
15/03/2019,1249291,PERSONAL PAYMENTS,Social Care - Direct Payments,Adult Social Care Integrated Care,902.4
15/03/2019,1249291,PERSONAL PAYMENTS,Social Care - Direct Payments,Adult Social Care Integrated Care,"15,706.48"
15/03/2019,1249291,PERSONAL PAYMENTS,Adult Social Care - Other Transfer Pay,Adult Social Care Integrated Care,631.68
15/03/2019,1249291,PERSONAL PAYMENTS,Social Care - Direct Payments,Adult Social Care Integrated Care,992.64
15/03/2019,1249291,PERSONAL PAYMENTS,Social Care - Direct Payments,Adult Social Care Integrated Care,"4,482.00"
15/03/2019,1249291,PERSONAL PAYMENTS,Social Care - Direct Payments,Adult Social Care Integrated Care,902.4
15/03/2019,1249291,PERSONAL PAYMENTS,Social Care - Direct Payments,Adult Social Care Integrated Care,"3,696.00"
15/03/2019,1249291,PERSONAL PAYMENTS,Adult Social Care - Other Transfer Pay,Adult Social Care Integrated Care,"1,558.00"
15/03/2019,1249291,PERSONAL PAYMENTS,Adult Social Care - Other Transfer Pay,Adult Social Care Integrated Care,864
15/03/2019,1249291,PERSONAL PAYMENTS,Social Care - Direct Payments,Adult Social Care Integrated Care,"1,950.00"
15/03/2019,1249291,PERSONAL PAYMENTS,Social Care - Direct Payments,Adult Social Care Integrated Care,"7,791.24"
15/03/2019,1249291,PERSONAL PAYMENTS,Social Care - Direct Payments,Adult Social Care Integrated Care,541.44
15/03/2019,1243458,PERSONAL PAYMENTS,Social Care - Direct Payments,Adult Social Care Integrated Care,"1,200.00"
15/03/2019,1249291,PERSONAL PAYMENTS,Adult Social Care - Other Transfer Pay,Adult Social Care Integrated Care,648
15/03/2019,1248563,PERSONAL PAYMENTS,Adult Social Care - Other Transfer Pay,Adult Social Care Integrated Care,"1,920.00"
15/03/2019,1243470,PERSONAL PAYMENTS,Adult Social Care - Other Transfer Pay,Adult Social Care Integrated Care,"5,975.56"
15/03/2019,1247598,PERSONAL PAYMENTS,Adult Social Care - Other Transfer Pay,Adult Social Care Integrated Care,811.8
15/03/2019,1247598,PERSONAL PAYMENTS,Adult Social Care - Other Transfer Pay,Adult Social Care Integrated Care,"2,015.00"
15/03/2019,1247598,PERSONAL PAYMENTS,Adult Social Care - Other Transfer Pay,Adult Social Care Integrated Care,869.84
15/03/2019,1247598,PERSONAL PAYMENTS,Social Care - Direct Payments,Adult Social Care Integrated Care,"6,077.00"
15/03/2019,1249291,PERSONAL PAYMENTS,Adult Social Care - Other Transfer Pay,Adult Social Care Integrated Care,"2,540.00"
15/03/2019,1249291,PERSONAL PAYMENTS,Adult Social Care - Other Transfer Pay,Adult Social Care Integrated Care,"1,638.96"
28/03/2019,1243524,PERSONAL PAYMENTS,Adult Social Care - Other Transfer Pay,Adult Social Care Integrated Care,"9,865.37"
29/03/2019,1249291,PERSONAL PAYMENTS,Adult Social Care - Other Transfer Pay,Adult Social Care Integrated Care,558
29/03/2019,1249291,PERSONAL PAYMENTS,Adult Social Care - Other Transfer Pay,Adult Social Care Integrated Care,542.5
29/03/2019,1248241,PERSONAL PAYMENTS,Adult Social Care - Other Transfer Pay,Adult Social Care Integrated Care,721.92
28/01/2019,1245021,Paradise Community,,Adult Social Care Integrated Care,"10,414.68"
21/02/2019,1245021,Paradise Community,,Adult Social Care Integrated Care,"10,414.68"
13/03/2019,1245021,Paradise Community,,Adult Social Care Integrated Care,"10,414.68"
28/01/2019,1250448,PERSONAL PAYMENTS,,Adult Social Care Integrated Care,"1,419.24"
21/02/2019,1250448,PERSONAL PAYMENTS,,Adult Social Care Integrated Care,"1,419.24"
13/03/2019,1250448,PERSONAL PAYMENTS,,Adult Social Care Integrated Care,"1,419.24"
28/01/2019,1245163,Poor Servants of the mother of,,Adult Social Care Integrated Care,"2,878.88"
21/02/2019,1245163,Poor Servants of the mother of,,Adult Social Care Integrated Care,"2,878.88"
13/03/2019,1245163,Poor Servants of the mother of,,Adult Social Care Integrated Care,"2,878.88"
28/01/2019,1245165,Precious Homes Ltd,,Adult Social Care Integrated Care,"23,157.44"
28/01/2019,1245165,Precious Homes Ltd,,Adult Social Care Integrated Care,"5,320.00"
21/02/2019,1245165,Precious Homes Ltd,,Adult Social Care Integrated Care,"5,320.00"
21/02/2019,1245165,Precious Homes Ltd,,Adult Social Care Integrated Care,"23,157.44"
13/03/2019,1245165,Precious Homes Ltd,,Adult Social Care Integrated Care,"23,157.44"
13/03/2019,1245165,Precious Homes Ltd,,Adult Social Care Integrated Care,"5,320.00"
28/01/2019,1245166,Precious Homes Support Ltd,,Adult Social Care Integrated Care,"24,102.92"
21/02/2019,1245166,Precious Homes Support Ltd,,Adult Social Care Integrated Care,"24,102.92"
13/03/2019,1245166,Precious Homes Support Ltd,,Adult Social Care Integrated Care,"24,102.92"
28/01/2019,1248540,Priory Education Services Ltd,,Adult Social Care Integrated Care,"14,879.84"
21/02/2019,1248540,Priory Education Services Ltd,,Adult Social Care Integrated Care,"14,879.84"
13/03/2019,1248540,Priory Education Services Ltd,,Adult Social Care Integrated Care,"14,879.84"
16/01/2019,1248563,Pursuing Independent Paths,B*Voluntary-Spot-V Dep-Enhanced - do not u,Adult Social Care Integrated Care,780.64
16/01/2019,1248563,Pursuing Independent Paths,B*Voluntary-Spot-V Dep-Enhanced - do not u,Adult Social Care Integrated Care,"1,170.96"
16/01/2019,1248563,Pursuing Independent Paths,B*Voluntary-Spot-V Dep-Enhanced - do not u,Adult Social Care Integrated Care,585.48
16/01/2019,1248563,Pursuing Independent Paths,B*Voluntary-Spot-V Dep-Enhanced - do not u,Adult Social Care Integrated Care,975.8
16/01/2019,1248563,Pursuing Independent Paths,B*Voluntary-Spot-V Dep-Enhanced - do not u,Adult Social Care Integrated Care,"1,170.96"
16/01/2019,1248563,Pursuing Independent Paths,B*Voluntary-Spot-V Dep-Enhanced - do not u,Adult Social Care Integrated Care,975.8
16/01/2019,1248563,Pursuing Independent Paths,B*Voluntary-Spot-V Dep-Enhanced - do not u,Adult Social Care Integrated Care,"1,170.96"
16/01/2019,1248563,Pursuing Independent Paths,B*Voluntary-Spot-V Dep-Enhanced - do not u,Adult Social Care Integrated Care,975.8
16/01/2019,1248563,Pursuing Independent Paths,B*Voluntary-Spot-V Dep-Enhanced - do not u,Adult Social Care Integrated Care,780.64
16/01/2019,1248563,Pursuing Independent Paths,B*Voluntary-Spot-V Dep-Enhanced - do not u,Adult Social Care Integrated Care,975.44
16/01/2019,1248563,Pursuing Independent Paths,B*Voluntary-Spot-V Dep-Enhanced - do not u,Adult Social Care Integrated Care,975.8
16/01/2019,1248563,Pursuing Independent Paths,B*Voluntary-Spot-V Dep-Enhanced - do not u,Adult Social Care Integrated Care,"1,170.96"
16/01/2019,1248563,Pursuing Independent Paths,B*Voluntary-Spot-V Dep-Enhanced - do not u,Adult Social Care Integrated Care,"1,170.96"
16/01/2019,1248563,Pursuing Independent Paths,B*Voluntary-Spot-V Dep-Enhanced - do not u,Adult Social Care Integrated Care,780.64
16/01/2019,1248563,Pursuing Independent Paths,B*Voluntary-Spot-V Dep-Enhanced - do not u,Adult Social Care Integrated Care,"1,170.96"
16/01/2019,1248563,Pursuing Independent Paths,B*Voluntary-Spot-V Dep-Enhanced - do not u,Adult Social Care Integrated Care,975.4
16/01/2019,1248563,Pursuing Independent Paths,B*Voluntary-Spot-V Dep-Enhanced - do not u,Adult Social Care Integrated Care,"1,170.96"
16/01/2019,1248563,Pursuing Independent Paths,B*Voluntary-Spot-V Dep-Enhanced - do not u,Adult Social Care Integrated Care,975.8
16/01/2019,1248563,Pursuing Independent Paths,B*Voluntary-Spot-V Dep-Enhanced - do not u,Adult Social Care Integrated Care,"1,170.96"
16/01/2019,1248563,Pursuing Independent Paths,B*Voluntary-Spot-V Dep-Enhanced - do not u,Adult Social Care Integrated Care,780.64
16/01/2019,1248563,Pursuing Independent Paths,B*Voluntary-Spot-V Dep-Enhanced - do not u,Adult Social Care Integrated Care,"1,170.96"
16/01/2019,1248563,Pursuing Independent Paths,B*Voluntary-Spot-V Dep-Enhanced - do not u,Adult Social Care Integrated Care,"1,170.96"
16/01/2019,1248563,Pursuing Independent Paths,B*Voluntary-Spot-V Dep-Enhanced - do not u,Adult Social Care Integrated Care,780.64
16/01/2019,1248563,Pursuing Independent Paths,B*Voluntary-Spot-V Dep-Enhanced - do not u,Adult Social Care Integrated Care,975.4
16/01/2019,1248563,Pursuing Independent Paths,B*Voluntary-Spot-V Dep-Enhanced - do not u,Adult Social Care Integrated Care,"1,170.96"
16/01/2019,1248563,Pursuing Independent Paths,B*Voluntary-Spot-V Dep-Enhanced - do not u,Adult Social Care Integrated Care,780.64
16/01/2019,1248563,Pursuing Independent Paths,B*Voluntary-Spot-V Dep-Enhanced - do not u,Adult Social Care Integrated Care,"1,951.60"
16/01/2019,1248563,Pursuing Independent Paths,B*Voluntary-Spot-V Dep-Enhanced - do not u,Adult Social Care Integrated Care,780.64
16/01/2019,1248563,Pursuing Independent Paths,B*Voluntary-Spot-V Dep-Enhanced - do not u,Adult Social Care Integrated Care,780.64
16/01/2019,1248563,Pursuing Independent Paths,B*Voluntary-Spot-V Dep-Enhanced - do not u,Adult Social Care Integrated Care,523.8
16/01/2019,1248563,Pursuing Independent Paths,B*Voluntary-Spot-V Dep-Enhanced - do not u,Adult Social Care Integrated Care,780.64
16/01/2019,1248563,Pursuing Independent Paths,B*Voluntary-Spot-V Dep-Enhanced - do not u,Adult Social Care Integrated Care,"1,951.60"
16/01/2019,1248563,Pursuing Independent Paths,B*Voluntary-Spot-V Dep-Enhanced - do not u,Adult Social Care Integrated Care,"1,170.96"
16/01/2019,1248563,Pursuing Independent Paths,B*Voluntary-Spot-V Dep-Enhanced - do not u,Adult Social Care Integrated Care,"1,951.60"
16/01/2019,1248563,Pursuing Independent Paths,B*Voluntary-Spot-V Dep-Enhanced - do not u,Adult Social Care Integrated Care,585.48
16/01/2019,1248563,Pursuing Independent Paths,B*Voluntary-Spot-V Dep-Enhanced - do not u,Adult Social Care Integrated Care,780.64
16/01/2019,1248563,Pursuing Independent Paths,B*Voluntary-Spot-V Dep-Enhanced - do not u,Adult Social Care Integrated Care,523.8
16/01/2019,1248563,Pursuing Independent Paths,B*Voluntary-Spot-V Dep-Enhanced - do not u,Adult Social Care Integrated Care,"1,170.96"
16/01/2019,1248563,Pursuing Independent Paths,B*Voluntary-Spot-V Dep-Enhanced - do not u,Adult Social Care Integrated Care,"1,951.60"
16/01/2019,1248563,Pursuing Independent Paths,B*Voluntary-Spot-V Dep-Enhanced - do not u,Adult Social Care Integrated Care,780.64
16/01/2019,1248563,Pursuing Independent Paths,B*Voluntary-Spot-V Dep-Enhanced - do not u,Adult Social Care Integrated Care,558.72
16/01/2019,1248563,Pursuing Independent Paths,B*Voluntary-Spot-V Dep-Enhanced - do not u,Adult Social Care Integrated Care,"1,170.96"
16/01/2019,1248563,Pursuing Independent Paths,B*Voluntary-Spot-V Dep-Enhanced - do not u,Adult Social Care Integrated Care,"1,366.12"
16/01/2019,1248563,Pursuing Independent Paths,B*Voluntary-Spot-V Dep-Enhanced - do not u,Adult Social Care Integrated Care,"1,170.96"
16/01/2019,1248563,Pursuing Independent Paths,B*Voluntary-Spot-V Dep-Enhanced - do not u,Adult Social Care Integrated Care,585.48
16/01/2019,1248563,Pursuing Independent Paths,B*Voluntary-Spot-V Dep-Enhanced - do not u,Adult Social Care Integrated Care,"1,561.28"
16/01/2019,1248563,Pursuing Independent Paths,B*Voluntary-Spot-V Dep-Enhanced - do not u,Adult Social Care Integrated Care,544.36
16/01/2019,1248563,Pursuing Independent Paths,B*Voluntary-Spot-V Dep-Enhanced - do not u,Adult Social Care Integrated Care,"1,170.96"
16/01/2019,1248563,Pursuing Independent Paths,B*Voluntary-Spot-V Dep-Enhanced - do not u,Adult Social Care Integrated Care,"1,170.96"
16/01/2019,1248563,Pursuing Independent Paths,B*Voluntary-Spot-V Dep-Enhanced - do not u,Adult Social Care Integrated Care,780.64
16/01/2019,1248563,Pursuing Independent Paths,B*Voluntary-Spot-V Dep-Enhanced - do not u,Adult Social Care Integrated Care,780.64
16/01/2019,1248563,Pursuing Independent Paths,B*Voluntary-Spot-V Dep-Enhanced - do not u,Adult Social Care Integrated Care,975.8
16/01/2019,1248563,Pursuing Independent Paths,B*Voluntary-Spot-V Dep-Enhanced - do not u,Adult Social Care Integrated Care,780.64
16/01/2019,1248563,Pursuing Independent Paths,B*Voluntary-Spot-V Dep-Enhanced - do not u,Adult Social Care Integrated Care,"1,561.28"
16/01/2019,1248563,Pursuing Independent Paths,B*Voluntary-Spot-V Dep-Enhanced - do not u,Adult Social Care Integrated Care,"1,170.96"
16/01/2019,1248563,Pursuing Independent Paths,B*Voluntary-Spot-V Dep-Enhanced - do not u,Adult Social Care Integrated Care,"1,170.96"
16/01/2019,1248563,Pursuing Independent Paths,B*Voluntary-Spot-V Dep-Enhanced - do not u,Adult Social Care Integrated Care,558.72
16/01/2019,1248563,Pursuing Independent Paths,B*Voluntary-Spot-V Dep-Enhanced - do not u,Adult Social Care Integrated Care,"1,366.12"
16/01/2019,1248563,Pursuing Independent Paths,B*Voluntary-Spot-V Dep-Enhanced - do not u,Adult Social Care Integrated Care,"1,170.96"
16/01/2019,1248563,Pursuing Independent Paths,B*Voluntary-Spot-V Dep-Enhanced - do not u,Adult Social Care Integrated Care,"1,170.96"
16/01/2019,1248563,Pursuing Independent Paths,B*Voluntary-Spot-V Dep-Enhanced - do not u,Adult Social Care Integrated Care,"1,170.96"
16/01/2019,1248563,Pursuing Independent Paths,B*Voluntary-Spot-V Dep-Enhanced - do not u,Adult Social Care Integrated Care,"1,561.28"
16/01/2019,1248563,Pursuing Independent Paths,B*Voluntary-Spot-V Dep-Enhanced - do not u,Adult Social Care Integrated Care,"1,170.96"
16/01/2019,1248563,Pursuing Independent Paths,B*Voluntary-Spot-V Dep-Enhanced - do not u,Adult Social Care Integrated Care,544.36
16/01/2019,1248563,Pursuing Independent Paths,B*Voluntary-Spot-V Dep-Enhanced - do not u,Adult Social Care Integrated Care,975.8
16/01/2019,1248563,Pursuing Independent Paths,B*Voluntary-Spot-V Dep-Enhanced - do not u,Adult Social Care Integrated Care,975.44
16/01/2019,1248563,Pursuing Independent Paths,B*Voluntary-Spot-V Dep-Enhanced - do not u,Adult Social Care Integrated Care,780.64
16/01/2019,1248563,Pursuing Independent Paths,B*Voluntary-Spot-V Dep-Enhanced - do not u,Adult Social Care Integrated Care,"1,170.96"
16/01/2019,1248563,Pursuing Independent Paths,B*Voluntary-Spot-V Dep-Enhanced - do not u,Adult Social Care Integrated Care,"1,170.96"
16/01/2019,1248563,Pursuing Independent Paths,B*Voluntary-Spot-V Dep-Enhanced - do not u,Adult Social Care Integrated Care,780.64
16/01/2019,1248563,Pursuing Independent Paths,B*Voluntary-Spot-V Dep-Enhanced - do not u,Adult Social Care Integrated Care,"1,170.96"
16/01/2019,1248563,Pursuing Independent Paths,B*Voluntary-Spot-V Dep-Enhanced - do not u,Adult Social Care Integrated Care,975.8
16/01/2019,1248563,Pursuing Independent Paths,B*Voluntary-Spot-V Dep-Enhanced - do not u,Adult Social Care Integrated Care,"1,170.96"
16/01/2019,1248563,Pursuing Independent Paths,B*Voluntary-Spot-V Dep-Enhanced - do not u,Adult Social Care Integrated Care,780.64
16/01/2019,1248563,Pursuing Independent Paths,B*Voluntary-Spot-V Dep-Enhanced - do not u,Adult Social Care Integrated Care,"1,170.96"
16/01/2019,1248563,Pursuing Independent Paths,B*Voluntary-Spot-V Dep-Enhanced - do not u,Adult Social Care Integrated Care,"1,170.96"
16/01/2019,1248563,Pursuing Independent Paths,B*Voluntary-Spot-V Dep-Enhanced - do not u,Adult Social Care Integrated Care,975.4
16/01/2019,1248563,Pursuing Independent Paths,B*Voluntary-Spot-V Dep-Enhanced - do not u,Adult Social Care Integrated Care,"1,170.96"
16/01/2019,1248563,Pursuing Independent Paths,B*Voluntary-Spot-V Dep-Enhanced - do not u,Adult Social Care Integrated Care,780.64
16/01/2019,1248563,Pursuing Independent Paths,B*Voluntary-Spot-V Dep-Enhanced - do not u,Adult Social Care Integrated Care,780.64
16/01/2019,1248563,Pursuing Independent Paths,B*Voluntary-Spot-V Dep-Enhanced - do not u,Adult Social Care Integrated Care,975.8
16/01/2019,1248563,Pursuing Independent Paths,B*Voluntary-Spot-V Dep-Enhanced - do not u,Adult Social Care Integrated Care,"1,951.60"
16/01/2019,1248563,Pursuing Independent Paths,B*Voluntary-Spot-V Dep-Enhanced - do not u,Adult Social Care Integrated Care,523.8
16/01/2019,1248563,Pursuing Independent Paths,B*Voluntary-Spot-V Dep-Enhanced - do not u,Adult Social Care Integrated Care,"1,170.96"
16/01/2019,1248563,Pursuing Independent Paths,B*Voluntary-Spot-V Dep-Enhanced - do not u,Adult Social Care Integrated Care,"1,170.96"
16/01/2019,1248563,Pursuing Independent Paths,B*Voluntary-Spot-V Dep-Enhanced - do not u,Adult Social Care Integrated Care,"1,951.60"
16/01/2019,1248563,Pursuing Independent Paths,B*Voluntary-Spot-V Dep-Enhanced - do not u,Adult Social Care Integrated Care,975.4
16/01/2019,1248563,Pursuing Independent Paths,B*Voluntary-Spot-V Dep-Enhanced - do not u,Adult Social Care Integrated Care,780.64
16/01/2019,1248563,Pursuing Independent Paths,B*Voluntary-Spot-V Dep-Enhanced - do not u,Adult Social Care Integrated Care,"1,170.96"
16/01/2019,1248563,Pursuing Independent Paths,B*Voluntary-Spot-V Dep-Enhanced - do not u,Adult Social Care Integrated Care,"1,170.96"
16/01/2019,1248563,Pursuing Independent Paths,B*Voluntary-Spot-V Dep-Enhanced - do not u,Adult Social Care Integrated Care,"1,170.96"
16/01/2019,1248563,Pursuing Independent Paths,B*Voluntary-Spot-V Dep-Enhanced - do not u,Adult Social Care Integrated Care,585.48
16/01/2019,1248563,Pursuing Independent Paths,B*Voluntary-Spot-V Dep-Enhanced - do not u,Adult Social Care Integrated Care,780.64
16/01/2019,1248563,Pursuing Independent Paths,B*Voluntary-Spot-V Dep-Enhanced - do not u,Adult Social Care Integrated Care,"1,170.96"
16/01/2019,1248563,Pursuing Independent Paths,B*Voluntary-Spot-V Dep-Enhanced - do not u,Adult Social Care Integrated Care,780.64
16/01/2019,1248563,Pursuing Independent Paths,B*Voluntary-Spot-V Dep-Enhanced - do not u,Adult Social Care Integrated Care,"1,073.38"
16/01/2019,1248563,Pursuing Independent Paths,B*Voluntary-Spot-V Dep-Enhanced - do not u,Adult Social Care Integrated Care,780.64
16/01/2019,1248563,Pursuing Independent Paths,B*Voluntary-Spot-V Dep-Enhanced - do not u,Adult Social Care Integrated Care,558.72
16/01/2019,1248563,Pursuing Independent Paths,B*Voluntary-Spot-V Dep-Enhanced - do not u,Adult Social Care Integrated Care,780.64
16/01/2019,1248563,Pursuing Independent Paths,B*Voluntary-Spot-V Dep-Enhanced - do not u,Adult Social Care Integrated Care,"1,366.12"
16/01/2019,1248563,Pursuing Independent Paths,B*Voluntary-Spot-V Dep-Enhanced - do not u,Adult Social Care Integrated Care,"1,951.60"
16/01/2019,1248563,Pursuing Independent Paths,B*Voluntary-Spot-V Dep-Enhanced - do not u,Adult Social Care Integrated Care,"1,170.96"
16/01/2019,1248563,Pursuing Independent Paths,B*Voluntary-Spot-V Dep-Enhanced - do not u,Adult Social Care Integrated Care,523.8
16/01/2019,1248563,Pursuing Independent Paths,B*Voluntary-Spot-V Dep-Enhanced - do not u,Adult Social Care Integrated Care,"1,561.28"
16/01/2019,1248563,Pursuing Independent Paths,B*Voluntary-Spot-V Dep-Enhanced - do not u,Adult Social Care Integrated Care,544.36
16/01/2019,1248563,Pursuing Independent Paths,B*Voluntary-Spot-V Dep-Enhanced - do not u,Adult Social Care Integrated Care,"1,170.96"
16/01/2019,1248563,Pursuing Independent Paths,B*Voluntary-Spot-V Dep-Enhanced - do not u,Adult Social Care Integrated Care,"1,951.60"
16/01/2019,1248563,Pursuing Independent Paths,B*Voluntary-Spot-V Dep-Enhanced - do not u,Adult Social Care Integrated Care,780.64
16/01/2019,1248563,Pursuing Independent Paths,B*Voluntary-Spot-V Dep-Enhanced - do not u,Adult Social Care Integrated Care,"1,170.96"
16/01/2019,1248563,Pursuing Independent Paths,B*Voluntary-Spot-V Dep-Enhanced - do not u,Adult Social Care Integrated Care,585.48
16/01/2019,1248563,Pursuing Independent Paths,B*Voluntary-Spot-V Dep-Enhanced - do not u,Adult Social Care Integrated Care,"1,170.96"
16/01/2019,1248563,Pursuing Independent Paths,B*Voluntary-Spot-V Dep-Enhanced - do not u,Adult Social Care Integrated Care,780.64
16/01/2019,1248563,Pursuing Independent Paths,B*Voluntary-Spot-V Dep-Enhanced - do not u,Adult Social Care Integrated Care,"1,170.96"
16/01/2019,1248563,Pursuing Independent Paths,B*Voluntary-Spot-V Dep-Enhanced - do not u,Adult Social Care Integrated Care,"1,170.96"
16/01/2019,1248563,Pursuing Independent Paths,B*Voluntary-Spot-V Dep-Enhanced - do not u,Adult Social Care Integrated Care,780.64
16/01/2019,1248563,Pursuing Independent Paths,B*Voluntary-Spot-V Dep-Enhanced - do not u,Adult Social Care Integrated Care,558.72
16/01/2019,1248563,Pursuing Independent Paths,B*Voluntary-Spot-V Dep-Enhanced - do not u,Adult Social Care Integrated Care,"1,366.12"
16/01/2019,1248563,Pursuing Independent Paths,B*Voluntary-Spot-V Dep-Enhanced - do not u,Adult Social Care Integrated Care,"1,561.28"
16/01/2019,1248563,Pursuing Independent Paths,B*Voluntary-Spot-V Dep-Enhanced - do not u,Adult Social Care Integrated Care,544.36
16/01/2019,1248563,Pursuing Independent Paths,B*Voluntary-Spot-V Dep-Enhanced - do not u,Adult Social Care Integrated Care,780.64
16/01/2019,1248563,Pursuing Independent Paths,B*Voluntary-Spot-V Dep-Enhanced - do not u,Adult Social Care Integrated Care,"1,561.28"
16/01/2019,1248563,Pursuing Independent Paths,B*Voluntary-Spot-V Dep-Enhanced - do not u,Adult Social Care Integrated Care,"1,170.96"
16/01/2019,1248563,Pursuing Independent Paths,B*Voluntary-Spot-V Dep-Enhanced - do not u,Adult Social Care Integrated Care,"1,170.96"
16/01/2019,1248563,Pursuing Independent Paths,B*Voluntary-Spot-V Dep-Enhanced - do not u,Adult Social Care Integrated Care,"1,170.96"
16/01/2019,1248563,Pursuing Independent Paths,B*Voluntary-Spot-V Dep-Enhanced - do not u,Adult Social Care Integrated Care,"1,170.96"
16/01/2019,1248563,Pursuing Independent Paths,B*Voluntary-Spot-V Dep-Enhanced - do not u,Adult Social Care Integrated Care,975.8
05/02/2019,1248563,Pursuing Independent Paths,B*Voluntary-Spot-V Dep-Enhanced - do not u,Adult Social Care Integrated Care,"1,170.96"
05/02/2019,1248563,Pursuing Independent Paths,B*Voluntary-Spot-V Dep-Enhanced - do not u,Adult Social Care Integrated Care,947.92
05/02/2019,1248563,Pursuing Independent Paths,B*Voluntary-Spot-V Dep-Enhanced - do not u,Adult Social Care Integrated Care,780.64
05/02/2019,1248563,Pursuing Independent Paths,B*Voluntary-Spot-V Dep-Enhanced - do not u,Adult Social Care Integrated Care,975.8
05/02/2019,1248563,Pursuing Independent Paths,B*Voluntary-Spot-V Dep-Enhanced - do not u,Adult Social Care Integrated Care,"1,170.96"
05/02/2019,1248563,Pursuing Independent Paths,B*Voluntary-Spot-V Dep-Enhanced - do not u,Adult Social Care Integrated Care,"1,170.96"
05/02/2019,1248563,Pursuing Independent Paths,B*Voluntary-Spot-V Dep-Enhanced - do not u,Adult Social Care Integrated Care,975.4
05/02/2019,1248563,Pursuing Independent Paths,B*Voluntary-Spot-V Dep-Enhanced - do not u,Adult Social Care Integrated Care,"1,170.96"
05/02/2019,1248563,Pursuing Independent Paths,B*Voluntary-Spot-V Dep-Enhanced - do not u,Adult Social Care Integrated Care,780.64
05/02/2019,1248563,Pursuing Independent Paths,B*Voluntary-Spot-V Dep-Enhanced - do not u,Adult Social Care Integrated Care,780.64
05/02/2019,1248563,Pursuing Independent Paths,B*Voluntary-Spot-V Dep-Enhanced - do not u,Adult Social Care Integrated Care,"1,951.60"
05/02/2019,1248563,Pursuing Independent Paths,B*Voluntary-Spot-V Dep-Enhanced - do not u,Adult Social Care Integrated Care,523.8
05/02/2019,1248563,Pursuing Independent Paths,B*Voluntary-Spot-V Dep-Enhanced - do not u,Adult Social Care Integrated Care,"1,951.60"
05/02/2019,1248563,Pursuing Independent Paths,B*Voluntary-Spot-V Dep-Enhanced - do not u,Adult Social Care Integrated Care,"1,170.96"
05/02/2019,1248563,Pursuing Independent Paths,B*Voluntary-Spot-V Dep-Enhanced - do not u,Adult Social Care Integrated Care,585.48
05/02/2019,1248563,Pursuing Independent Paths,B*Voluntary-Spot-V Dep-Enhanced - do not u,Adult Social Care Integrated Care,780.64
05/02/2019,1248563,Pursuing Independent Paths,B*Voluntary-Spot-V Dep-Enhanced - do not u,Adult Social Care Integrated Care,"1,170.96"
05/02/2019,1248563,Pursuing Independent Paths,B*Voluntary-Spot-V Dep-Enhanced - do not u,Adult Social Care Integrated Care,780.64
05/02/2019,1248563,Pursuing Independent Paths,B*Voluntary-Spot-V Dep-Enhanced - do not u,Adult Social Care Integrated Care,975.8
05/02/2019,1248563,Pursuing Independent Paths,B*Voluntary-Spot-V Dep-Enhanced - do not u,Adult Social Care Integrated Care,585.48
05/02/2019,1248563,Pursuing Independent Paths,B*Voluntary-Spot-V Dep-Enhanced - do not u,Adult Social Care Integrated Care,"1,170.96"
05/02/2019,1248563,Pursuing Independent Paths,B*Voluntary-Spot-V Dep-Enhanced - do not u,Adult Social Care Integrated Care,"1,170.96"
05/02/2019,1248563,Pursuing Independent Paths,B*Voluntary-Spot-V Dep-Enhanced - do not u,Adult Social Care Integrated Care,558.72
05/02/2019,1248563,Pursuing Independent Paths,B*Voluntary-Spot-V Dep-Enhanced - do not u,Adult Social Care Integrated Care,"1,366.12"
05/02/2019,1248563,Pursuing Independent Paths,B*Voluntary-Spot-V Dep-Enhanced - do not u,Adult Social Care Integrated Care,"1,170.96"
05/02/2019,1248563,Pursuing Independent Paths,B*Voluntary-Spot-V Dep-Enhanced - do not u,Adult Social Care Integrated Care,"1,561.28"
05/02/2019,1248563,Pursuing Independent Paths,B*Voluntary-Spot-V Dep-Enhanced - do not u,Adult Social Care Integrated Care,544.36
05/02/2019,1248563,Pursuing Independent Paths,B*Voluntary-Spot-V Dep-Enhanced - do not u,Adult Social Care Integrated Care,780.64
05/02/2019,1248563,Pursuing Independent Paths,B*Voluntary-Spot-V Dep-Enhanced - do not u,Adult Social Care Integrated Care,"1,170.96"
05/02/2019,1248563,Pursuing Independent Paths,B*Voluntary-Spot-V Dep-Enhanced - do not u,Adult Social Care Integrated Care,"1,170.96"
05/02/2019,1248563,Pursuing Independent Paths,B*Voluntary-Spot-V Dep-Enhanced - do not u,Adult Social Care Integrated Care,"1,170.96"
28/03/2019,1248563,Pursuing Independent Paths,B*Voluntary-Spot-V Dep-Enhanced - do not u,Adult Social Care Integrated Care,"1,170.96"
28/03/2019,1248563,Pursuing Independent Paths,B*Voluntary-Spot-V Dep-Enhanced - do not u,Adult Social Care Integrated Care,"1,170.96"
28/03/2019,1248563,Pursuing Independent Paths,B*Voluntary-Spot-V Dep-Enhanced - do not u,Adult Social Care Integrated Care,947.92
28/03/2019,1248563,Pursuing Independent Paths,B*Voluntary-Spot-V Dep-Enhanced - do not u,Adult Social Care Integrated Care,"1,170.96"
28/03/2019,1248563,Pursuing Independent Paths,B*Voluntary-Spot-V Dep-Enhanced - do not u,Adult Social Care Integrated Care,780.64
28/03/2019,1248563,Pursuing Independent Paths,B*Voluntary-Spot-V Dep-Enhanced - do not u,Adult Social Care Integrated Care,975.8
28/03/2019,1248563,Pursuing Independent Paths,B*Voluntary-Spot-V Dep-Enhanced - do not u,Adult Social Care Integrated Care,"1,170.96"
28/03/2019,1248563,Pursuing Independent Paths,B*Voluntary-Spot-V Dep-Enhanced - do not u,Adult Social Care Integrated Care,"1,170.96"
28/03/2019,1248563,Pursuing Independent Paths,B*Voluntary-Spot-V Dep-Enhanced - do not u,Adult Social Care Integrated Care,975.4
28/03/2019,1248563,Pursuing Independent Paths,B*Voluntary-Spot-V Dep-Enhanced - do not u,Adult Social Care Integrated Care,"1,170.96"
28/03/2019,1248563,Pursuing Independent Paths,B*Voluntary-Spot-V Dep-Enhanced - do not u,Adult Social Care Integrated Care,780.64
28/03/2019,1248563,Pursuing Independent Paths,B*Voluntary-Spot-V Dep-Enhanced - do not u,Adult Social Care Integrated Care,780.64
28/03/2019,1248563,Pursuing Independent Paths,B*Voluntary-Spot-V Dep-Enhanced - do not u,Adult Social Care Integrated Care,"1,951.60"
28/03/2019,1248563,Pursuing Independent Paths,B*Voluntary-Spot-V Dep-Enhanced - do not u,Adult Social Care Integrated Care,523.8
28/03/2019,1248563,Pursuing Independent Paths,B*Voluntary-Spot-V Dep-Enhanced - do not u,Adult Social Care Integrated Care,"1,951.60"
28/03/2019,1248563,Pursuing Independent Paths,B*Voluntary-Spot-V Dep-Enhanced - do not u,Adult Social Care Integrated Care,"1,170.96"
28/03/2019,1248563,Pursuing Independent Paths,B*Voluntary-Spot-V Dep-Enhanced - do not u,Adult Social Care Integrated Care,585.48
28/03/2019,1248563,Pursuing Independent Paths,B*Voluntary-Spot-V Dep-Enhanced - do not u,Adult Social Care Integrated Care,780.64
28/03/2019,1248563,Pursuing Independent Paths,B*Voluntary-Spot-V Dep-Enhanced - do not u,Adult Social Care Integrated Care,"1,170.96"
28/03/2019,1248563,Pursuing Independent Paths,B*Voluntary-Spot-V Dep-Enhanced - do not u,Adult Social Care Integrated Care,780.64
28/03/2019,1248563,Pursuing Independent Paths,B*Voluntary-Spot-V Dep-Enhanced - do not u,Adult Social Care Integrated Care,975.8
28/03/2019,1248563,Pursuing Independent Paths,B*Voluntary-Spot-V Dep-Enhanced - do not u,Adult Social Care Integrated Care,585.48
28/03/2019,1248563,Pursuing Independent Paths,B*Voluntary-Spot-V Dep-Enhanced - do not u,Adult Social Care Integrated Care,"1,170.96"
28/03/2019,1248563,Pursuing Independent Paths,B*Voluntary-Spot-V Dep-Enhanced - do not u,Adult Social Care Integrated Care,"1,170.96"
28/03/2019,1248563,Pursuing Independent Paths,B*Voluntary-Spot-V Dep-Enhanced - do not u,Adult Social Care Integrated Care,558.72
28/03/2019,1248563,Pursuing Independent Paths,B*Voluntary-Spot-V Dep-Enhanced - do not u,Adult Social Care Integrated Care,"1,366.12"
28/03/2019,1248563,Pursuing Independent Paths,B*Voluntary-Spot-V Dep-Enhanced - do not u,Adult Social Care Integrated Care,"1,170.96"
28/03/2019,1248563,Pursuing Independent Paths,B*Voluntary-Spot-V Dep-Enhanced - do not u,Adult Social Care Integrated Care,"1,561.28"
28/03/2019,1248563,Pursuing Independent Paths,B*Voluntary-Spot-V Dep-Enhanced - do not u,Adult Social Care Integrated Care,544.36
28/03/2019,1248563,Pursuing Independent Paths,B*Voluntary-Spot-V Dep-Enhanced - do not u,Adult Social Care Integrated Care,780.64
28/03/2019,1248563,Pursuing Independent Paths,B*Voluntary-Spot-V Dep-Enhanced - do not u,Adult Social Care Integrated Care,"1,170.96"
29/03/2019,1248563,Pursuing Independent Paths,B*Voluntary-Spot-V Dep-Enhanced - do not u,Adult Social Care Integrated Care,947.92
29/03/2019,1248563,Pursuing Independent Paths,B*Voluntary-Spot-V Dep-Enhanced - do not u,Adult Social Care Integrated Care,"1,170.96"
29/03/2019,1248563,Pursuing Independent Paths,B*Voluntary-Spot-V Dep-Enhanced - do not u,Adult Social Care Integrated Care,780.64
29/03/2019,1248563,Pursuing Independent Paths,B*Voluntary-Spot-V Dep-Enhanced - do not u,Adult Social Care Integrated Care,975.8
29/03/2019,1248563,Pursuing Independent Paths,B*Voluntary-Spot-V Dep-Enhanced - do not u,Adult Social Care Integrated Care,"1,170.96"
29/03/2019,1248563,Pursuing Independent Paths,B*Voluntary-Spot-V Dep-Enhanced - do not u,Adult Social Care Integrated Care,"1,170.96"
29/03/2019,1248563,Pursuing Independent Paths,B*Voluntary-Spot-V Dep-Enhanced - do not u,Adult Social Care Integrated Care,975.4
29/03/2019,1248563,Pursuing Independent Paths,B*Voluntary-Spot-V Dep-Enhanced - do not u,Adult Social Care Integrated Care,"1,170.96"
29/03/2019,1248563,Pursuing Independent Paths,B*Voluntary-Spot-V Dep-Enhanced - do not u,Adult Social Care Integrated Care,780.64
29/03/2019,1248563,Pursuing Independent Paths,B*Voluntary-Spot-V Dep-Enhanced - do not u,Adult Social Care Integrated Care,780.64
29/03/2019,1248563,Pursuing Independent Paths,B*Voluntary-Spot-V Dep-Enhanced - do not u,Adult Social Care Integrated Care,"1,951.60"
29/03/2019,1248563,Pursuing Independent Paths,B*Voluntary-Spot-V Dep-Enhanced - do not u,Adult Social Care Integrated Care,523.8
29/03/2019,1248563,Pursuing Independent Paths,B*Voluntary-Spot-V Dep-Enhanced - do not u,Adult Social Care Integrated Care,"1,951.60"
29/03/2019,1248563,Pursuing Independent Paths,B*Voluntary-Spot-V Dep-Enhanced - do not u,Adult Social Care Integrated Care,"1,170.96"
29/03/2019,1248563,Pursuing Independent Paths,B*Voluntary-Spot-V Dep-Enhanced - do not u,Adult Social Care Integrated Care,585.48
29/03/2019,1248563,Pursuing Independent Paths,B*Voluntary-Spot-V Dep-Enhanced - do not u,Adult Social Care Integrated Care,780.64
29/03/2019,1248563,Pursuing Independent Paths,B*Voluntary-Spot-V Dep-Enhanced - do not u,Adult Social Care Integrated Care,"1,170.96"
29/03/2019,1248563,Pursuing Independent Paths,B*Voluntary-Spot-V Dep-Enhanced - do not u,Adult Social Care Integrated Care,780.64
29/03/2019,1248563,Pursuing Independent Paths,B*Voluntary-Spot-V Dep-Enhanced - do not u,Adult Social Care Integrated Care,975.8
29/03/2019,1248563,Pursuing Independent Paths,B*Voluntary-Spot-V Dep-Enhanced - do not u,Adult Social Care Integrated Care,585.48
29/03/2019,1248563,Pursuing Independent Paths,B*Voluntary-Spot-V Dep-Enhanced - do not u,Adult Social Care Integrated Care,"1,170.96"
29/03/2019,1248563,Pursuing Independent Paths,B*Voluntary-Spot-V Dep-Enhanced - do not u,Adult Social Care Integrated Care,"1,170.96"
29/03/2019,1248563,Pursuing Independent Paths,B*Voluntary-Spot-V Dep-Enhanced - do not u,Adult Social Care Integrated Care,558.72
29/03/2019,1248563,Pursuing Independent Paths,B*Voluntary-Spot-V Dep-Enhanced - do not u,Adult Social Care Integrated Care,"1,366.12"
29/03/2019,1248563,Pursuing Independent Paths,B*Voluntary-Spot-V Dep-Enhanced - do not u,Adult Social Care Integrated Care,"1,170.96"
29/03/2019,1248563,Pursuing Independent Paths,B*Voluntary-Spot-V Dep-Enhanced - do not u,Adult Social Care Integrated Care,"1,561.28"
29/03/2019,1248563,Pursuing Independent Paths,B*Voluntary-Spot-V Dep-Enhanced - do not u,Adult Social Care Integrated Care,544.36
29/03/2019,1248563,Pursuing Independent Paths,B*Voluntary-Spot-V Dep-Enhanced - do not u,Adult Social Care Integrated Care,780.64
29/03/2019,1248563,Pursuing Independent Paths,B*Voluntary-Spot-V Dep-Enhanced - do not u,Adult Social Care Integrated Care,"1,170.96"
29/03/2019,1248563,Pursuing Independent Paths,B*Voluntary-Spot-V Dep-Enhanced - do not u,Adult Social Care Integrated Care,"1,170.96"
29/03/2019,1248563,Pursuing Independent Paths,B*Voluntary-Spot-V Dep-Enhanced - do not u,Adult Social Care Integrated Care,"1,170.96"
28/01/2019,1245169,Rcp Residential Care Providers Ltd,,Adult Social Care Integrated Care,"6,912.48"
28/01/2019,1245169,Rcp Residential Care Providers Ltd,,Adult Social Care Integrated Care,888.72
21/02/2019,1245169,Rcp Residential Care Providers Ltd,,Adult Social Care Integrated Care,"6,912.48"
21/02/2019,1245169,Rcp Residential Care Providers Ltd,,Adult Social Care Integrated Care,888.72
13/03/2019,1245169,Rcp Residential Care Providers Ltd,,Adult Social Care Integrated Care,888.72
13/03/2019,1245169,Rcp Residential Care Providers Ltd,,Adult Social Care Integrated Care,"6,912.48"
09/01/2019,1245170,Residential Care Services Ltd T/A,B*Voluntary-Spot-V Dep-Enhanced - do not u,Adult Social Care Integrated Care,"1,653.84"
09/01/2019,1245170,Residential Care Services Ltd T/A,B*Voluntary-Spot-V Dep-Enhanced - do not u,Adult Social Care Integrated Care,"1,653.84"
18/02/2019,1245170,Residential Care Services Ltd T/A,B*Voluntary-Spot-V Dep-Enhanced - do not u,Adult Social Care Integrated Care,"1,653.84"
11/03/2019,1245170,Residential Care Services Ltd T/A,B*Voluntary-Spot-V Dep-Enhanced - do not u,Adult Social Care Integrated Care,"1,653.84"
25/03/2019,1245170,Residential Care Services Ltd T/A,B*Voluntary-Spot-V Dep-Enhanced - do not u,Adult Social Care Integrated Care,"1,653.84"
05/02/2019,1245316,Respect Care Services Ltd,,Adult Social Care Integrated Care,"2,821.00"
05/02/2019,1245316,Respect Care Services Ltd,,Adult Social Care Integrated Care,"1,085.00"
05/02/2019,1245316,Respect Care Services Ltd,,Adult Social Care Integrated Care,"4,928.00"
09/03/2019,1245316,Respect Care Services Ltd,,Adult Social Care Integrated Care,"2,697.00"
09/03/2019,1245316,Respect Care Services Ltd,,Adult Social Care Integrated Care,"1,085.00"
09/03/2019,1245316,Respect Care Services Ltd,,Adult Social Care Integrated Care,"4,928.00"
28/03/2019,1245316,Respect Care Services Ltd,,Adult Social Care Integrated Care,"2,821.00"
28/03/2019,1245316,Respect Care Services Ltd,,Adult Social Care Integrated Care,"3,512.25"
28/03/2019,1245316,Respect Care Services Ltd,,Adult Social Care Integrated Care,775
28/01/2019,1245172,Richmond Health Care Ltd,,Adult Social Care Integrated Care,"4,512.00"
21/02/2019,1245172,Richmond Health Care Ltd,,Adult Social Care Integrated Care,"4,512.00"
13/03/2019,1245172,Richmond Health Care Ltd,,Adult Social Care Integrated Care,"4,512.00"
28/01/2019,1248621,Rnib Redhill College,,Adult Social Care Integrated Care,"5,380.40"
21/02/2019,1248621,Rnib Redhill College,,Adult Social Care Integrated Care,"5,380.40"
13/03/2019,1248621,Rnib Redhill College,,Adult Social Care Integrated Care,"5,380.40"
10/01/2019,1248843,Sage Care Ltd,,Adult Social Care Integrated Care,851.67
10/01/2019,1248843,Sage Care Ltd,,Adult Social Care Integrated Care,"1,397.48"
10/01/2019,1248843,Sage Care Ltd,,Adult Social Care Integrated Care,971.81
08/02/2019,1248843,Sage Care Ltd,,Adult Social Care Integrated Care,794.04
08/02/2019,1248843,Sage Care Ltd,,Adult Social Care Integrated Care,"1,524.84"
08/02/2019,1248843,Sage Care Ltd,,Adult Social Care Integrated Care,978.75
07/03/2019,1248843,Sage Care Ltd,,Adult Social Care Integrated Care,886.14
07/03/2019,1248843,Sage Care Ltd,,Adult Social Care Integrated Care,"1,532.18"
07/03/2019,1248843,Sage Care Ltd,,Adult Social Care Integrated Care,979.3
21/01/2019,1250523,PERSONAL PAYMENTS,Childrens' Social Care - Personal Budget,Adult Social Care Integrated Care,724
15/02/2019,1250523,PERSONAL PAYMENTS,Childrens' Social Care - Personal Budget,Adult Social Care Integrated Care,724
15/03/2019,1250523,PERSONAL PAYMENTS,Childrens' Social Care - Personal Budget,Adult Social Care Integrated Care,724
28/01/2019,1243534,Self Unlimited,,Adult Social Care Integrated Care,"3,436.20"
28/01/2019,1243534,Self Unlimited,,Adult Social Care Integrated Care,"2,111.20"
21/02/2019,1243534,Self Unlimited,,Adult Social Care Integrated Care,"2,111.20"
21/02/2019,1243534,Self Unlimited,,Adult Social Care Integrated Care,"3,436.20"
13/03/2019,1243534,Self Unlimited,,Adult Social Care Integrated Care,"2,111.20"
13/03/2019,1243534,Self Unlimited,,Adult Social Care Integrated Care,"3,436.20"
31/03/2019,1243534,Self Unlimited,,Adult Social Care Integrated Care,552.4
31/03/2019,1243534,Self Unlimited,,Adult Social Care Integrated Care,552.4
28/01/2019,1245566,Shaw Care Uk Ltd,,Adult Social Care Integrated Care,"3,200.00"
28/01/2019,1245566,Shaw Care Uk Ltd,,Adult Social Care Integrated Care,"3,200.00"
21/02/2019,1245566,Shaw Care Uk Ltd,,Adult Social Care Integrated Care,"3,200.00"
21/02/2019,1245566,Shaw Care Uk Ltd,,Adult Social Care Integrated Care,"3,200.00"
13/03/2019,1245566,Shaw Care Uk Ltd,,Adult Social Care Integrated Care,"3,200.00"
13/03/2019,1245566,Shaw Care Uk Ltd,,Adult Social Care Integrated Care,"3,200.00"
28/01/2019,1248935,Southside Partnership,,Adult Social Care Integrated Care,"10,040.04"
28/01/2019,1248935,Southside Partnership,,Adult Social Care Integrated Care,"2,546.68"
28/01/2019,1248935,Southside Partnership,,Adult Social Care Integrated Care,800
28/01/2019,1248935,Southside Partnership,,Adult Social Care Integrated Care,"3,592.80"
28/01/2019,1248935,Southside Partnership,,Adult Social Care Integrated Care,800
21/02/2019,1248935,Southside Partnership,,Adult Social Care Integrated Care,"3,346.68"
21/02/2019,1248935,Southside Partnership,,Adult Social Care Integrated Care,800
21/02/2019,1248935,Southside Partnership,,Adult Social Care Integrated Care,"2,546.68"
21/02/2019,1248935,Southside Partnership,,Adult Social Care Integrated Care,800
21/02/2019,1248935,Southside Partnership,,Adult Social Care Integrated Care,"3,592.80"
13/03/2019,1248935,Southside Partnership,,Adult Social Care Integrated Care,"3,346.68"
13/03/2019,1248935,Southside Partnership,,Adult Social Care Integrated Care,800
13/03/2019,1248935,Southside Partnership,,Adult Social Care Integrated Care,"2,546.68"
13/03/2019,1248935,Southside Partnership,,Adult Social Care Integrated Care,"3,592.80"
13/03/2019,1248935,Southside Partnership,,Adult Social Care Integrated Care,800
02/01/2019,1248940,Special People,B*Voluntary-Spot-V Dep-Enhanced - do not u,Adult Social Care Integrated Care,"1,698.92"
03/01/2019,1248940,Special People,B*Voluntary-Spot-V Dep-Enhanced - do not u,Adult Social Care Integrated Care,633.39
03/01/2019,1248940,Special People,B*Voluntary-Spot-V Dep-Enhanced - do not u,Adult Social Care Integrated Care,"2,801.70"
03/01/2019,1248940,Special People,B*Voluntary-Spot-V Dep-Enhanced - do not u,Adult Social Care Integrated Care,693
28/01/2019,1248940,Special People,B*Voluntary-Spot-V Dep-Enhanced - do not u,Adult Social Care Integrated Care,"1,125.12"
28/01/2019,1248940,Special People,B*Voluntary-Spot-V Dep-Enhanced - do not u,Adult Social Care Integrated Care,"1,728.76"
28/01/2019,1248940,Special People,B*Voluntary-Spot-V Dep-Enhanced - do not u,Adult Social Care Integrated Care,"2,403.09"
28/01/2019,1248940,Special People,B*Voluntary-Spot-V Dep-Enhanced - do not u,Adult Social Care Integrated Care,"4,947.72"
11/02/2019,1248940,Special People,B*Voluntary-Spot-V Dep-Enhanced - do not u,Adult Social Care Integrated Care,"3,084.84"
11/02/2019,1248940,Special People,B*Voluntary-Spot-V Dep-Enhanced - do not u,Adult Social Care Integrated Care,964.92
28/02/2019,1248940,Special People,B*Voluntary-Spot-V Dep-Enhanced - do not u,Adult Social Care Integrated Care,"2,756.12"
28/02/2019,1248940,Special People,B*Voluntary-Spot-V Dep-Enhanced - do not u,Adult Social Care Integrated Care,"1,702.67"
14/03/2019,1248940,Special People,B*Voluntary-Spot-V Dep-Enhanced - do not u,Adult Social Care Integrated Care,"2,213.10"
14/03/2019,1248940,Special People,B*Voluntary-Spot-V Dep-Enhanced - do not u,Adult Social Care Integrated Care,648.24
26/03/2019,1248940,Special People,B*Voluntary-Spot-V Dep-Enhanced - do not u,Adult Social Care Integrated Care,"1,885.30"
28/01/2019,1245620,Spencer & Arlington,,Adult Social Care Integrated Care,"3,724.56"
28/01/2019,1245620,Spencer & Arlington,,Adult Social Care Integrated Care,"12,835.20"
28/01/2019,1245620,Spencer & Arlington,,Adult Social Care Integrated Care,"2,576.00"
28/01/2019,1245620,Spencer & Arlington,,Adult Social Care Integrated Care,"6,627.60"
21/02/2019,1245620,Spencer & Arlington,,Adult Social Care Integrated Care,"12,835.20"
21/02/2019,1245620,Spencer & Arlington,,Adult Social Care Integrated Care,"3,724.56"
21/02/2019,1245620,Spencer & Arlington,,Adult Social Care Integrated Care,"6,627.60"
21/02/2019,1245620,Spencer & Arlington,,Adult Social Care Integrated Care,"2,576.00"
13/03/2019,1245620,Spencer & Arlington,,Adult Social Care Integrated Care,"12,835.20"
13/03/2019,1245620,Spencer & Arlington,,Adult Social Care Integrated Care,"3,724.56"
13/03/2019,1245620,Spencer & Arlington,,Adult Social Care Integrated Care,"2,576.00"
13/03/2019,1245620,Spencer & Arlington,,Adult Social Care Integrated Care,"6,627.60"
28/01/2019,1243543,Springlake Care Home Ltd,,Adult Social Care Integrated Care,"5,400.00"
28/01/2019,1243543,Springlake Care Home Ltd,,Adult Social Care Integrated Care,"6,000.00"
28/01/2019,1243543,Springlake Care Home Ltd,,Adult Social Care Integrated Care,"6,800.00"
21/02/2019,1243543,Springlake Care Home Ltd,,Adult Social Care Integrated Care,"6,800.00"
21/02/2019,1243543,Springlake Care Home Ltd,,Adult Social Care Integrated Care,"5,400.00"
21/02/2019,1243543,Springlake Care Home Ltd,,Adult Social Care Integrated Care,"6,000.00"
13/03/2019,1243543,Springlake Care Home Ltd,,Adult Social Care Integrated Care,"6,800.00"
13/03/2019,1243543,Springlake Care Home Ltd,,Adult Social Care Integrated Care,"5,400.00"
13/03/2019,1243543,Springlake Care Home Ltd,,Adult Social Care Integrated Care,"6,000.00"
28/01/2019,1248948,St Davids Care In The Community,,Adult Social Care Integrated Care,"3,132.56"
28/01/2019,1248948,St Davids Care In The Community,,Adult Social Care Integrated Care,"3,440.00"
21/02/2019,1248948,St Davids Care In The Community,,Adult Social Care Integrated Care,"3,132.56"
21/02/2019,1248948,St Davids Care In The Community,,Adult Social Care Integrated Care,"3,440.00"
13/03/2019,1248948,St Davids Care In The Community,,Adult Social Care Integrated Care,"3,132.56"
13/03/2019,1248948,St Davids Care In The Community,,Adult Social Care Integrated Care,"3,440.00"
24/01/2019,1245825,Sweet Tree Home Care Services,,Adult Social Care Integrated Care,732.69
24/01/2019,1245825,Sweet Tree Home Care Services,,Adult Social Care Integrated Care,593.4
24/01/2019,1245825,Sweet Tree Home Care Services,,Adult Social Care Integrated Care,"1,225.62"
24/01/2019,1245825,Sweet Tree Home Care Services,,Adult Social Care Integrated Care,"2,712.00"
24/01/2019,1245825,Sweet Tree Home Care Services,,Adult Social Care Integrated Care,"2,863.02"
24/01/2019,1245825,Sweet Tree Home Care Services,,Adult Social Care Integrated Care,757.22
24/01/2019,1245825,Sweet Tree Home Care Services,,Adult Social Care Integrated Care,"4,590.15"
24/01/2019,1245825,Sweet Tree Home Care Services,,Adult Social Care Integrated Care,"1,758.00"
26/02/2019,1245825,Sweet Tree Home Care Services,,Adult Social Care Integrated Care,"4,698.74"
26/02/2019,1245825,Sweet Tree Home Care Services,,Adult Social Care Integrated Care,685.62
26/02/2019,1245825,Sweet Tree Home Care Services,,Adult Social Care Integrated Care,522.66
26/02/2019,1245825,Sweet Tree Home Care Services,,Adult Social Care Integrated Care,943.5
26/02/2019,1245825,Sweet Tree Home Care Services,,Adult Social Care Integrated Care,"2,016.00"
26/02/2019,1245825,Sweet Tree Home Care Services,,Adult Social Care Integrated Care,"3,353.10"
14/03/2019,1245825,Sweet Tree Home Care Services,,Adult Social Care Integrated Care,749.2
14/03/2019,1245825,Sweet Tree Home Care Services,,Adult Social Care Integrated Care,"1,202.50"
14/03/2019,1245825,Sweet Tree Home Care Services,,Adult Social Care Integrated Care,"2,712.00"
14/03/2019,1245825,Sweet Tree Home Care Services,,Adult Social Care Integrated Care,"2,613.15"
14/03/2019,1245825,Sweet Tree Home Care Services,,Adult Social Care Integrated Care,758.72
14/03/2019,1245825,Sweet Tree Home Care Services,,Adult Social Care Integrated Care,"4,676.00"
14/03/2019,1245825,Sweet Tree Home Care Services,,Adult Social Care Integrated Care,525
14/03/2019,1245825,Sweet Tree Home Care Services,,Adult Social Care Integrated Care,"1,749.21"
20/03/2019,1245825,Sweet Tree Home Care Services,Hire of Accommodation and Facilities,Adult Social Care Integrated Care,"2,000.00"
08/01/2019,1245900,The Grace Eyre Foundation,,Adult Social Care Integrated Care,"3,097.59"
28/01/2019,1245900,The Grace Eyre Foundation,,Adult Social Care Integrated Care,"3,534.40"
21/02/2019,1245900,The Grace Eyre Foundation,,Adult Social Care Integrated Care,"3,534.40"
13/03/2019,1245900,The Grace Eyre Foundation,,Adult Social Care Integrated Care,"3,534.40"
28/01/2019,1245929,The Regard Partnership Ltd,,Adult Social Care Integrated Care,"5,701.80"
28/01/2019,1245929,The Regard Partnership Ltd,,Adult Social Care Integrated Care,"3,932.76"
01/02/2019,1245929,The Regard Partnership Ltd,,Adult Social Care Integrated Care,"8,021.81"
21/02/2019,1245929,The Regard Partnership Ltd,,Adult Social Care Integrated Care,"5,701.80"
21/02/2019,1245929,The Regard Partnership Ltd,,Adult Social Care Integrated Care,"3,932.76"
13/03/2019,1245929,The Regard Partnership Ltd,,Adult Social Care Integrated Care,"1,018.18"
13/03/2019,1245929,The Regard Partnership Ltd,,Adult Social Care Integrated Care,"3,932.76"
28/01/2019,1249156,The Wirral Autistic Society,,Adult Social Care Integrated Care,"4,271.20"
21/02/2019,1249156,The Wirral Autistic Society,,Adult Social Care Integrated Care,"4,271.20"
13/03/2019,1249156,The Wirral Autistic Society,,Adult Social Care Integrated Care,"4,271.20"
28/01/2019,1246095,Theana Ltd T/a Enlighten Homes,,Adult Social Care Integrated Care,"5,892.00"
21/02/2019,1246095,Theana Ltd T/a Enlighten Homes,,Adult Social Care Integrated Care,"5,892.00"
13/03/2019,1246095,Theana Ltd T/a Enlighten Homes,,Adult Social Care Integrated Care,"5,892.00"
28/01/2019,1246097,Themi Care Limited,,Adult Social Care Integrated Care,"14,061.43"
21/02/2019,1246097,Themi Care Limited,,Adult Social Care Integrated Care,"3,860.00"
13/03/2019,1246097,Themi Care Limited,,Adult Social Care Integrated Care,"3,860.00"
28/01/2019,1246169,Venus Healthcare Ltd (Use 3003636),,Adult Social Care Integrated Care,"10,800.16"
21/02/2019,1246169,Venus Healthcare Ltd (Use 3003636),,Adult Social Care Integrated Care,"10,800.16"
13/03/2019,1246169,Venus Healthcare Ltd (Use 3003636),,Adult Social Care Integrated Care,"10,800.16"
10/01/2019,1249232,Vincentian Care Plus,,Adult Social Care Integrated Care,900.06
10/01/2019,1249232,Vincentian Care Plus,,Adult Social Care Integrated Care,"1,722.69"
08/02/2019,1249232,Vincentian Care Plus,,Adult Social Care Integrated Care,894.63
08/02/2019,1249232,Vincentian Care Plus,,Adult Social Care Integrated Care,"2,021.86"
07/03/2019,1249232,Vincentian Care Plus,,Adult Social Care Integrated Care,"1,921.41"
07/03/2019,1249232,Vincentian Care Plus,,Adult Social Care Integrated Care,884.87
28/01/2019,1243552,Vision Homes Association,,Adult Social Care Integrated Care,"7,760.00"
21/02/2019,1243552,Vision Homes Association,,Adult Social Care Integrated Care,"7,760.00"
13/03/2019,1243552,Vision Homes Association,,Adult Social Care Integrated Care,"7,760.00"
28/01/2019,1243553,Voyage Care (Bridge House),,Adult Social Care Integrated Care,"4,433.00"
21/02/2019,1243553,Voyage Care (Bridge House),,Adult Social Care Integrated Care,"4,433.00"
13/03/2019,1243553,Voyage Care (Bridge House),,Adult Social Care Integrated Care,"4,433.00"
28/01/2019,1243554,Voyage Care (Kenton House),,Adult Social Care Integrated Care,"5,809.96"
21/02/2019,1243554,Voyage Care (Kenton House),,Adult Social Care Integrated Care,"5,809.96"
13/03/2019,1243554,Voyage Care (Kenton House),,Adult Social Care Integrated Care,"5,809.96"
09/01/2019,1249291,Westminster Society,B*Voluntary-Spot-V Dep-Enhanced - do not u,Adult Social Care Integrated Care,"1,275.00"
09/01/2019,1249291,Westminster Society,B*Voluntary-Spot-V Dep-Enhanced - do not u,Adult Social Care Integrated Care,680
09/01/2019,1249291,Westminster Society,B*Voluntary-Spot-V Dep-Enhanced - do not u,Adult Social Care Integrated Care,850
09/01/2019,1249291,Westminster Society,B*Voluntary-Spot-V Dep-Enhanced - do not u,Adult Social Care Integrated Care,"1,487.50"
09/01/2019,1249291,Westminster Society,B*Voluntary-Spot-V Dep-Enhanced - do not u,Adult Social Care Integrated Care,"1,190.00"
09/01/2019,1249291,Westminster Society,B*Voluntary-Spot-V Dep-Enhanced - do not u,Adult Social Care Integrated Care,935
09/01/2019,1249291,Westminster Society,B*Voluntary-Spot-V Dep-Enhanced - do not u,Adult Social Care Integrated Care,765
09/01/2019,1249291,Westminster Society,B*Voluntary-Spot-V Dep-Enhanced - do not u,Adult Social Care Integrated Care,680
10/01/2019,1249291,Westminster Society,B*Voluntary-Spot-V Dep-Enhanced - do not u,Adult Social Care Integrated Care,"1,020.00"
10/01/2019,1249291,Westminster Society,B*Voluntary-Spot-V Dep-Enhanced - do not u,Adult Social Care Integrated Care,"2,040.00"
10/01/2019,1249291,Westminster Society,B*Voluntary-Spot-V Dep-Enhanced - do not u,Adult Social Care Integrated Care,"1,224.00"
10/01/2019,1249291,Westminster Society,B*Voluntary-Spot-V Dep-Enhanced - do not u,Adult Social Care Integrated Care,"1,700.00"
10/01/2019,1249291,Westminster Society,B*Voluntary-Spot-V Dep-Enhanced - do not u,Adult Social Care Integrated Care,816
10/01/2019,1249291,Westminster Society,B*Voluntary-Spot-V Dep-Enhanced - do not u,Adult Social Care Integrated Care,"1,700.00"
10/01/2019,1249291,Westminster Society,B*Voluntary-Spot-V Dep-Enhanced - do not u,Adult Social Care Integrated Care,"1,088.00"
10/01/2019,1249291,Westminster Society,B*Voluntary-Spot-V Dep-Enhanced - do not u,Adult Social Care Integrated Care,510
10/01/2019,1249291,Westminster Society,B*Voluntary-Spot-V Dep-Enhanced - do not u,Adult Social Care Integrated Care,"1,700.00"
10/01/2019,1249291,Westminster Society,B*Voluntary-Spot-V Dep-Enhanced - do not u,Adult Social Care Integrated Care,"4,879.00"
10/01/2019,1249291,Westminster Society,B*Voluntary-Spot-V Dep-Enhanced - do not u,Adult Social Care Integrated Care,612
10/01/2019,1249291,Westminster Society,B*Voluntary-Spot-V Dep-Enhanced - do not u,Adult Social Care Integrated Care,544
10/01/2019,1249291,Westminster Society,B*Voluntary-Spot-V Dep-Enhanced - do not u,Adult Social Care Integrated Care,510
10/01/2019,1249291,Westminster Society,B*Voluntary-Spot-V Dep-Enhanced - do not u,Adult Social Care Integrated Care,510
10/01/2019,1249291,Westminster Society,B*Voluntary-Spot-V Dep-Enhanced - do not u,Adult Social Care Integrated Care,510
10/01/2019,1249291,Westminster Society,B*Voluntary-Spot-V Dep-Enhanced - do not u,Adult Social Care Integrated Care,510
10/01/2019,1249291,Westminster Society,B*Voluntary-Spot-V Dep-Enhanced - do not u,Adult Social Care Integrated Care,510
10/01/2019,1249291,Westminster Society,B*Voluntary-Spot-V Dep-Enhanced - do not u,Adult Social Care Integrated Care,510
10/01/2019,1249291,Westminster Society,B*Voluntary-Spot-V Dep-Enhanced - do not u,Adult Social Care Integrated Care,510
10/01/2019,1249291,Westminster Society,B*Voluntary-Spot-V Dep-Enhanced - do not u,Adult Social Care Integrated Care,510
10/01/2019,1249291,Westminster Society,B*Voluntary-Spot-V Dep-Enhanced - do not u,Adult Social Care Integrated Care,510
10/01/2019,1249291,Westminster Society,B*Voluntary-Spot-V Dep-Enhanced - do not u,Adult Social Care Integrated Care,510
10/01/2019,1249291,Westminster Society,B*Voluntary-Spot-V Dep-Enhanced - do not u,Adult Social Care Integrated Care,510
10/01/2019,1249291,Westminster Society,B*Voluntary-Spot-V Dep-Enhanced - do not u,Adult Social Care Integrated Care,510
10/01/2019,1249291,Westminster Society,B*Voluntary-Spot-V Dep-Enhanced - do not u,Adult Social Care Integrated Care,510
10/01/2019,1249291,Westminster Society,B*Voluntary-Spot-V Dep-Enhanced - do not u,Adult Social Care Integrated Care,510
10/01/2019,1249291,Westminster Society,B*Voluntary-Spot-V Dep-Enhanced - do not u,Adult Social Care Integrated Care,"1,020.00"
10/01/2019,1249291,Westminster Society,B*Voluntary-Spot-V Dep-Enhanced - do not u,Adult Social Care Integrated Care,"2,737.00"
10/01/2019,1249291,Westminster Society,B*Voluntary-Spot-V Dep-Enhanced - do not u,Adult Social Care Integrated Care,"1,360.00"
10/01/2019,1249291,Westminster Society,B*Voluntary-Spot-V Dep-Enhanced - do not u,Adult Social Care Integrated Care,"1,360.00"
10/01/2019,1249291,Westminster Society,B*Voluntary-Spot-V Dep-Enhanced - do not u,Adult Social Care Integrated Care,680
10/01/2019,1249291,Westminster Society,B*Voluntary-Spot-V Dep-Enhanced - do not u,Adult Social Care Integrated Care,680
17/01/2019,1249291,Westminster Society,B*Voluntary-Spot-V Dep-Enhanced - do not u,Adult Social Care Integrated Care,816
18/01/2019,1249291,Westminster Society,B*Voluntary-Spot-V Dep-Enhanced - do not u,Adult Social Care Integrated Care,"1,020.00"
28/01/2019,1249291,Westminster Society,,Adult Social Care Integrated Care,"1,331.40"
28/01/2019,1249291,Westminster Society,,Adult Social Care Integrated Care,"1,759.36"
28/01/2019,1249291,Westminster Society,,Adult Social Care Integrated Care,634
28/01/2019,1249291,Westminster Society,,Adult Social Care Integrated Care,"3,233.40"
28/01/2019,1249291,Westminster Society,,Adult Social Care Integrated Care,"6,657.00"
28/01/2019,1249291,Westminster Society,,Adult Social Care Integrated Care,"3,994.20"
28/01/2019,1249291,Westminster Society,,Adult Social Care Integrated Care,"4,501.40"
28/01/2019,1249291,Westminster Society,,Adult Social Care Integrated Care,"3,550.40"
28/01/2019,1249291,Westminster Society,,Adult Social Care Integrated Care,935.2
28/01/2019,1249291,Westminster Society,,Adult Social Care Integrated Care,"2,536.00"
28/01/2019,1249291,Westminster Society,,Adult Social Care Integrated Care,"8,088.04"
28/01/2019,1249291,Westminster Society,,Adult Social Care Integrated Care,"3,620.16"
28/01/2019,1249291,Westminster Society,,Adult Social Care Integrated Care,780.76
28/01/2019,1249291,Westminster Society,,Adult Social Care Integrated Care,"2,282.40"
28/01/2019,1249291,Westminster Society,,Adult Social Care Integrated Care,"3,550.40"
28/01/2019,1249291,Westminster Society,,Adult Social Care Integrated Care,"2,028.80"
28/01/2019,1249291,Westminster Society,,Adult Social Care Integrated Care,"3,328.52"
28/01/2019,1249291,Westminster Society,,Adult Social Care Integrated Care,"6,657.00"
28/01/2019,1249291,Westminster Society,,Adult Social Care Integrated Care,"1,585.00"
28/01/2019,1249291,Westminster Society,,Adult Social Care Integrated Care,"1,489.92"
28/01/2019,1249291,Westminster Society,,Adult Social Care Integrated Care,"3,296.80"
28/01/2019,1249291,Westminster Society,,Adult Social Care Integrated Care,"1,838.60"
28/01/2019,1249291,Westminster Society,,Adult Social Care Integrated Care,"3,487.00"
28/01/2019,1249291,Westminster Society,,Adult Social Care Integrated Care,"2,853.00"
28/01/2019,1249291,Westminster Society,,Adult Social Care Integrated Care,935.2
28/01/2019,1249291,Westminster Society,,Adult Social Care Integrated Care,700
28/01/2019,1249291,Westminster Society,,Adult Social Care Integrated Care,"1,370.04"
28/01/2019,1249291,Westminster Society,,Adult Social Care Integrated Care,"4,585.72"
28/01/2019,1249291,Westminster Society,,Adult Social Care Integrated Care,"1,029.00"
28/01/2019,1249291,Westminster Society,,Adult Social Care Integrated Care,700
28/01/2019,1249291,Westminster Society,,Adult Social Care Integrated Care,"5,241.28"
28/01/2019,1249291,Westminster Society,,Adult Social Care Integrated Care,"13,262.80"
28/01/2019,1249291,Westminster Society,,Adult Social Care Integrated Care,"6,257.60"
28/01/2019,1249291,Westminster Society,,Adult Social Care Integrated Care,780.76
28/01/2019,1249291,Westminster Society,,Adult Social Care Integrated Care,"1,268.00"
28/01/2019,1249291,Westminster Society,,Adult Social Care Integrated Care,634
28/01/2019,1249291,Westminster Society,,Adult Social Care Integrated Care,"4,659.92"
28/01/2019,1249291,Westminster Society,,Adult Social Care Integrated Care,935.2
28/01/2019,1249291,Westminster Society,,Adult Social Care Integrated Care,"2,599.40"
28/01/2019,1249291,Westminster Society,,Adult Social Care Integrated Care,"2,219.00"
28/01/2019,1249291,Westminster Society,,Adult Social Care Integrated Care,"3,883.24"
28/01/2019,1249291,Westminster Society,,Adult Social Care Integrated Care,"1,737.16"
28/01/2019,1249291,Westminster Society,,Adult Social Care Integrated Care,"3,613.80"
28/01/2019,1249291,Westminster Society,,Adult Social Care Integrated Care,602.3
28/01/2019,1249291,Westminster Society,,Adult Social Care Integrated Care,"2,345.80"
28/01/2019,1249291,Westminster Society,,Adult Social Care Integrated Care,"3,867.40"
28/01/2019,1249291,Westminster Society,,Adult Social Care Integrated Care,935.2
28/01/2019,1249291,Westminster Society,,Adult Social Care Integrated Care,"5,110.04"
28/01/2019,1249291,Westminster Society,,Adult Social Care Integrated Care,780.76
28/01/2019,1249291,Westminster Society,,Adult Social Care Integrated Care,780.76
28/01/2019,1249291,Westminster Society,,Adult Social Care Integrated Care,"6,276.60"
28/01/2019,1249291,Westminster Society,,Adult Social Care Integrated Care,507.2
28/01/2019,1249291,Westminster Society,,Adult Social Care Integrated Care,"2,092.20"
28/01/2019,1249291,Westminster Society,,Adult Social Care Integrated Care,"7,354.40"
28/01/2019,1249291,Westminster Society,,Adult Social Care Integrated Care,"4,116.00"
28/01/2019,1249291,Westminster Society,,Adult Social Care Integrated Care,"2,979.80"
28/01/2019,1249291,Westminster Society,,Adult Social Care Integrated Care,"2,536.00"
28/01/2019,1249291,Westminster Society,,Adult Social Care Integrated Care,"4,457.04"
28/01/2019,1249291,Westminster Society,,Adult Social Care Integrated Care,"5,579.20"
28/01/2019,1249291,Westminster Society,,Adult Social Care Integrated Care,"6,023.00"
28/01/2019,1249291,Westminster Society,,Adult Social Care Integrated Care,"4,116.00"
28/01/2019,1249291,Westminster Society,,Adult Social Care Integrated Care,"3,867.40"
28/01/2019,1249291,Westminster Society,,Adult Social Care Integrated Care,935.2
28/01/2019,1249291,Westminster Society,,Adult Social Care Integrated Care,700
28/01/2019,1249291,Westminster Society,,Adult Social Care Integrated Care,"1,029.00"
28/01/2019,1249291,Westminster Society,,Adult Social Care Integrated Care,"5,241.28"
28/01/2019,1249291,Westminster Society,,Adult Social Care Integrated Care,"3,664.52"
28/01/2019,1249291,Westminster Society,,Adult Social Care Integrated Care,780.76
28/01/2019,1249291,Westminster Society,,Adult Social Care Integrated Care,780.76
28/01/2019,1249291,Westminster Society,,Adult Social Care Integrated Care,"5,610.92"
28/01/2019,1249291,Westminster Society,,Adult Social Care Integrated Care,"1,120.00"
28/01/2019,1249291,Westminster Society,,Adult Social Care Integrated Care,"2,536.00"
28/01/2019,1249291,Westminster Society,,Adult Social Care Integrated Care,935.2
28/01/2019,1249291,Westminster Society,,Adult Social Care Integrated Care,"2,155.60"
28/01/2019,1249291,Westminster Society,,Adult Social Care Integrated Care,"9,413.08"
28/01/2019,1249291,Westminster Society,,Adult Social Care Integrated Care,780.76
28/01/2019,1249291,Westminster Society,,Adult Social Care Integrated Care,"4,945.20"
28/01/2019,1249291,Westminster Society,,Adult Social Care Integrated Care,"1,125.35"
28/01/2019,1249291,Westminster Society,,Adult Social Care Integrated Care,570.6
28/01/2019,1249291,Westminster Society,,Adult Social Care Integrated Care,"3,106.60"
28/01/2019,1249291,Westminster Society,,Adult Social Care Integrated Care,887.6
28/01/2019,1249291,Westminster Society,,Adult Social Care Integrated Care,"8,876.00"
28/01/2019,1249291,Westminster Society,,Adult Social Care Integrated Care,"35,504.00"
28/01/2019,1249291,Westminster Society,,Adult Social Care Integrated Care,"1,407.00"
28/01/2019,1249291,Westminster Society,,Adult Social Care Integrated Care,760.8
28/01/2019,1249291,Westminster Society,,Adult Social Care Integrated Care,"3,677.20"
28/01/2019,1249291,Westminster Society,,Adult Social Care Integrated Care,"2,155.60"
28/01/2019,1249291,Westminster Society,,Adult Social Care Integrated Care,"4,121.00"
28/01/2019,1249291,Westminster Society,,Adult Social Care Integrated Care,"3,677.20"
28/01/2019,1249291,Westminster Society,,Adult Social Care Integrated Care,"7,988.40"
28/01/2019,1249291,Westminster Society,,Adult Social Care Integrated Care,700
28/01/2019,1249291,Westminster Society,,Adult Social Care Integrated Care,"1,047.20"
28/01/2019,1249291,Westminster Society,,Adult Social Care Integrated Care,"1,047.20"
28/01/2019,1249291,Westminster Society,,Adult Social Care Integrated Care,700
28/01/2019,1249291,Westminster Society,,Adult Social Care Integrated Care,"3,651.84"
28/01/2019,1249291,Westminster Society,,Adult Social Care Integrated Care,"4,585.72"
28/01/2019,1249291,Westminster Society,,Adult Social Care Integrated Care,"1,370.04"
28/01/2019,1249291,Westminster Society,,Adult Social Care Integrated Care,700
28/01/2019,1249291,Westminster Society,,Adult Social Care Integrated Care,"2,662.80"
28/01/2019,1249291,Westminster Society,,Adult Social Care Integrated Care,"3,043.20"
28/01/2019,1249291,Westminster Society,,Adult Social Care Integrated Care,"2,789.60"
28/01/2019,1249291,Westminster Society,,Adult Social Care Integrated Care,"2,409.20"
28/01/2019,1249291,Westminster Society,,Adult Social Care Integrated Care,935.2
28/01/2019,1249291,Westminster Society,,Adult Social Care Integrated Care,"2,599.40"
28/01/2019,1249291,Westminster Society,,Adult Social Care Integrated Care,700
28/01/2019,1249291,Westminster Society,,Adult Social Care Integrated Care,"1,047.20"
28/01/2019,1249291,Westminster Society,,Adult Social Care Integrated Care,"3,842.04"
28/01/2019,1249291,Westminster Society,,Adult Social Care Integrated Care,700
28/01/2019,1249291,Westminster Society,,Adult Social Care Integrated Care,"1,047.20"
28/01/2019,1249291,Westminster Society,,Adult Social Care Integrated Care,"3,651.84"
28/01/2019,1249291,Westminster Society,,Adult Social Care Integrated Care,"8,969.28"
28/01/2019,1249291,Westminster Society,,Adult Social Care Integrated Care,700
28/01/2019,1249291,Westminster Society,,Adult Social Care Integrated Care,"1,029.00"
28/01/2019,1249291,Westminster Society,,Adult Social Care Integrated Care,"5,522.16"
28/01/2019,1249291,Westminster Society,,Adult Social Care Integrated Care,780.76
28/01/2019,1249291,Westminster Society,,Adult Social Care Integrated Care,"3,480.68"
28/01/2019,1249291,Westminster Society,,Adult Social Care Integrated Care,"2,948.12"
28/01/2019,1249291,Westminster Society,,Adult Social Care Integrated Care,781.16
28/01/2019,1249291,Westminster Society,,Adult Social Care Integrated Care,"3,620.16"
28/01/2019,1249291,Westminster Society,,Adult Social Care Integrated Care,780.76
28/01/2019,1249291,Westminster Society,,Adult Social Care Integrated Care,"2,219.00"
28/01/2019,1249291,Westminster Society,,Adult Social Care Integrated Care,780.76
28/01/2019,1249291,Westminster Society,,Adult Social Care Integrated Care,"1,331.40"
28/01/2019,1249291,Westminster Society,,Adult Social Care Integrated Care,951
28/01/2019,1249291,Westminster Society,,Adult Social Care Integrated Care,"1,172.92"
28/01/2019,1249291,Westminster Society,,Adult Social Care Integrated Care,"1,331.40"
28/01/2019,1249291,Westminster Society,,Adult Social Care Integrated Care,"2,409.20"
28/01/2019,1249291,Westminster Society,,Adult Social Care Integrated Care,"6,878.92"
28/01/2019,1249291,Westminster Society,,Adult Social Care Integrated Care,"1,492.80"
28/01/2019,1249291,Westminster Society,,Adult Social Care Integrated Care,"7,925.00"
28/01/2019,1249291,Westminster Society,,Adult Social Care Integrated Care,"2,155.60"
28/01/2019,1249291,Westminster Society,,Adult Social Care Integrated Care,935.2
28/01/2019,1249291,Westminster Society,,Adult Social Care Integrated Care,"4,057.60"
28/01/2019,1249291,Westminster Society,,Adult Social Care Integrated Care,935.2
28/01/2019,1249291,Westminster Society,,Adult Social Care Integrated Care,"3,867.40"
28/01/2019,1249291,Westminster Society,,Adult Social Care Integrated Care,700
28/01/2019,1249291,Westminster Society,,Adult Social Care Integrated Care,"1,029.00"
28/01/2019,1249291,Westminster Society,,Adult Social Care Integrated Care,"5,241.28"
28/01/2019,1249291,Westminster Society,,Adult Social Care Integrated Care,780.76
28/01/2019,1249291,Westminster Society,,Adult Social Care Integrated Care,"2,504.32"
31/01/2019,1249291,Westminster Society,B*Voluntary-Spot-V Dep-Enhanced - do not u,Adult Social Care Integrated Care,"1,710.00"
31/01/2019,1249291,Westminster Society,B*Voluntary-Spot-V Dep-Enhanced - do not u,Adult Social Care Integrated Care,"1,725.00"
31/01/2019,1249291,Westminster Society,B*Voluntary-Spot-V Dep-Enhanced - do not u,Adult Social Care Integrated Care,517.5
31/01/2019,1249291,Westminster Society,B*Voluntary-Spot-V Dep-Enhanced - do not u,Adult Social Care Integrated Care,"1,156.00"
05/02/2019,1249291,Westminster Society,B*Voluntary-Spot-V Dep-Enhanced - do not u,Adult Social Care Integrated Care,"1,938.00"
05/02/2019,1249291,Westminster Society,B*Voluntary-Spot-V Dep-Enhanced - do not u,Adult Social Care Integrated Care,"1,360.00"
05/02/2019,1249291,Westminster Society,B*Voluntary-Spot-V Dep-Enhanced - do not u,Adult Social Care Integrated Care,850
05/02/2019,1249291,Westminster Society,B*Voluntary-Spot-V Dep-Enhanced - do not u,Adult Social Care Integrated Care,680
05/02/2019,1249291,Westminster Society,B*Voluntary-Spot-V Dep-Enhanced - do not u,Adult Social Care Integrated Care,680
05/02/2019,1249291,Westminster Society,B*Voluntary-Spot-V Dep-Enhanced - do not u,Adult Social Care Integrated Care,680
05/02/2019,1249291,Westminster Society,B*Voluntary-Spot-V Dep-Enhanced - do not u,Adult Social Care Integrated Care,816
05/02/2019,1249291,Westminster Society,B*Voluntary-Spot-V Dep-Enhanced - do not u,Adult Social Care Integrated Care,"1,020.00"
05/02/2019,1249291,Westminster Society,B*Voluntary-Spot-V Dep-Enhanced - do not u,Adult Social Care Integrated Care,544
05/02/2019,1249291,Westminster Society,B*Voluntary-Spot-V Dep-Enhanced - do not u,Adult Social Care Integrated Care,680
05/02/2019,1249291,Westminster Society,B*Voluntary-Spot-V Dep-Enhanced - do not u,Adult Social Care Integrated Care,"1,190.00"
05/02/2019,1249291,Westminster Society,B*Voluntary-Spot-V Dep-Enhanced - do not u,Adult Social Care Integrated Care,952
05/02/2019,1249291,Westminster Society,B*Voluntary-Spot-V Dep-Enhanced - do not u,Adult Social Care Integrated Care,748
05/02/2019,1249291,Westminster Society,B*Voluntary-Spot-V Dep-Enhanced - do not u,Adult Social Care Integrated Care,612
05/02/2019,1249291,Westminster Society,B*Voluntary-Spot-V Dep-Enhanced - do not u,Adult Social Care Integrated Care,544
05/02/2019,1249291,Westminster Society,B*Voluntary-Spot-V Dep-Enhanced - do not u,Adult Social Care Integrated Care,"1,020.00"
05/02/2019,1249291,Westminster Society,B*Voluntary-Spot-V Dep-Enhanced - do not u,Adult Social Care Integrated Care,680
07/02/2019,1249291,Westminster Society,B*Voluntary-Spot-V Dep-Enhanced - do not u,Adult Social Care Integrated Care,"2,040.00"
07/02/2019,1249291,Westminster Society,B*Voluntary-Spot-V Dep-Enhanced - do not u,Adult Social Care Integrated Care,"1,224.00"
07/02/2019,1249291,Westminster Society,B*Voluntary-Spot-V Dep-Enhanced - do not u,Adult Social Care Integrated Care,"1,700.00"
07/02/2019,1249291,Westminster Society,B*Voluntary-Spot-V Dep-Enhanced - do not u,Adult Social Care Integrated Care,"1,088.00"
07/02/2019,1249291,Westminster Society,B*Voluntary-Spot-V Dep-Enhanced - do not u,Adult Social Care Integrated Care,"1,700.00"
07/02/2019,1249291,Westminster Society,B*Voluntary-Spot-V Dep-Enhanced - do not u,Adult Social Care Integrated Care,816
07/02/2019,1249291,Westminster Society,B*Voluntary-Spot-V Dep-Enhanced - do not u,Adult Social Care Integrated Care,510
07/02/2019,1249291,Westminster Society,B*Voluntary-Spot-V Dep-Enhanced - do not u,Adult Social Care Integrated Care,"1,700.00"
07/02/2019,1249291,Westminster Society,B*Voluntary-Spot-V Dep-Enhanced - do not u,Adult Social Care Integrated Care,"4,420.00"
07/02/2019,1249291,Westminster Society,B*Voluntary-Spot-V Dep-Enhanced - do not u,Adult Social Care Integrated Care,612
07/02/2019,1249291,Westminster Society,B*Voluntary-Spot-V Dep-Enhanced - do not u,Adult Social Care Integrated Care,544
13/02/2019,1249291,Westminster Society,B*Voluntary-Spot-V Dep-Enhanced - do not u,Adult Social Care Integrated Care,"5,867.43"
14/02/2019,1249291,Westminster Society,B*Voluntary-Spot-V Dep-Enhanced - do not u,Adult Social Care Integrated Care,"97,971.00"
21/02/2019,1249291,Westminster Society,,Adult Social Care Integrated Care,"3,994.20"
21/02/2019,1249291,Westminster Society,,Adult Social Care Integrated Care,"4,501.40"
21/02/2019,1249291,Westminster Society,,Adult Social Care Integrated Care,"3,550.40"
21/02/2019,1249291,Westminster Society,,Adult Social Care Integrated Care,634
21/02/2019,1249291,Westminster Society,,Adult Social Care Integrated Care,"1,759.36"
21/02/2019,1249291,Westminster Society,,Adult Social Care Integrated Care,"6,657.00"
21/02/2019,1249291,Westminster Society,,Adult Social Care Integrated Care,"1,331.40"
21/02/2019,1249291,Westminster Society,,Adult Social Care Integrated Care,"3,233.40"
21/02/2019,1249291,Westminster Society,,Adult Social Care Integrated Care,935.2
21/02/2019,1249291,Westminster Society,,Adult Social Care Integrated Care,"2,536.00"
21/02/2019,1249291,Westminster Society,,Adult Social Care Integrated Care,"8,088.04"
21/02/2019,1249291,Westminster Society,,Adult Social Care Integrated Care,"3,620.16"
21/02/2019,1249291,Westminster Society,,Adult Social Care Integrated Care,780.76
21/02/2019,1249291,Westminster Society,,Adult Social Care Integrated Care,"3,296.80"
21/02/2019,1249291,Westminster Society,,Adult Social Care Integrated Care,"3,550.40"
21/02/2019,1249291,Westminster Society,,Adult Social Care Integrated Care,"2,282.40"
21/02/2019,1249291,Westminster Society,,Adult Social Care Integrated Care,"4,585.72"
21/02/2019,1249291,Westminster Society,,Adult Social Care Integrated Care,"1,370.04"
21/02/2019,1249291,Westminster Society,,Adult Social Care Integrated Care,700
21/02/2019,1249291,Westminster Society,,Adult Social Care Integrated Care,"6,617.35"
21/02/2019,1249291,Westminster Society,,Adult Social Care Integrated Care,935.2
21/02/2019,1249291,Westminster Society,,Adult Social Care Integrated Care,"2,028.80"
21/02/2019,1249291,Westminster Society,,Adult Social Care Integrated Care,"3,328.52"
21/02/2019,1249291,Westminster Society,,Adult Social Care Integrated Care,"3,487.00"
21/02/2019,1249291,Westminster Society,,Adult Social Care Integrated Care,"6,257.60"
21/02/2019,1249291,Westminster Society,,Adult Social Care Integrated Care,780.76
21/02/2019,1249291,Westminster Society,,Adult Social Care Integrated Care,"1,838.60"
21/02/2019,1249291,Westminster Society,,Adult Social Care Integrated Care,"1,489.92"
21/02/2019,1249291,Westminster Society,,Adult Social Care Integrated Care,"5,241.28"
21/02/2019,1249291,Westminster Society,,Adult Social Care Integrated Care,"1,029.00"
21/02/2019,1249291,Westminster Society,,Adult Social Care Integrated Care,700
21/02/2019,1249291,Westminster Society,,Adult Social Care Integrated Care,"13,262.80"
21/02/2019,1249291,Westminster Society,,Adult Social Care Integrated Care,"1,585.00"
21/02/2019,1249291,Westminster Society,,Adult Social Care Integrated Care,"6,657.00"
21/02/2019,1249291,Westminster Society,,Adult Social Care Integrated Care,"3,613.80"
21/02/2019,1249291,Westminster Society,,Adult Social Care Integrated Care,634
21/02/2019,1249291,Westminster Society,,Adult Social Care Integrated Care,"1,268.00"
21/02/2019,1249291,Westminster Society,,Adult Social Care Integrated Care,"2,599.40"
21/02/2019,1249291,Westminster Society,,Adult Social Care Integrated Care,780.76
21/02/2019,1249291,Westminster Society,,Adult Social Care Integrated Care,"6,276.60"
21/02/2019,1249291,Westminster Society,,Adult Social Care Integrated Care,780.76
21/02/2019,1249291,Westminster Society,,Adult Social Care Integrated Care,"5,110.04"
21/02/2019,1249291,Westminster Society,,Adult Social Care Integrated Care,935.2
21/02/2019,1249291,Westminster Society,,Adult Social Care Integrated Care,"4,659.92"
21/02/2019,1249291,Westminster Society,,Adult Social Care Integrated Care,935.2
21/02/2019,1249291,Westminster Society,,Adult Social Care Integrated Care,"3,867.40"
21/02/2019,1249291,Westminster Society,,Adult Social Care Integrated Care,"2,345.80"
21/02/2019,1249291,Westminster Society,,Adult Social Care Integrated Care,"3,883.24"
21/02/2019,1249291,Westminster Society,,Adult Social Care Integrated Care,"1,737.16"
21/02/2019,1249291,Westminster Society,,Adult Social Care Integrated Care,"2,219.00"
21/02/2019,1249291,Westminster Society,,Adult Social Care Integrated Care,"4,116.00"
21/02/2019,1249291,Westminster Society,,Adult Social Care Integrated Care,"7,354.40"
21/02/2019,1249291,Westminster Society,,Adult Social Care Integrated Care,"2,536.00"
21/02/2019,1249291,Westminster Society,,Adult Social Care Integrated Care,"2,979.80"
21/02/2019,1249291,Westminster Society,,Adult Social Care Integrated Care,"4,116.00"
21/02/2019,1249291,Westminster Society,,Adult Social Care Integrated Care,"6,023.00"
21/02/2019,1249291,Westminster Society,,Adult Social Care Integrated Care,507.2
21/02/2019,1249291,Westminster Society,,Adult Social Care Integrated Care,"2,092.20"
21/02/2019,1249291,Westminster Society,,Adult Social Care Integrated Care,"4,457.04"
21/02/2019,1249291,Westminster Society,,Adult Social Care Integrated Care,"5,579.20"
21/02/2019,1249291,Westminster Society,,Adult Social Care Integrated Care,"3,867.40"
21/02/2019,1249291,Westminster Society,,Adult Social Care Integrated Care,935.2
21/02/2019,1249291,Westminster Society,,Adult Social Care Integrated Care,"1,029.00"
21/02/2019,1249291,Westminster Society,,Adult Social Care Integrated Care,"5,241.28"
21/02/2019,1249291,Westminster Society,,Adult Social Care Integrated Care,700
21/02/2019,1249291,Westminster Society,,Adult Social Care Integrated Care,780.76
21/02/2019,1249291,Westminster Society,,Adult Social Care Integrated Care,"3,664.52"
21/02/2019,1249291,Westminster Society,,Adult Social Care Integrated Care,"5,610.92"
21/02/2019,1249291,Westminster Society,,Adult Social Care Integrated Care,780.76
21/02/2019,1249291,Westminster Society,,Adult Social Care Integrated Care,"2,536.00"
21/02/2019,1249291,Westminster Society,,Adult Social Care Integrated Care,"2,155.60"
21/02/2019,1249291,Westminster Society,,Adult Social Care Integrated Care,935.2
21/02/2019,1249291,Westminster Society,,Adult Social Care Integrated Care,"1,120.00"
21/02/2019,1249291,Westminster Society,,Adult Social Care Integrated Care,"9,413.08"
21/02/2019,1249291,Westminster Society,,Adult Social Care Integrated Care,"4,945.20"
21/02/2019,1249291,Westminster Society,,Adult Social Care Integrated Care,780.76
21/02/2019,1249291,Westminster Society,,Adult Social Care Integrated Care,"3,677.20"
21/02/2019,1249291,Westminster Society,,Adult Social Care Integrated Care,"2,155.60"
21/02/2019,1249291,Westminster Society,,Adult Social Care Integrated Care,"14,201.60"
21/02/2019,1249291,Westminster Society,,Adult Social Care Integrated Care,588
21/02/2019,1249291,Westminster Society,,Adult Social Care Integrated Care,"3,106.60"
21/02/2019,1249291,Westminster Society,,Adult Social Care Integrated Care,887.6
21/02/2019,1249291,Westminster Society,,Adult Social Care Integrated Care,"4,585.72"
21/02/2019,1249291,Westminster Society,,Adult Social Care Integrated Care,"1,370.04"
21/02/2019,1249291,Westminster Society,,Adult Social Care Integrated Care,700
21/02/2019,1249291,Westminster Society,,Adult Social Care Integrated Care,824.2
21/02/2019,1249291,Westminster Society,,Adult Social Care Integrated Care,"8,876.00"
21/02/2019,1249291,Westminster Society,,Adult Social Care Integrated Care,570.6
21/02/2019,1249291,Westminster Society,,Adult Social Care Integrated Care,"3,677.20"
21/02/2019,1249291,Westminster Society,,Adult Social Care Integrated Care,"4,121.00"
21/02/2019,1249291,Westminster Society,,Adult Social Care Integrated Care,760.8
21/02/2019,1249291,Westminster Society,,Adult Social Care Integrated Care,700
21/02/2019,1249291,Westminster Society,,Adult Social Care Integrated Care,"1,047.20"
21/02/2019,1249291,Westminster Society,,Adult Social Care Integrated Care,"3,651.84"
21/02/2019,1249291,Westminster Society,,Adult Social Care Integrated Care,700
21/02/2019,1249291,Westminster Society,,Adult Social Care Integrated Care,"1,047.20"
21/02/2019,1249291,Westminster Society,,Adult Social Care Integrated Care,"7,988.40"
21/02/2019,1249291,Westminster Society,,Adult Social Care Integrated Care,"2,789.60"
21/02/2019,1249291,Westminster Society,,Adult Social Care Integrated Care,"2,409.20"
21/02/2019,1249291,Westminster Society,,Adult Social Care Integrated Care,"2,599.40"
21/02/2019,1249291,Westminster Society,,Adult Social Care Integrated Care,935.2
21/02/2019,1249291,Westminster Society,,Adult Social Care Integrated Care,"3,043.20"
21/02/2019,1249291,Westminster Society,,Adult Social Care Integrated Care,"2,662.80"
21/02/2019,1249291,Westminster Society,,Adult Social Care Integrated Care,"3,620.16"
21/02/2019,1249291,Westminster Society,,Adult Social Care Integrated Care,780.76
21/02/2019,1249291,Westminster Society,,Adult Social Care Integrated Care,"2,219.00"
21/02/2019,1249291,Westminster Society,,Adult Social Care Integrated Care,780.76
21/02/2019,1249291,Westminster Society,,Adult Social Care Integrated Care,700
21/02/2019,1249291,Westminster Society,,Adult Social Care Integrated Care,"1,047.20"
21/02/2019,1249291,Westminster Society,,Adult Social Care Integrated Care,"3,651.84"
21/02/2019,1249291,Westminster Society,,Adult Social Care Integrated Care,"3,842.04"
21/02/2019,1249291,Westminster Society,,Adult Social Care Integrated Care,"1,047.20"
21/02/2019,1249291,Westminster Society,,Adult Social Care Integrated Care,700
21/02/2019,1249291,Westminster Society,,Adult Social Care Integrated Care,"8,969.28"
21/02/2019,1249291,Westminster Society,,Adult Social Care Integrated Care,"5,522.16"
21/02/2019,1249291,Westminster Society,,Adult Social Care Integrated Care,"1,029.00"
21/02/2019,1249291,Westminster Society,,Adult Social Care Integrated Care,700
21/02/2019,1249291,Westminster Society,,Adult Social Care Integrated Care,"3,480.68"
21/02/2019,1249291,Westminster Society,,Adult Social Care Integrated Care,780.76
21/02/2019,1249291,Westminster Society,,Adult Social Care Integrated Care,781.16
21/02/2019,1249291,Westminster Society,,Adult Social Care Integrated Care,"2,948.12"
21/02/2019,1249291,Westminster Society,,Adult Social Care Integrated Care,"1,331.40"
21/02/2019,1249291,Westminster Society,,Adult Social Care Integrated Care,"2,155.60"
21/02/2019,1249291,Westminster Society,,Adult Social Care Integrated Care,"6,878.92"
21/02/2019,1249291,Westminster Society,,Adult Social Care Integrated Care,"1,492.80"
21/02/2019,1249291,Westminster Society,,Adult Social Care Integrated Care,"7,925.00"
21/02/2019,1249291,Westminster Society,,Adult Social Care Integrated Care,"3,867.40"
21/02/2019,1249291,Westminster Society,,Adult Social Care Integrated Care,935.2
21/02/2019,1249291,Westminster Society,,Adult Social Care Integrated Care,"1,331.40"
21/02/2019,1249291,Westminster Society,,Adult Social Care Integrated Care,"2,409.20"
21/02/2019,1249291,Westminster Society,,Adult Social Care Integrated Care,"1,172.92"
21/02/2019,1249291,Westminster Society,,Adult Social Care Integrated Care,951
21/02/2019,1249291,Westminster Society,,Adult Social Care Integrated Care,780.76
21/02/2019,1249291,Westminster Society,,Adult Social Care Integrated Care,"2,504.32"
21/02/2019,1249291,Westminster Society,,Adult Social Care Integrated Care,935.2
21/02/2019,1249291,Westminster Society,,Adult Social Care Integrated Care,"4,057.60"
21/02/2019,1249291,Westminster Society,,Adult Social Care Integrated Care,700
21/02/2019,1249291,Westminster Society,,Adult Social Care Integrated Care,"1,029.00"
21/02/2019,1249291,Westminster Society,,Adult Social Care Integrated Care,"5,241.28"
28/02/2019,1249291,Westminster Society,B*Voluntary-Spot-V Dep-Enhanced - do not u,Adult Social Care Integrated Care,"1,725.00"
28/02/2019,1249291,Westminster Society,B*Voluntary-Spot-V Dep-Enhanced - do not u,Adult Social Care Integrated Care,595
28/02/2019,1249291,Westminster Society,B*Voluntary-Spot-V Dep-Enhanced - do not u,Adult Social Care Integrated Care,748
28/02/2019,1249291,Westminster Society,B*Voluntary-Spot-V Dep-Enhanced - do not u,Adult Social Care Integrated Care,"1,458.00"
28/02/2019,1249291,Westminster Society,B*Voluntary-Spot-V Dep-Enhanced - do not u,Adult Social Care Integrated Care,"1,296.00"
13/03/2019,1249291,Westminster Society,,Adult Social Care Integrated Care,"2,789.60"
13/03/2019,1249291,Westminster Society,,Adult Social Care Integrated Care,"2,409.20"
13/03/2019,1249291,Westminster Society,,Adult Social Care Integrated Care,"2,599.40"
13/03/2019,1249291,Westminster Society,,Adult Social Care Integrated Care,935.2
13/03/2019,1249291,Westminster Society,,Adult Social Care Integrated Care,"3,043.20"
13/03/2019,1249291,Westminster Society,,Adult Social Care Integrated Care,"2,662.80"
13/03/2019,1249291,Westminster Society,,Adult Social Care Integrated Care,"3,620.16"
13/03/2019,1249291,Westminster Society,,Adult Social Care Integrated Care,780.76
13/03/2019,1249291,Westminster Society,,Adult Social Care Integrated Care,"2,219.00"
13/03/2019,1249291,Westminster Society,,Adult Social Care Integrated Care,780.76
13/03/2019,1249291,Westminster Society,,Adult Social Care Integrated Care,"1,047.20"
13/03/2019,1249291,Westminster Society,,Adult Social Care Integrated Care,700
13/03/2019,1249291,Westminster Society,,Adult Social Care Integrated Care,"3,651.84"
13/03/2019,1249291,Westminster Society,,Adult Social Care Integrated Care,700
13/03/2019,1249291,Westminster Society,,Adult Social Care Integrated Care,"3,842.04"
13/03/2019,1249291,Westminster Society,,Adult Social Care Integrated Care,"1,047.20"
13/03/2019,1249291,Westminster Society,,Adult Social Care Integrated Care,"8,969.28"
13/03/2019,1249291,Westminster Society,,Adult Social Care Integrated Care,700
13/03/2019,1249291,Westminster Society,,Adult Social Care Integrated Care,"1,029.00"
13/03/2019,1249291,Westminster Society,,Adult Social Care Integrated Care,"5,522.16"
13/03/2019,1249291,Westminster Society,,Adult Social Care Integrated Care,780.76
13/03/2019,1249291,Westminster Society,,Adult Social Care Integrated Care,"3,480.68"
13/03/2019,1249291,Westminster Society,,Adult Social Care Integrated Care,781.16
13/03/2019,1249291,Westminster Society,,Adult Social Care Integrated Care,"2,948.12"
13/03/2019,1249291,Westminster Society,,Adult Social Care Integrated Care,"1,331.40"
13/03/2019,1249291,Westminster Society,,Adult Social Care Integrated Care,"2,155.60"
13/03/2019,1249291,Westminster Society,,Adult Social Care Integrated Care,"6,878.92"
13/03/2019,1249291,Westminster Society,,Adult Social Care Integrated Care,"7,925.00"
13/03/2019,1249291,Westminster Society,,Adult Social Care Integrated Care,"1,492.80"
13/03/2019,1249291,Westminster Society,,Adult Social Care Integrated Care,"3,867.40"
13/03/2019,1249291,Westminster Society,,Adult Social Care Integrated Care,935.2
13/03/2019,1249291,Westminster Society,,Adult Social Care Integrated Care,"1,331.40"
13/03/2019,1249291,Westminster Society,,Adult Social Care Integrated Care,"2,409.20"
13/03/2019,1249291,Westminster Society,,Adult Social Care Integrated Care,"1,172.92"
13/03/2019,1249291,Westminster Society,,Adult Social Care Integrated Care,951
13/03/2019,1249291,Westminster Society,,Adult Social Care Integrated Care,780.76
13/03/2019,1249291,Westminster Society,,Adult Social Care Integrated Care,"2,504.32"
13/03/2019,1249291,Westminster Society,,Adult Social Care Integrated Care,"4,057.60"
13/03/2019,1249291,Westminster Society,,Adult Social Care Integrated Care,935.2
13/03/2019,1249291,Westminster Society,,Adult Social Care Integrated Care,"5,241.28"
13/03/2019,1249291,Westminster Society,,Adult Social Care Integrated Care,"1,029.00"
13/03/2019,1249291,Westminster Society,,Adult Social Care Integrated Care,700
13/03/2019,1249291,Westminster Society,,Adult Social Care Integrated Care,"3,994.20"
13/03/2019,1249291,Westminster Society,,Adult Social Care Integrated Care,"4,501.40"
13/03/2019,1249291,Westminster Society,,Adult Social Care Integrated Care,"3,550.40"
13/03/2019,1249291,Westminster Society,,Adult Social Care Integrated Care,634
13/03/2019,1249291,Westminster Society,,Adult Social Care Integrated Care,"1,759.36"
13/03/2019,1249291,Westminster Society,,Adult Social Care Integrated Care,"6,657.00"
13/03/2019,1249291,Westminster Society,,Adult Social Care Integrated Care,"1,331.40"
13/03/2019,1249291,Westminster Society,,Adult Social Care Integrated Care,"2,536.00"
13/03/2019,1249291,Westminster Society,,Adult Social Care Integrated Care,935.2
13/03/2019,1249291,Westminster Society,,Adult Social Care Integrated Care,"8,088.04"
13/03/2019,1249291,Westminster Society,,Adult Social Care Integrated Care,780.76
13/03/2019,1249291,Westminster Society,,Adult Social Care Integrated Care,"3,620.16"
13/03/2019,1249291,Westminster Society,,Adult Social Care Integrated Care,"3,296.80"
13/03/2019,1249291,Westminster Society,,Adult Social Care Integrated Care,"3,550.40"
13/03/2019,1249291,Westminster Society,,Adult Social Care Integrated Care,"2,282.40"
13/03/2019,1249291,Westminster Society,,Adult Social Care Integrated Care,"1,370.04"
13/03/2019,1249291,Westminster Society,,Adult Social Care Integrated Care,"4,585.72"
13/03/2019,1249291,Westminster Society,,Adult Social Care Integrated Care,700
13/03/2019,1249291,Westminster Society,,Adult Social Care Integrated Care,"4,073.44"
13/03/2019,1249291,Westminster Society,,Adult Social Care Integrated Care,935.2
13/03/2019,1249291,Westminster Society,,Adult Social Care Integrated Care,"2,028.80"
13/03/2019,1249291,Westminster Society,,Adult Social Care Integrated Care,"3,328.52"
13/03/2019,1249291,Westminster Society,,Adult Social Care Integrated Care,"3,487.00"
13/03/2019,1249291,Westminster Society,,Adult Social Care Integrated Care,780.76
13/03/2019,1249291,Westminster Society,,Adult Social Care Integrated Care,"6,257.60"
13/03/2019,1249291,Westminster Society,,Adult Social Care Integrated Care,"1,838.60"
13/03/2019,1249291,Westminster Society,,Adult Social Care Integrated Care,"1,489.92"
13/03/2019,1249291,Westminster Society,,Adult Social Care Integrated Care,700
13/03/2019,1249291,Westminster Society,,Adult Social Care Integrated Care,"1,029.00"
13/03/2019,1249291,Westminster Society,,Adult Social Care Integrated Care,"5,241.28"
13/03/2019,1249291,Westminster Society,,Adult Social Care Integrated Care,"13,262.80"
13/03/2019,1249291,Westminster Society,,Adult Social Care Integrated Care,"1,585.00"
13/03/2019,1249291,Westminster Society,,Adult Social Care Integrated Care,"6,657.00"
13/03/2019,1249291,Westminster Society,,Adult Social Care Integrated Care,"3,613.80"
13/03/2019,1249291,Westminster Society,,Adult Social Care Integrated Care,"1,268.00"
13/03/2019,1249291,Westminster Society,,Adult Social Care Integrated Care,634
13/03/2019,1249291,Westminster Society,,Adult Social Care Integrated Care,"2,599.40"
13/03/2019,1249291,Westminster Society,,Adult Social Care Integrated Care,780.76
13/03/2019,1249291,Westminster Society,,Adult Social Care Integrated Care,"6,276.60"
13/03/2019,1249291,Westminster Society,,Adult Social Care Integrated Care,"5,110.04"
13/03/2019,1249291,Westminster Society,,Adult Social Care Integrated Care,780.76
13/03/2019,1249291,Westminster Society,,Adult Social Care Integrated Care,935.2
13/03/2019,1249291,Westminster Society,,Adult Social Care Integrated Care,"3,867.40"
13/03/2019,1249291,Westminster Society,,Adult Social Care Integrated Care,935.2
13/03/2019,1249291,Westminster Society,,Adult Social Care Integrated Care,"4,659.92"
13/03/2019,1249291,Westminster Society,,Adult Social Care Integrated Care,"2,345.80"
13/03/2019,1249291,Westminster Society,,Adult Social Care Integrated Care,"3,883.24"
13/03/2019,1249291,Westminster Society,,Adult Social Care Integrated Care,"1,737.16"
13/03/2019,1249291,Westminster Society,,Adult Social Care Integrated Care,"2,219.00"
13/03/2019,1249291,Westminster Society,,Adult Social Care Integrated Care,"4,116.00"
13/03/2019,1249291,Westminster Society,,Adult Social Care Integrated Care,"7,354.40"
13/03/2019,1249291,Westminster Society,,Adult Social Care Integrated Care,"2,536.00"
13/03/2019,1249291,Westminster Society,,Adult Social Care Integrated Care,"2,979.80"
13/03/2019,1249291,Westminster Society,,Adult Social Care Integrated Care,"4,116.00"
13/03/2019,1249291,Westminster Society,,Adult Social Care Integrated Care,"6,023.00"
13/03/2019,1249291,Westminster Society,,Adult Social Care Integrated Care,507.2
13/03/2019,1249291,Westminster Society,,Adult Social Care Integrated Care,"2,092.20"
13/03/2019,1249291,Westminster Society,,Adult Social Care Integrated Care,"1,114.26"
13/03/2019,1249291,Westminster Society,,Adult Social Care Integrated Care,"5,579.20"
13/03/2019,1249291,Westminster Society,,Adult Social Care Integrated Care,"3,867.40"
13/03/2019,1249291,Westminster Society,,Adult Social Care Integrated Care,935.2
13/03/2019,1249291,Westminster Society,,Adult Social Care Integrated Care,"1,029.00"
13/03/2019,1249291,Westminster Society,,Adult Social Care Integrated Care,"5,241.28"
13/03/2019,1249291,Westminster Society,,Adult Social Care Integrated Care,700
13/03/2019,1249291,Westminster Society,,Adult Social Care Integrated Care,780.76
13/03/2019,1249291,Westminster Society,,Adult Social Care Integrated Care,"3,664.52"
13/03/2019,1249291,Westminster Society,,Adult Social Care Integrated Care,780.76
13/03/2019,1249291,Westminster Society,,Adult Social Care Integrated Care,"5,610.92"
13/03/2019,1249291,Westminster Society,,Adult Social Care Integrated Care,"2,536.00"
13/03/2019,1249291,Westminster Society,,Adult Social Care Integrated Care,935.2
13/03/2019,1249291,Westminster Society,,Adult Social Care Integrated Care,"2,155.60"
13/03/2019,1249291,Westminster Society,,Adult Social Care Integrated Care,"1,120.00"
13/03/2019,1249291,Westminster Society,,Adult Social Care Integrated Care,"9,413.08"
13/03/2019,1249291,Westminster Society,,Adult Social Care Integrated Care,780.76
13/03/2019,1249291,Westminster Society,,Adult Social Care Integrated Care,"4,945.20"
13/03/2019,1249291,Westminster Society,,Adult Social Care Integrated Care,"3,677.20"
13/03/2019,1249291,Westminster Society,,Adult Social Care Integrated Care,"2,155.60"
13/03/2019,1249291,Westminster Society,,Adult Social Care Integrated Care,"14,201.60"
13/03/2019,1249291,Westminster Society,,Adult Social Care Integrated Care,588
13/03/2019,1249291,Westminster Society,,Adult Social Care Integrated Care,"3,106.60"
13/03/2019,1249291,Westminster Society,,Adult Social Care Integrated Care,887.6
13/03/2019,1249291,Westminster Society,,Adult Social Care Integrated Care,700
13/03/2019,1249291,Westminster Society,,Adult Social Care Integrated Care,"4,585.72"
13/03/2019,1249291,Westminster Society,,Adult Social Care Integrated Care,"1,370.04"
13/03/2019,1249291,Westminster Society,,Adult Social Care Integrated Care,824.2
13/03/2019,1249291,Westminster Society,,Adult Social Care Integrated Care,"8,876.00"
13/03/2019,1249291,Westminster Society,,Adult Social Care Integrated Care,570.6
13/03/2019,1249291,Westminster Society,,Adult Social Care Integrated Care,"3,677.20"
13/03/2019,1249291,Westminster Society,,Adult Social Care Integrated Care,"4,121.00"
13/03/2019,1249291,Westminster Society,,Adult Social Care Integrated Care,760.8
13/03/2019,1249291,Westminster Society,,Adult Social Care Integrated Care,"3,651.84"
13/03/2019,1249291,Westminster Society,,Adult Social Care Integrated Care,"1,047.20"
13/03/2019,1249291,Westminster Society,,Adult Social Care Integrated Care,700
13/03/2019,1249291,Westminster Society,,Adult Social Care Integrated Care,700
13/03/2019,1249291,Westminster Society,,Adult Social Care Integrated Care,"1,047.20"
13/03/2019,1249291,Westminster Society,,Adult Social Care Integrated Care,"7,988.40"
22/03/2019,1249291,Westminster Society,B*Voluntary-Spot-V Dep-Enhanced - do not u,Adult Social Care Integrated Care,"1,088.00"
22/03/2019,1249291,Westminster Society,B*Voluntary-Spot-V Dep-Enhanced - do not u,Adult Social Care Integrated Care,544
22/03/2019,1249291,Westminster Society,B*Voluntary-Spot-V Dep-Enhanced - do not u,Adult Social Care Integrated Care,680
22/03/2019,1249291,Westminster Society,B*Voluntary-Spot-V Dep-Enhanced - do not u,Adult Social Care Integrated Care,"1,088.00"
22/03/2019,1249291,Westminster Society,B*Voluntary-Spot-V Dep-Enhanced - do not u,Adult Social Care Integrated Care,"1,088.00"
22/03/2019,1249291,Westminster Society,B*Voluntary-Spot-V Dep-Enhanced - do not u,Adult Social Care Integrated Care,"1,088.00"
22/03/2019,1249291,Westminster Society,B*Voluntary-Spot-V Dep-Enhanced - do not u,Adult Social Care Integrated Care,"1,020.00"
22/03/2019,1249291,Westminster Society,B*Voluntary-Spot-V Dep-Enhanced - do not u,Adult Social Care Integrated Care,612
22/03/2019,1249291,Westminster Society,B*Voluntary-Spot-V Dep-Enhanced - do not u,Adult Social Care Integrated Care,544
22/03/2019,1249291,Westminster Society,B*Voluntary-Spot-V Dep-Enhanced - do not u,Adult Social Care Integrated Care,"1,190.00"
22/03/2019,1249291,Westminster Society,B*Voluntary-Spot-V Dep-Enhanced - do not u,Adult Social Care Integrated Care,"1,088.00"
22/03/2019,1249291,Westminster Society,B*Voluntary-Spot-V Dep-Enhanced - do not u,Adult Social Care Integrated Care,"1,088.00"
22/03/2019,1249291,Westminster Society,B*Voluntary-Spot-V Dep-Enhanced - do not u,Adult Social Care Integrated Care,816
22/03/2019,1249291,Westminster Society,B*Voluntary-Spot-V Dep-Enhanced - do not u,Adult Social Care Integrated Care,544
22/03/2019,1249291,Westminster Society,B*Voluntary-Spot-V Dep-Enhanced - do not u,Adult Social Care Integrated Care,952
22/03/2019,1249291,Westminster Society,B*Voluntary-Spot-V Dep-Enhanced - do not u,Adult Social Care Integrated Care,748
26/03/2019,1249291,Westminster Society,B*Voluntary-Spot-V Dep-Enhanced - do not u,Adult Social Care Integrated Care,621
26/03/2019,1249291,Westminster Society,B*Voluntary-Spot-V Dep-Enhanced - do not u,Adult Social Care Integrated Care,"1,105.00"
26/03/2019,1249291,Westminster Society,B*Voluntary-Spot-V Dep-Enhanced - do not u,Adult Social Care Integrated Care,"1,105.00"
26/03/2019,1249291,Westminster Society,B*Voluntary-Spot-V Dep-Enhanced - do not u,Adult Social Care Integrated Care,"1,552.50"
26/03/2019,1249291,Westminster Society,B*Voluntary-Spot-V Dep-Enhanced - do not u,Adult Social Care Integrated Care,504
26/03/2019,1249291,Westminster Society,B*Voluntary-Spot-V Dep-Enhanced - do not u,Adult Social Care Integrated Care,648
26/03/2019,1249291,Westminster Society,B*Voluntary-Spot-V Dep-Enhanced - do not u,Adult Social Care Integrated Care,"1,156.00"
28/03/2019,1249291,Westminster Society,B*Voluntary-Spot-V Dep-Enhanced - do not u,Adult Social Care Integrated Care,680
28/03/2019,1249291,Westminster Society,B*Voluntary-Spot-V Dep-Enhanced - do not u,Adult Social Care Integrated Care,"2,822.00"
28/03/2019,1249291,Westminster Society,B*Voluntary-Spot-V Dep-Enhanced - do not u,Adult Social Care Integrated Care,544
28/03/2019,1249291,Westminster Society,B*Voluntary-Spot-V Dep-Enhanced - do not u,Adult Social Care Integrated Care,"2,040.00"
28/03/2019,1249291,Westminster Society,B*Voluntary-Spot-V Dep-Enhanced - do not u,Adult Social Care Integrated Care,"1,700.00"
28/03/2019,1249291,Westminster Society,B*Voluntary-Spot-V Dep-Enhanced - do not u,Adult Social Care Integrated Care,"1,360.00"
28/03/2019,1249291,Westminster Society,B*Voluntary-Spot-V Dep-Enhanced - do not u,Adult Social Care Integrated Care,697
28/03/2019,1249291,Westminster Society,B*Voluntary-Spot-V Dep-Enhanced - do not u,Adult Social Care Integrated Care,"1,020.00"
28/03/2019,1249291,Westminster Society,B*Voluntary-Spot-V Dep-Enhanced - do not u,Adult Social Care Integrated Care,"1,224.00"
28/03/2019,1249291,Westminster Society,B*Voluntary-Spot-V Dep-Enhanced - do not u,Adult Social Care Integrated Care,"1,700.00"
28/03/2019,1249291,Westminster Society,B*Voluntary-Spot-V Dep-Enhanced - do not u,Adult Social Care Integrated Care,680
28/03/2019,1249291,Westminster Society,B*Voluntary-Spot-V Dep-Enhanced - do not u,Adult Social Care Integrated Care,680
28/03/2019,1249291,Westminster Society,B*Voluntary-Spot-V Dep-Enhanced - do not u,Adult Social Care Integrated Care,"1,088.00"
28/03/2019,1249291,Westminster Society,B*Voluntary-Spot-V Dep-Enhanced - do not u,Adult Social Care Integrated Care,"1,700.00"
28/03/2019,1249291,Westminster Society,B*Voluntary-Spot-V Dep-Enhanced - do not u,Adult Social Care Integrated Care,680
28/03/2019,1249291,Westminster Society,B*Voluntary-Spot-V Dep-Enhanced - do not u,Adult Social Care Integrated Care,510
28/03/2019,1249291,Westminster Society,B*Voluntary-Spot-V Dep-Enhanced - do not u,Adult Social Care Integrated Care,"1,700.00"
28/03/2019,1249291,Westminster Society,B*Voluntary-Spot-V Dep-Enhanced - do not u,Adult Social Care Integrated Care,"1,020.00"
28/03/2019,1249291,Westminster Society,B*Voluntary-Spot-V Dep-Enhanced - do not u,Adult Social Care Integrated Care,"3,332.00"
28/03/2019,1249291,Westminster Society,B*Voluntary-Spot-V Dep-Enhanced - do not u,Adult Social Care Integrated Care,612
28/03/2019,1249291,Westminster Society,B*Voluntary-Spot-V Dep-Enhanced - do not u,Adult Social Care Integrated Care,544
28/03/2019,1249291,Westminster Society,B*Voluntary-Spot-V Dep-Enhanced - do not u,Adult Social Care Integrated Care,"2,822.00"
28/03/2019,1249291,Westminster Society,B*Voluntary-Spot-V Dep-Enhanced - do not u,Adult Social Care Integrated Care,"2,040.00"
28/03/2019,1249291,Westminster Society,B*Voluntary-Spot-V Dep-Enhanced - do not u,Adult Social Care Integrated Care,"1,360.00"
28/03/2019,1249291,Westminster Society,B*Voluntary-Spot-V Dep-Enhanced - do not u,Adult Social Care Integrated Care,"1,360.00"
28/03/2019,1249291,Westminster Society,B*Voluntary-Spot-V Dep-Enhanced - do not u,Adult Social Care Integrated Care,"1,224.00"
28/03/2019,1249291,Westminster Society,B*Voluntary-Spot-V Dep-Enhanced - do not u,Adult Social Care Integrated Care,"1,700.00"
28/03/2019,1249291,Westminster Society,B*Voluntary-Spot-V Dep-Enhanced - do not u,Adult Social Care Integrated Care,680
28/03/2019,1249291,Westminster Society,B*Voluntary-Spot-V Dep-Enhanced - do not u,Adult Social Care Integrated Care,680
28/03/2019,1249291,Westminster Society,B*Voluntary-Spot-V Dep-Enhanced - do not u,Adult Social Care Integrated Care,"1,088.00"
28/03/2019,1249291,Westminster Society,B*Voluntary-Spot-V Dep-Enhanced - do not u,Adult Social Care Integrated Care,918
28/03/2019,1249291,Westminster Society,B*Voluntary-Spot-V Dep-Enhanced - do not u,Adult Social Care Integrated Care,680
28/03/2019,1249291,Westminster Society,B*Voluntary-Spot-V Dep-Enhanced - do not u,Adult Social Care Integrated Care,510
28/03/2019,1249291,Westminster Society,B*Voluntary-Spot-V Dep-Enhanced - do not u,Adult Social Care Integrated Care,"1,700.00"
28/03/2019,1249291,Westminster Society,B*Voluntary-Spot-V Dep-Enhanced - do not u,Adult Social Care Integrated Care,"1,020.00"
28/03/2019,1249291,Westminster Society,B*Voluntary-Spot-V Dep-Enhanced - do not u,Adult Social Care Integrated Care,"3,332.00"
28/03/2019,1249291,Westminster Society,B*Voluntary-Spot-V Dep-Enhanced - do not u,Adult Social Care Integrated Care,612
28/03/2019,1249291,Westminster Society,B*Voluntary-Spot-V Dep-Enhanced - do not u,Adult Social Care Integrated Care,544
28/01/2019,1246224,Whitmore Vale Housing Association,,Adult Social Care Integrated Care,"3,688.80"
21/02/2019,1246224,Whitmore Vale Housing Association,,Adult Social Care Integrated Care,"3,688.80"
13/03/2019,1246224,Whitmore Vale Housing Association,,Adult Social Care Integrated Care,"3,688.80"
28/01/2019,1243566,Yarrow Housing Ltd,,Adult Social Care Integrated Care,"8,301.92"
28/01/2019,1243566,Yarrow Housing Ltd,,Adult Social Care Integrated Care,"6,646.68"
28/01/2019,1243566,Yarrow Housing Ltd,,Adult Social Care Integrated Care,"2,985.52"
28/01/2019,1243566,Yarrow Housing Ltd,,Adult Social Care Integrated Care,"7,480.56"
28/01/2019,1243566,Yarrow Housing Ltd,,Adult Social Care Integrated Care,"5,563.00"
28/01/2019,1243566,Yarrow Housing Ltd,,Adult Social Care Integrated Care,843.08
28/01/2019,1243566,Yarrow Housing Ltd,,Adult Social Care Integrated Care,"5,210.52"
28/01/2019,1243566,Yarrow Housing Ltd,,Adult Social Care Integrated Care,"3,387.52"
28/01/2019,1243566,Yarrow Housing Ltd,,Adult Social Care Integrated Care,"3,881.52"
28/01/2019,1243566,Yarrow Housing Ltd,,Adult Social Care Integrated Care,"4,204.00"
28/01/2019,1243566,Yarrow Housing Ltd,,Adult Social Care Integrated Care,"7,297.56"
30/01/2019,1243566,Yarrow Housing Ltd,,Adult Social Care Integrated Care,"9,421.32"
30/01/2019,1243566,Yarrow Housing Ltd,,Adult Social Care Integrated Care,"9,269.24"
30/01/2019,1243566,Yarrow Housing Ltd,,Adult Social Care Integrated Care,"15,846.40"
30/01/2019,1243566,Yarrow Housing Ltd,,Adult Social Care Integrated Care,"9,269.24"
21/02/2019,1243566,Yarrow Housing Ltd,,Adult Social Care Integrated Care,"5,563.00"
21/02/2019,1243566,Yarrow Housing Ltd,,Adult Social Care Integrated Care,"7,480.56"
21/02/2019,1243566,Yarrow Housing Ltd,,Adult Social Care Integrated Care,843.08
21/02/2019,1243566,Yarrow Housing Ltd,,Adult Social Care Integrated Care,"3,881.52"
21/02/2019,1243566,Yarrow Housing Ltd,,Adult Social Care Integrated Care,"5,210.52"
21/02/2019,1243566,Yarrow Housing Ltd,,Adult Social Care Integrated Care,"4,204.00"
21/02/2019,1243566,Yarrow Housing Ltd,,Adult Social Care Integrated Care,"3,387.52"
21/02/2019,1243566,Yarrow Housing Ltd,,Adult Social Care Integrated Care,"7,297.56"
21/02/2019,1243566,Yarrow Housing Ltd,,Adult Social Care Integrated Care,"8,301.92"
21/02/2019,1243566,Yarrow Housing Ltd,,Adult Social Care Integrated Care,"6,646.68"
21/02/2019,1243566,Yarrow Housing Ltd,,Adult Social Care Integrated Care,"2,985.52"
13/03/2019,1243566,Yarrow Housing Ltd,,Adult Social Care Integrated Care,"18,842.64"
13/03/2019,1243566,Yarrow Housing Ltd,,Adult Social Care Integrated Care,"18,538.48"
13/03/2019,1243566,Yarrow Housing Ltd,,Adult Social Care Integrated Care,"5,563.00"
13/03/2019,1243566,Yarrow Housing Ltd,,Adult Social Care Integrated Care,"7,480.56"
13/03/2019,1243566,Yarrow Housing Ltd,,Adult Social Care Integrated Care,"31,700.80"
13/03/2019,1243566,Yarrow Housing Ltd,,Adult Social Care Integrated Care,"18,538.48"
13/03/2019,1243566,Yarrow Housing Ltd,,Adult Social Care Integrated Care,843.08
13/03/2019,1243566,Yarrow Housing Ltd,,Adult Social Care Integrated Care,"5,210.52"
13/03/2019,1243566,Yarrow Housing Ltd,,Adult Social Care Integrated Care,"3,881.52"
13/03/2019,1243566,Yarrow Housing Ltd,,Adult Social Care Integrated Care,"3,387.52"
13/03/2019,1243566,Yarrow Housing Ltd,,Adult Social Care Integrated Care,"4,204.00"
13/03/2019,1243566,Yarrow Housing Ltd,,Adult Social Care Integrated Care,"7,297.56"
13/03/2019,1243566,Yarrow Housing Ltd,,Adult Social Care Integrated Care,"8,301.92"
13/03/2019,1243566,Yarrow Housing Ltd,,Adult Social Care Integrated Care,"6,646.68"
13/03/2019,1243566,Yarrow Housing Ltd,,Adult Social Care Integrated Care,"2,985.52"
24/01/2019,1249317,Zocalo Ltd T/as Bluebird Care,,Adult Social Care Integrated Care,"4,815.00"
24/01/2019,1249317,Zocalo Ltd T/as Bluebird Care,,Adult Social Care Integrated Care,780.5
24/01/2019,1249317,Zocalo Ltd T/as Bluebird Care,,Adult Social Care Integrated Care,"4,193.00"
24/01/2019,1249317,Zocalo Ltd T/as Bluebird Care,,Adult Social Care Integrated Care,"4,773.25"
24/01/2019,1249317,Zocalo Ltd T/as Bluebird Care,,Adult Social Care Integrated Care,599.5
24/01/2019,1249317,Zocalo Ltd T/as Bluebird Care,,Adult Social Care Integrated Care,"4,149.00"
28/02/2019,1249317,Zocalo Ltd T/as Bluebird Care,,Adult Social Care Integrated Care,"4,860.00"
28/02/2019,1249317,Zocalo Ltd T/as Bluebird Care,,Adult Social Care Integrated Care,648
28/02/2019,1249317,Zocalo Ltd T/as Bluebird Care,,Adult Social Care Integrated Care,"3,910.67"
28/02/2019,1249317,Zocalo Ltd T/as Bluebird Care,,Adult Social Care Integrated Care,"5,751.40"
28/02/2019,1249317,Zocalo Ltd T/as Bluebird Care,,Adult Social Care Integrated Care,"4,836.00"
28/02/2019,1249317,Zocalo Ltd T/as Bluebird Care,,Adult Social Care Integrated Care,"5,113.25"
28/02/2019,1249317,Zocalo Ltd T/as Bluebird Care,,Adult Social Care Integrated Care,575
28/02/2019,1249317,Zocalo Ltd T/as Bluebird Care,,Adult Social Care Integrated Care,596
28/02/2019,1249317,Zocalo Ltd T/as Bluebird Care,,Adult Social Care Integrated Care,"4,128.00"
28/02/2019,1249317,Zocalo Ltd T/as Bluebird Care,,Adult Social Care Integrated Care,"4,032.00"
28/02/2019,1249317,Zocalo Ltd T/as Bluebird Care,,Adult Social Care Integrated Care,"5,436.00"
28/02/2019,1249317,Zocalo Ltd T/as Bluebird Care,,Adult Social Care Integrated Care,"2,099.40"
03/01/2019,1249318,Zodiac Arts Ltd,B*Voluntary-Spot-V Dep-Enhanced - do not u,Adult Social Care Integrated Care,715.5
05/02/2019,1249318,Zodiac Arts Ltd,B*Voluntary-Spot-V Dep-Enhanced - do not u,Adult Social Care Integrated Care,715.5
05/03/2019,1249318,Zodiac Arts Ltd,B*Voluntary-Spot-V Dep-Enhanced - do not u,Adult Social Care Integrated Care,715.5
30/01/2019,1246364,Central Recruitment Services Ltd,Agency Staff,Adult Social Care Integrated Care,576
30/01/2019,1246364,Central Recruitment Services Ltd,Agency Staff,Adult Social Care Integrated Care,504
30/01/2019,1246364,Central Recruitment Services Ltd,Agency Staff,Adult Social Care Integrated Care,576
30/01/2019,1246364,Central Recruitment Services Ltd,Agency Staff,Adult Social Care Integrated Care,504
30/01/2019,1246364,Central Recruitment Services Ltd,Agency Staff,Adult Social Care Integrated Care,576
30/01/2019,1246364,Central Recruitment Services Ltd,Agency Staff,Adult Social Care Integrated Care,504
19/02/2019,1246364,Central Recruitment Services Ltd,Agency Staff,Adult Social Care Integrated Care,576
19/02/2019,1246364,Central Recruitment Services Ltd,Agency Staff,Adult Social Care Integrated Care,504
19/02/2019,1246364,Central Recruitment Services Ltd,Agency Staff,Adult Social Care Integrated Care,630
19/02/2019,1246364,Central Recruitment Services Ltd,Agency Staff,Adult Social Care Integrated Care,504
19/02/2019,1246364,Central Recruitment Services Ltd,Agency Staff,Adult Social Care Integrated Care,576
21/02/2019,1246364,Central Recruitment Services Ltd,Agency Staff,Adult Social Care Integrated Care,594
21/02/2019,1246364,Central Recruitment Services Ltd,Agency Staff,Adult Social Care Integrated Care,648
21/02/2019,1246364,Central Recruitment Services Ltd,Agency Staff,Adult Social Care Integrated Care,648
21/02/2019,1246364,Central Recruitment Services Ltd,Agency Staff,Adult Social Care Integrated Care,594
21/02/2019,1246364,Central Recruitment Services Ltd,Agency Staff,Adult Social Care Integrated Care,518.4
21/02/2019,1246364,Central Recruitment Services Ltd,Agency Staff,Adult Social Care Integrated Care,518.4
21/02/2019,1246364,Central Recruitment Services Ltd,Agency Staff,Adult Social Care Integrated Care,518.4
14/03/2019,1248317,Pineapple Contracts,Equipment,Adult Social Care Integrated Care,"1,759.20"
08/01/2019,1248531,Posturite (Uk) Ltd,Equipment,Adult Social Care Integrated Care,629.81
15/01/2019,1243963,Automotive Leasing,Vehicles and Plant - Repairs and Main,Adult Social Care Integrated Care,500.27
19/03/2019,1249172,Tobii Dynavox Ltd,Equipment,Adult Social Care Integrated Care,849
13/03/2019,1245636,St Mungos Broadway (Grants &,Hired and Contracted Services,Adult Social Care Integrated Care,"90,756.25"
11/03/2019,1243797,Central & North West London Nhs,Payments to Health Authorities,Adult Social Care Integrated Care,"30,727.95"
11/03/2019,1243797,Central & North West London Nhs,Payments to Health Authorities,Adult Social Care Integrated Care,"24,638.79"
16/01/2019,1243797,Central & North West London Nhs,Payments to Health Authorities,Adult Social Care Integrated Care,"142,565.09"
28/02/2019,1252498,Field Court Chambers,Legal Costs,Adult Social Care Integrated Care,"1,500.00"
19/02/2019,1245228,Pohwer,Hired and Contracted Services,Adult Social Care Integrated Care,"114,703.00"
02/01/2019,1249077,The Advocacy Project,Hired and Contracted Services,Adult Social Care Integrated Care,"51,294.00"
02/01/2019,1249077,The Advocacy Project,Hired and Contracted Services,Adult Social Care Integrated Care,"9,788.00"
11/03/2019,1243797,Central & North West London Nhs,Payments to Health Authorities,Adult Social Care Integrated Care,"24,622.14"
04/01/2019,1243797,Central & North West London Nhs,Payments to Health Authorities,Adult Social Care Integrated Care,"16,807.50"
11/03/2019,1243797,Central & North West London Nhs,Payments to Health Authorities,Adult Social Care Integrated Care,"7,130.02"
28/01/2019,1246261,Brent Wandsworth & Westminster,,Adult Social Care Integrated Care,925.76
28/01/2019,1246261,Brent Wandsworth & Westminster,,Adult Social Care Integrated Care,944.68
28/01/2019,1246261,Brent Wandsworth & Westminster,,Adult Social Care Integrated Care,864.12
28/01/2019,1246261,Brent Wandsworth & Westminster,,Adult Social Care Integrated Care,944.68
28/01/2019,1246261,Brent Wandsworth & Westminster,,Adult Social Care Integrated Care,"1,041.84"
28/01/2019,1246261,Brent Wandsworth & Westminster,,Adult Social Care Integrated Care,934.96
28/01/2019,1246261,Brent Wandsworth & Westminster,,Adult Social Care Integrated Care,934.96
21/02/2019,1246261,Brent Wandsworth & Westminster,,Adult Social Care Integrated Care,944.68
21/02/2019,1246261,Brent Wandsworth & Westminster,,Adult Social Care Integrated Care,"1,041.84"
21/02/2019,1246261,Brent Wandsworth & Westminster,,Adult Social Care Integrated Care,934.96
21/02/2019,1246261,Brent Wandsworth & Westminster,,Adult Social Care Integrated Care,934.96
21/02/2019,1246261,Brent Wandsworth & Westminster,,Adult Social Care Integrated Care,944.68
21/02/2019,1246261,Brent Wandsworth & Westminster,,Adult Social Care Integrated Care,864.12
21/02/2019,1246261,Brent Wandsworth & Westminster,,Adult Social Care Integrated Care,925.76
21/02/2019,1246261,Brent Wandsworth & Westminster,,Adult Social Care Integrated Care,"1,157.20"
13/03/2019,1246261,Brent Wandsworth & Westminster,,Adult Social Care Integrated Care,925.76
13/03/2019,1246261,Brent Wandsworth & Westminster,,Adult Social Care Integrated Care,925.76
13/03/2019,1246261,Brent Wandsworth & Westminster,,Adult Social Care Integrated Care,944.68
13/03/2019,1246261,Brent Wandsworth & Westminster,,Adult Social Care Integrated Care,"1,041.84"
13/03/2019,1246261,Brent Wandsworth & Westminster,,Adult Social Care Integrated Care,934.96
13/03/2019,1246261,Brent Wandsworth & Westminster,,Adult Social Care Integrated Care,934.96
13/03/2019,1246261,Brent Wandsworth & Westminster,,Adult Social Care Integrated Care,944.68
13/03/2019,1246261,Brent Wandsworth & Westminster,,Adult Social Care Integrated Care,864.12
28/01/2019,1246561,Church Army Marylebone Project,,Adult Social Care Integrated Care,990.12
21/02/2019,1246561,Church Army Marylebone Project,,Adult Social Care Integrated Care,990.12
13/03/2019,1246561,Church Army Marylebone Project,,Adult Social Care Integrated Care,990.12
25/01/2019,1253253,First Priority Housing Association,,Adult Social Care Integrated Care,"11,586.41"
28/01/2019,1253253,First Priority Housing Association,,Adult Social Care Integrated Care,"3,728.96"
21/02/2019,1253253,First Priority Housing Association,,Adult Social Care Integrated Care,"3,728.96"
15/01/2019,D000000016,GENERAL,,Adult Social Care Integrated Care,"15,000.00"
29/01/2019,D000000016,GENERAL,,Adult Social Care Integrated Care,"11,586.41"
29/03/2019,D000000016,GENERAL,,Adult Social Care Integrated Care,"3,728.96"
28/01/2019,1247656,London Cyrenians Housing Ltd,,Adult Social Care Integrated Care,764.48
28/01/2019,1247656,London Cyrenians Housing Ltd,,Adult Social Care Integrated Care,779
21/02/2019,1247656,London Cyrenians Housing Ltd,,Adult Social Care Integrated Care,935.09
21/02/2019,1247656,London Cyrenians Housing Ltd,,Adult Social Care Integrated Care,779
13/03/2019,1247656,London Cyrenians Housing Ltd,,Adult Social Care Integrated Care,779
13/03/2019,1247656,London Cyrenians Housing Ltd,,Adult Social Care Integrated Care,779
28/01/2019,1247852,Look Ahead Care and Support Ltd,,Adult Social Care Integrated Care,"1,252.40"
28/01/2019,1247852,Look Ahead Care and Support Ltd,,Adult Social Care Integrated Care,"1,252.40"
28/01/2019,1247852,Look Ahead Care and Support Ltd,,Adult Social Care Integrated Care,"1,116.12"
28/01/2019,1247852,Look Ahead Care and Support Ltd,,Adult Social Care Integrated Care,"1,252.40"
28/01/2019,1247852,Look Ahead Care and Support Ltd,,Adult Social Care Integrated Care,"1,252.40"
28/01/2019,1247852,Look Ahead Care and Support Ltd,,Adult Social Care Integrated Care,"1,244.48"
28/01/2019,1247852,Look Ahead Care and Support Ltd,,Adult Social Care Integrated Care,"1,116.12"
28/01/2019,1247852,Look Ahead Care and Support Ltd,,Adult Social Care Integrated Care,"1,279.12"
28/01/2019,1247852,Look Ahead Care and Support Ltd,,Adult Social Care Integrated Care,"1,252.40"
21/02/2019,1247852,Look Ahead Care and Support Ltd,,Adult Social Care Integrated Care,"1,116.12"
21/02/2019,1247852,Look Ahead Care and Support Ltd,,Adult Social Care Integrated Care,"1,252.40"
21/02/2019,1247852,Look Ahead Care and Support Ltd,,Adult Social Care Integrated Care,"1,252.40"
21/02/2019,1247852,Look Ahead Care and Support Ltd,,Adult Social Care Integrated Care,"1,252.40"
21/02/2019,1247852,Look Ahead Care and Support Ltd,,Adult Social Care Integrated Care,"1,116.12"
21/02/2019,1247852,Look Ahead Care and Support Ltd,,Adult Social Care Integrated Care,"1,244.48"
21/02/2019,1247852,Look Ahead Care and Support Ltd,,Adult Social Care Integrated Care,"1,279.12"
21/02/2019,1247852,Look Ahead Care and Support Ltd,,Adult Social Care Integrated Care,"1,252.40"
21/02/2019,1247852,Look Ahead Care and Support Ltd,,Adult Social Care Integrated Care,"1,252.40"
13/03/2019,1247852,Look Ahead Care and Support Ltd,,Adult Social Care Integrated Care,"1,252.40"
13/03/2019,1247852,Look Ahead Care and Support Ltd,,Adult Social Care Integrated Care,"1,116.12"
13/03/2019,1247852,Look Ahead Care and Support Ltd,,Adult Social Care Integrated Care,"1,252.40"
13/03/2019,1247852,Look Ahead Care and Support Ltd,,Adult Social Care Integrated Care,"1,252.40"
13/03/2019,1247852,Look Ahead Care and Support Ltd,,Adult Social Care Integrated Care,"1,244.48"
13/03/2019,1247852,Look Ahead Care and Support Ltd,,Adult Social Care Integrated Care,"1,116.12"
13/03/2019,1247852,Look Ahead Care and Support Ltd,,Adult Social Care Integrated Care,"1,279.12"
13/03/2019,1247852,Look Ahead Care and Support Ltd,,Adult Social Care Integrated Care,"1,252.40"
13/03/2019,1247852,Look Ahead Care and Support Ltd,,Adult Social Care Integrated Care,"1,252.40"
28/01/2019,1248237,One Housing Group Ltd( For Rent,,Adult Social Care Integrated Care,782.32
28/01/2019,1248237,One Housing Group Ltd( For Rent,,Adult Social Care Integrated Care,"1,180.56"
28/01/2019,1248237,One Housing Group Ltd( For Rent,,Adult Social Care Integrated Care,"1,174.36"
21/02/2019,1248237,One Housing Group Ltd( For Rent,,Adult Social Care Integrated Care,"1,180.56"
21/02/2019,1248237,One Housing Group Ltd( For Rent,,Adult Social Care Integrated Care,"1,174.36"
21/02/2019,1248237,One Housing Group Ltd( For Rent,,Adult Social Care Integrated Care,782.32
13/03/2019,1248237,One Housing Group Ltd( For Rent,,Adult Social Care Integrated Care,782.32
13/03/2019,1248237,One Housing Group Ltd( For Rent,,Adult Social Care Integrated Care,"1,180.56"
13/03/2019,1248237,One Housing Group Ltd( For Rent,,Adult Social Care Integrated Care,"1,174.36"
28/01/2019,1248618,Riverside Echg,,Adult Social Care Integrated Care,841.4
28/01/2019,1248618,Riverside Echg,,Adult Social Care Integrated Care,"1,116.92"
28/01/2019,1248618,Riverside Echg,,Adult Social Care Integrated Care,818.72
28/01/2019,1248618,Riverside Echg,,Adult Social Care Integrated Care,"1,173.20"
21/02/2019,1248618,Riverside Echg,,Adult Social Care Integrated Care,841.4
21/02/2019,1248618,Riverside Echg,,Adult Social Care Integrated Care,"1,116.92"
21/02/2019,1248618,Riverside Echg,,Adult Social Care Integrated Care,818.72
13/03/2019,1248618,Riverside Echg,,Adult Social Care Integrated Care,841.4
13/03/2019,1248618,Riverside Echg,,Adult Social Care Integrated Care,"1,116.92"
13/03/2019,1248618,Riverside Echg,,Adult Social Care Integrated Care,818.72
28/01/2019,1245584,Single Homeless Project,,Adult Social Care Integrated Care,713.68
21/02/2019,1245584,Single Homeless Project,,Adult Social Care Integrated Care,713.68
13/03/2019,1245584,Single Homeless Project,,Adult Social Care Integrated Care,"12,237.45"
29/03/2019,1245584,Single Homeless Project,,Adult Social Care Integrated Care,"1,371.14"
28/01/2019,1245636,St Mungos Broadway (Grants &,,Adult Social Care Integrated Care,"1,187.20"
28/01/2019,1245636,St Mungos Broadway (Grants &,,Adult Social Care Integrated Care,"1,102.64"
28/01/2019,1245636,St Mungos Broadway (Grants &,,Adult Social Care Integrated Care,"1,187.20"
28/01/2019,1245636,St Mungos Broadway (Grants &,,Adult Social Care Integrated Care,"1,187.20"
28/01/2019,1245636,St Mungos Broadway (Grants &,,Adult Social Care Integrated Care,"1,187.20"
28/01/2019,1245636,St Mungos Broadway (Grants &,,Adult Social Care Integrated Care,"1,908.00"
28/01/2019,1245636,St Mungos Broadway (Grants &,,Adult Social Care Integrated Care,"1,780.80"
21/02/2019,1245636,St Mungos Broadway (Grants &,,Adult Social Care Integrated Care,"4,536.80"
21/02/2019,1245636,St Mungos Broadway (Grants &,,Adult Social Care Integrated Care,"1,187.20"
21/02/2019,1245636,St Mungos Broadway (Grants &,,Adult Social Care Integrated Care,"1,187.20"
21/02/2019,1245636,St Mungos Broadway (Grants &,,Adult Social Care Integrated Care,"1,187.20"
21/02/2019,1245636,St Mungos Broadway (Grants &,,Adult Social Care Integrated Care,"1,102.64"
21/02/2019,1245636,St Mungos Broadway (Grants &,,Adult Social Care Integrated Care,"1,187.20"
21/02/2019,1245636,St Mungos Broadway (Grants &,,Adult Social Care Integrated Care,"1,187.20"
21/02/2019,1245636,St Mungos Broadway (Grants &,,Adult Social Care Integrated Care,"1,187.20"
13/03/2019,1245636,St Mungos Broadway (Grants &,,Adult Social Care Integrated Care,"1,187.20"
13/03/2019,1245636,St Mungos Broadway (Grants &,,Adult Social Care Integrated Care,"1,187.20"
13/03/2019,1245636,St Mungos Broadway (Grants &,,Adult Social Care Integrated Care,"1,187.20"
13/03/2019,1245636,St Mungos Broadway (Grants &,,Adult Social Care Integrated Care,"1,187.20"
13/03/2019,1245636,St Mungos Broadway (Grants &,,Adult Social Care Integrated Care,"1,187.20"
13/03/2019,1245636,St Mungos Broadway (Grants &,,Adult Social Care Integrated Care,"1,187.20"
13/03/2019,1245636,St Mungos Broadway (Grants &,,Adult Social Care Integrated Care,"1,187.20"
13/03/2019,1245636,St Mungos Broadway (Grants &,,Adult Social Care Integrated Care,"1,102.64"
28/01/2019,1245637,St Mungos Broadway (Rents),,Adult Social Care Integrated Care,"1,347.92"
28/01/2019,1245637,St Mungos Broadway (Rents),,Adult Social Care Integrated Care,994.56
28/01/2019,1245637,St Mungos Broadway (Rents),,Adult Social Care Integrated Care,"1,076.32"
